{"text_format":"1","workbook":"xlsx","n_sheets":13,"sheets":["PRIMARY INFORMATION","REPORTS","VITM","VIITM","VIIITM","IXTM","XTM","VIEM","VIIEM","VIIIEM","IXEM","XEM","ABSTRACT"],"not_rendered":{"charts":0,"images":1,"macros":1,"external_links":4,"defined_names":110,"comments":0,"pivot_tables":0},"unopened":[],"bounds":{"document_bytes":16777216,"sheet_cells":100000,"rows_first":2000,"rows_last":500,"rows_between":2000,"halvings":0,"cell_chars":16384,"cell_head_chars":4096},"cells_cut":0,"cells_raw":0,"read":"whole","date_system":"1900"}

{"sheet":"PRIMARY INFORMATION","index":0,"n_rows":19,"n_cols":4,"rows_kept":19,"cut":false,"hidden":false,"merged":[[11,2,11,3],[12,2,12,3],[13,2,13,3],[14,2,14,3],[1,1,1,3],[18,2,18,3]]}
[]
[null,"SHAALA SIDDHI SELF-EVALUATION TABLES PREPARATION TOOL"]
[]
[]
[null,null,"PRESENT ACADEMIC YEAR","2019-20"]
[null,null,"TOTAL WORKING DAYS IN LAST ACADEMIC YEAR",213]
[]
[null,null,"2018-19 STARTING ADMISSION"]
[]
[]
[]
[null,null,"HOW TO USE THIS FILE"]
[null,"STEP-1","ENTER STUDENT PARTICULARS IN ALL THE SHEETS ( MAX 150 GIVEN IN EACH CLASS)"]
[null,"STEP-2","ENTER MARKS (6-9TH 100 MARKS & 10TH GPA) IN ALL SHEETS"]
[null,"STEP-3","NOW YOU CAN CHECK REPORTS SHEET FOR AUTOMATICALLY PREPARED TABLES"]
[]
[]
[]
[null,"NOTE:","THIS TOOL IS PREPARED FOR HELPING TO PREPARE TABLES AUTOMATICALLY, \nPLEASE USE THIS AS REFERENCE ONLY\nWE ARE NOT RESPONSIBLE FOR ANY DATA MIS MATCH OR DIFFERENCE"]

{"sheet":"REPORTS","index":1,"n_rows":43,"n_cols":13,"rows_kept":43,"cut":false,"hidden":false,"merged":[[25,4,26,8],[16,10,17,10],[1,2,1,8],[15,1,15,10],[28,1,32,1],[33,1,37,1],[38,1,42,1],[6,1,6,11],[16,1,17,1],[16,2,16,9],[25,1,27,1],[25,2,27,2],[25,3,27,3],[25,9,27,9],[28,9,32,9],[33,9,37,9],[38,9,42,9]]}
[]
[null,null,"DEMOGRAPHIC PROFILE (2019-20)"]
[null,null,"Category","SC","ST","OBC","General","Minority","Total"]
[null,null,"Number",null,null,null,null,null,{"$f":"SUM(D4:H4)-H4","v":0},"<== Enter Manually"]
[]
[]
[null,"CLASSWISE ANNUAL ATTENDANCE REPORT (2018-19)"]
[null,"CLASS","BOYS","GIRLS","TOTAL","NO. OF WORKING DAYS","BOYS ANNUAL ATTENDANCE","GIRLS ANNUAL ATTENDANCE","TOTAL ANNUAL ATTENDANCE ","BOYS ATT RATE","GIRLS ATT RATE","TOTAL ATT RATE"]
[null,"VI",{"$f":"VITM!B$160+VIEM!B$160","v":0},{"$f":"VITM!C$160+VIEM!C$160","v":0},{"$f":"SUM(C9:D9)","v":0},{"$f":"WORKINGDAYS","v":213},{"$f":"INDIRECT($B9&\"TM\"&\"!$Q$155\")+INDIRECT($B9&\"EM\"&\"!$Q$155\")","v":0},{"$f":"INDIRECT($B9&\"TM\"&\"!$R$155\")+INDIRECT($B9&\"EM\"&\"!$R$155\")","v":0},{"$f":"G9+H9","v":0},{"$f":"G9/(C9*F9)*100","v":{"$error":"#DIV/0!"}},{"$f":"H9/(D9*F9)*100","v":{"$error":"#DIV/0!"}},{"$f":"I9/(E9*F9)*100","v":{"$error":"#DIV/0!"}}]
[null,"VII",{"$f":"VIITM!B$160+VIIEM!B$160","v":0},{"$f":"VIITM!C$160+VIIEM!C$160","v":0},{"$f":"SUM(C10:D10)","v":0},213,{"$f":"INDIRECT($B10&\"TM\"&\"!$Q$155\")+INDIRECT($B10&\"EM\"&\"!$Q$155\")","v":0},{"$f":"INDIRECT($B10&\"TM\"&\"!$R$155\")+INDIRECT($B10&\"EM\"&\"!$R$155\")","v":0},{"$f":"G10+H10","v":0},{"$error":"#DIV/0!"},{"$f":"H10/(D10*F10)*100","v":{"$error":"#DIV/0!"}},{"$f":"I10/(E10*F10)*100","v":{"$error":"#DIV/0!"}}]
[null,"VIII",{"$f":"VIIITM!B$160+VIIIEM!B$158","v":0},{"$f":"VIIITM!C$160+VIIIEM!C$158","v":0},0,213,{"$f":"INDIRECT($B11&\"TM\"&\"!$Q$155\")+INDIRECT($B11&\"EM\"&\"!$Q$155\")","v":0},{"$f":"INDIRECT($B11&\"TM\"&\"!$R$155\")+INDIRECT($B11&\"EM\"&\"!$R$155\")","v":0},0,{"$error":"#DIV/0!"},{"$error":"#DIV/0!"},{"$error":"#DIV/0!"}]
[null,"IX",{"$f":"IXTM!B$160+IXEM!B$160","v":0},{"$f":"IXTM!C$160+IXEM!C$160","v":0},0,213,0,0,0,{"$error":"#DIV/0!"},{"$error":"#DIV/0!"},{"$error":"#DIV/0!"}]
[null,"X",{"$f":"XTM!B$160+XEM!B$160","v":0},{"$f":"XTM!C$160+XEM!C$160","v":0},0,213,0,0,0,{"$error":"#DIV/0!"},{"$error":"#DIV/0!"},{"$error":"#DIV/0!"}]
[null,null,{"$f":"SUM(C9:C13)","v":0},{"$f":"SUM(D9:D13)","v":0},{"$f":"SUM(E9:E13)","v":0},213,{"$f":"SUM(G9:G13)","v":0},{"$f":"SUM(H9:H13)","v":0},{"$f":"SUM(I9:I13)","v":0},{"$error":"#DIV/0!"},{"$f":"H14/(D14*F14)*100","v":{"$error":"#DIV/0!"}},{"$error":"#DIV/0!"}]
[]
[null,"LEARNING OUTCOMES(ANNUAL/CONSOLIDATED REPORTS)"]
[null,"Class","Percentage of Students who scored in respective percentage range",null,null,null,null,null,null,null,"Total"]
[null,null,"<33","33-40","41-50","51-60","61-70","71-80","81-90","91-100"]
[null,"VI",{"$f":"COUNTIFS(VITMARKS,\"<33\",VITMARKS,\"<>0\")+COUNTIFS(VIEMARKS,\"<33\",VIEMARKS,\"<>0\")","v":0},{"$f":"COUNTIFS(VITMARKS,\"<41\",VITMARKS,\"<>0\")+COUNTIFS(VIEMARKS,\"<41\",VIEMARKS,\"<>0\")-C19","v":0},{"$f":"COUNTIFS(VITMARKS,\"<51\",VITMARKS,\"<>0\")+COUNTIFS(VIEMARKS,\"<51\",VIEMARKS,\"<>0\")-D19-C19","v":0},{"$f":"COUNTIFS(VITMARKS,\"<61\",VITMARKS,\"<>0\")+COUNTIFS(VIEMARKS,\"<61\",VIEMARKS,\"<>0\")-E19-D19-C19","v":0},{"$f":"COUNTIFS(VITMARKS,\"<71\",VITMARKS,\"<>0\")+COUNTIFS(VIEMARKS,\"<71\",VIEMARKS,\"<>0\")-F19-E19-D19-C19","v":0},{"$f":"COUNTIFS(VITMARKS,\"<81\",VITMARKS,\"<>0\")+COUNTIFS(VIEMARKS,\"<81\",VIEMARKS,\"<>0\")-G19-F19-E19-D19-C19","v":0},{"$f":"COUNTIFS(VITMARKS,\"<91\",VITMARKS,\"<>0\")+COUNTIFS(VIEMARKS,\"<91\",VIEMARKS,\"<>0\")-H19-G19-F19-E19-D19-C19","v":0},{"$f":"COUNTIFS(VITMARKS,\">90\",VITMARKS,\"<>0\")+COUNTIFS(VIEMARKS,\">90\",VIEMARKS,\"<>0\")","v":0},{"$f":"SUM(C19:J19)","v":0}]
[null,"VII",{"$f":"COUNTIFS(VIITMARKS,\"<33\",VIITMARKS,\"<>0\")+COUNTIFS(VIIEMARKS,\"<33\",VIIEMARKS,\"<>0\")","v":0},{"$f":"COUNTIFS(VIITMARKS,\"<41\",VIITMARKS,\"<>0\")+COUNTIFS(VIIEMARKS,\"<41\",VIIEMARKS,\"<>0\")-C20","v":0},{"$f":"COUNTIFS(VIITMARKS,\"<51\",VIITMARKS,\"<>0\")+COUNTIFS(VIIEMARKS,\"<51\",VIIEMARKS,\"<>0\")-D20-C20","v":0},{"$f":"COUNTIFS(VIITMARKS,\"<61\",VIITMARKS,\"<>0\")+COUNTIFS(VIIEMARKS,\"<61\",VIIEMARKS,\"<>0\")-E20-D20-C20","v":0},{"$f":"COUNTIFS(VIITMARKS,\"<71\",VIITMARKS,\"<>0\")+COUNTIFS(VIIEMARKS,\"<71\",VIIEMARKS,\"<>0\")-F20-E20-D20-C20","v":0},{"$f":"COUNTIFS(VIITMARKS,\"<81\",VIITMARKS,\"<>0\")+COUNTIFS(VIIEMARKS,\"<81\",VIIEMARKS,\"<>0\")-G20-F20-E20-D20-C20","v":0},{"$f":"COUNTIFS(VIITMARKS,\"<91\",VIITMARKS,\"<>0\")+COUNTIFS(VIIEMARKS,\"<91\",VIIEMARKS,\"<>0\")-H20-G20-F20-E20-D20-C20","v":0},{"$f":"COUNTIFS(VIITMARKS,\">90\",VIITMARKS,\"<>0\")+COUNTIFS(VIIEMARKS,\">90\",VIIEMARKS,\"<>0\")","v":0},{"$f":"SUM(C20:J20)","v":0}]
[null,"VIII",{"$f":"COUNTIFS(VIIITMARKS,\"<33\",VIIITMARKS,\"<>0\")+COUNTIFS(VIIIEMARKS,\"<33\",VIIIEMARKS,\"<>0\")","v":0},{"$f":"COUNTIFS(VIIITMARKS,\"<41\",VIIITMARKS,\"<>0\")+COUNTIFS(VIIIEMARKS,\"<41\",VIIIEMARKS,\"<>0\")-C21","v":0},{"$f":"COUNTIFS(VIIITMARKS,\"<51\",VIIITMARKS,\"<>0\")+COUNTIFS(VIIIEMARKS,\"<51\",VIIIEMARKS,\"<>0\")-D21-C21","v":0},{"$f":"COUNTIFS(VIIITMARKS,\"<61\",VIIITMARKS,\"<>0\")+COUNTIFS(VIIIEMARKS,\"<61\",VIIIEMARKS,\"<>0\")-E21-D21-C21","v":0},{"$f":"COUNTIFS(VIIITMARKS,\"<71\",VIIITMARKS,\"<>0\")+COUNTIFS(VIIIEMARKS,\"<71\",VIIIEMARKS,\"<>0\")-F21-E21-D21-C21","v":0},{"$f":"COUNTIFS(VIIITMARKS,\"<81\",VIIITMARKS,\"<>0\")+COUNTIFS(VIIIEMARKS,\"<81\",VIIIEMARKS,\"<>0\")-G21-F21-E21-D21-C21","v":0},{"$f":"COUNTIFS(VIIITMARKS,\"<91\",VIIITMARKS,\"<>0\")+COUNTIFS(VIIIEMARKS,\"<91\",VIIIEMARKS,\"<>0\")-H21-G21-F21-E21-D21-C21","v":0},{"$f":"COUNTIFS(VIIITMARKS,\">90\",VIIITMARKS,\"<>0\")+COUNTIFS(VIIIEMARKS,\">90\",VIIIEMARKS,\"<>0\")","v":0},{"$f":"SUM(C21:J21)","v":0}]
[null,"IX",{"$f":"COUNTIFS(IXTMARKS,\"<33\",IXTMARKS,\"<>0\")+COUNTIFS(IXEMARKS,\"<33\",IXEMARKS,\"<>0\")","v":0},{"$f":"COUNTIFS(IXTMARKS,\"<41\",IXTMARKS,\"<>0\")+COUNTIFS(IXEMARKS,\"<41\",IXEMARKS,\"<>0\")-C22","v":0},{"$f":"COUNTIFS(IXTMARKS,\"<51\",IXTMARKS,\"<>0\")+COUNTIFS(IXEMARKS,\"<51\",IXEMARKS,\"<>0\")-D22-C22","v":0},{"$f":"COUNTIFS(IXTMARKS,\"<61\",IXTMARKS,\"<>0\")+COUNTIFS(IXEMARKS,\"<61\",IXEMARKS,\"<>0\")-E22-D22-C22","v":0},{"$f":"COUNTIFS(IXTMARKS,\"<71\",IXTMARKS,\"<>0\")+COUNTIFS(IXEMARKS,\"<71\",IXEMARKS,\"<>0\")-F22-E22-D22-C22","v":0},{"$f":"COUNTIFS(IXTMARKS,\"<81\",IXTMARKS,\"<>0\")+COUNTIFS(IXEMARKS,\"<81\",IXEMARKS,\"<>0\")-G22-F22-E22-D22-C22","v":0},{"$f":"COUNTIFS(IXTMARKS,\"<91\",IXTMARKS,\"<>0\")+COUNTIFS(IXEMARKS,\"<91\",IXEMARKS,\"<>0\")-H22-G22-F22-E22-D22-C22","v":0},{"$f":"COUNTIFS(IXTMARKS,\">90\",IXTMARKS,\"<>0\")+COUNTIFS(IXEMARKS,\">90\",IXEMARKS,\"<>0\")","v":0},0]
[null,"X",{"$f":"COUNTIFS(XTMARKS,\"<33\",XTMARKS,\"<>0\")+COUNTIFS(XEMARKS,\"<33\",XEMARKS,\"<>0\")","v":0},{"$f":"COUNTIFS(XTMARKS,\"<41\",XTMARKS,\"<>0\")+COUNTIFS(XEMARKS,\"<41\",XEMARKS,\"<>0\")-C23","v":0},{"$f":"COUNTIFS(XTMARKS,\"<51\",XTMARKS,\"<>0\")+COUNTIFS(XEMARKS,\"<51\",XEMARKS,\"<>0\")-D23-C23","v":0},{"$f":"COUNTIFS(XTMARKS,\"<61\",XTMARKS,\"<>0\")+COUNTIFS(XEMARKS,\"<61\",XEMARKS,\"<>0\")-E23-D23-C23","v":0},{"$f":"COUNTIFS(XTMARKS,\"<71\",XTMARKS,\"<>0\")+COUNTIFS(XEMARKS,\"<71\",XEMARKS,\"<>0\")-F23-E23-D23-C23","v":0},{"$f":"COUNTIFS(XTMARKS,\"<81\",XTMARKS,\"<>0\")+COUNTIFS(XEMARKS,\"<81\",XEMARKS,\"<>0\")-G23-F23-E23-D23-C23","v":0},{"$f":"COUNTIFS(XTMARKS,\"<91\",XTMARKS,\"<>0\")+COUNTIFS(XEMARKS,\"<91\",XEMARKS,\"<>0\")-H23-G23-F23-E23-D23-C23","v":0},{"$f":"COUNTIFS(XTMARKS,\">90\",XTMARKS,\"<>0\")+COUNTIFS(XEMARKS,\">90\",XEMARKS,\"<>0\")","v":0},0]
[null,null,null,null,null,null,null,null,null,null,{"$f":"SUM(K19:K23)","v":0}]
[]
[null,"Class","Key Subject/ Stream","Total Student","Percentage of Students in each Grade*",null,null,null,null,"Subjects with consistent low performance"]
[]
[null,null,null,null,"A","B","C","D","E",null,"SUB","Check"]
[{"$f":"H29+I29","v":0},"VIII","Language-I",{"$f":"VIIITM!$D$160+VIIIEM!$D$158","v":0},{"$f":"COUNTIF(INDIRECT(K29&8&\"T\"),\"A1\")+COUNTIF(INDIRECT(K29&8&\"T\"),\"A2\")+COUNTIF(INDIRECT(K29&8&\"E\"),\"A1\")+COUNTIF(INDIRECT(K29&8&\"E\"),\"A2\")","v":0},{"$f":"COUNTIF(INDIRECT(K29&8&\"T\"),\"B1\")+COUNTIF(INDIRECT(K29&8&\"T\"),\"B2\")+COUNTIF(INDIRECT(K29&8&\"E\"),\"B1\")+COUNTIF(INDIRECT(K29&8&\"E\"),\"B2\")","v":0},{"$f":"COUNTIF(INDIRECT(K29&8&\"T\"),\"C1\")+COUNTIF(INDIRECT(K29&8&\"T\"),\"C2\")+COUNTIF(INDIRECT(K29&8&\"E\"),\"C1\")+COUNTIF(INDIRECT(K29&8&\"E\"),\"C2\")","v":0},{"$f":"COUNTIF(INDIRECT(K29&8&\"T\"),\"D\")+COUNTIF(INDIRECT(K29&8&\"E\"),\"D\")","v":0},{"$f":"COUNTIF(INDIRECT(K29&8&\"T\"),\"E\")+COUNTIF(INDIRECT(K29&8&\"E\"),\"E\")","v":0},{"$f":"IF(M29=0,\"NONE\",VLOOKUP(M29,A29:D33,3,FALSE))","v":"NONE"},"TEL",{"$f":"SUM(E29:I29)","v":0},{"$f":"MAX(A29:A33)","v":0}]
[{"$f":"H30+I30","v":0},null,"Language-II",{"$f":"VIIITM!$D$160+VIIIEM!$D$158","v":0},{"$f":"COUNTIF(INDIRECT(K30&8&\"T\"),\"A1\")+COUNTIF(INDIRECT(K30&8&\"T\"),\"A2\")+COUNTIF(INDIRECT(K30&8&\"E\"),\"A1\")+COUNTIF(INDIRECT(K30&8&\"E\"),\"A2\")","v":0},{"$f":"COUNTIF(INDIRECT(K30&8&\"T\"),\"B1\")+COUNTIF(INDIRECT(K30&8&\"T\"),\"B2\")+COUNTIF(INDIRECT(K30&8&\"E\"),\"B1\")+COUNTIF(INDIRECT(K30&8&\"E\"),\"B2\")","v":0},{"$f":"COUNTIF(INDIRECT(K30&8&\"T\"),\"C1\")+COUNTIF(INDIRECT(K30&8&\"T\"),\"C2\")+COUNTIF(INDIRECT(K30&8&\"E\"),\"C1\")+COUNTIF(INDIRECT(K30&8&\"E\"),\"C2\")","v":0},{"$f":"COUNTIF(INDIRECT(K30&8&\"T\"),\"D\")+COUNTIF(INDIRECT(K30&8&\"E\"),\"D\")","v":0},{"$f":"COUNTIF(INDIRECT(K30&8&\"T\"),\"E\")+COUNTIF(INDIRECT(K30&8&\"E\"),\"E\")","v":0},null,"ENG",{"$f":"SUM(E30:I30)","v":0}]
[{"$f":"H31+I31","v":0},null,"Maths",{"$f":"VIIITM!$D$160+VIIIEM!$D$158","v":0},0,0,0,0,0,null,"MAT",0]
[{"$f":"H32+I32","v":0},null,"Science",{"$f":"VIIITM!$D$160+VIIIEM!$D$158","v":0},0,0,0,0,0,null,"SCI",0]
[{"$f":"H33+I33","v":0},null,"Social Science",{"$f":"VIIITM!$D$160+VIIIEM!$D$158","v":0},0,0,0,0,0,null,"SOC",0]
[{"$f":"H34+I34","v":0},"IX","Language-I",{"$f":"IXTM!$D$160+IXEM!$D$160","v":0},{"$f":"COUNTIF(INDIRECT(K34&9&\"T\"),\"A1\")+COUNTIF(INDIRECT(K34&9&\"T\"),\"A2\")+COUNTIF(INDIRECT(K34&9&\"E\"),\"A1\")+COUNTIF(INDIRECT(K34&9&\"E\"),\"A2\")","v":0},{"$f":"COUNTIF(INDIRECT(K34&9&\"T\"),\"B1\")+COUNTIF(INDIRECT(K34&9&\"T\"),\"B2\")+COUNTIF(INDIRECT(K34&9&\"E\"),\"B1\")+COUNTIF(INDIRECT(K34&9&\"E\"),\"B2\")","v":0},{"$f":"COUNTIF(INDIRECT(K34&9&\"T\"),\"C1\")+COUNTIF(INDIRECT(K34&9&\"T\"),\"C2\")+COUNTIF(INDIRECT(K34&9&\"E\"),\"C1\")+COUNTIF(INDIRECT(K34&9&\"E\"),\"C2\")","v":0},{"$f":"COUNTIF(INDIRECT(K34&9&\"T\"),\"D\")+COUNTIF(INDIRECT(K34&9&\"E\"),\"D\")","v":0},{"$f":"COUNTIF(INDIRECT(K34&9&\"T\"),\"E\")+COUNTIF(INDIRECT(K34&9&\"E\"),\"E\")","v":0},{"$f":"IF(M34=0,\"NONE\",VLOOKUP(M34,A34:D38,3,FALSE))","v":"NONE"},"TEL",0,{"$f":"MAX(A34:A38)","v":0}]
[{"$f":"H35+I35","v":0},null,"Language-II",{"$f":"IXTM!$D$160+IXEM!$D$160","v":0},{"$f":"COUNTIF(INDIRECT(K35&9&\"T\"),\"A1\")+COUNTIF(INDIRECT(K35&9&\"T\"),\"A2\")+COUNTIF(INDIRECT(K35&9&\"E\"),\"A1\")+COUNTIF(INDIRECT(K35&9&\"E\"),\"A2\")","v":0},{"$f":"COUNTIF(INDIRECT(K35&9&\"T\"),\"B1\")+COUNTIF(INDIRECT(K35&9&\"T\"),\"B2\")+COUNTIF(INDIRECT(K35&9&\"E\"),\"B1\")+COUNTIF(INDIRECT(K35&9&\"E\"),\"B2\")","v":0},{"$f":"COUNTIF(INDIRECT(K35&9&\"T\"),\"C1\")+COUNTIF(INDIRECT(K35&9&\"T\"),\"C2\")+COUNTIF(INDIRECT(K35&9&\"E\"),\"C1\")+COUNTIF(INDIRECT(K35&9&\"E\"),\"C2\")","v":0},{"$f":"COUNTIF(INDIRECT(K35&9&\"T\"),\"D\")+COUNTIF(INDIRECT(K35&9&\"E\"),\"D\")","v":0},{"$f":"COUNTIF(INDIRECT(K35&9&\"T\"),\"E\")+COUNTIF(INDIRECT(K35&9&\"E\"),\"E\")","v":0},null,"ENG",0]
[{"$f":"H36+I36","v":0},null,"Maths",{"$f":"IXTM!$D$160+IXEM!$D$160","v":0},{"$f":"COUNTIF(INDIRECT(K36&9&\"T\"),\"A1\")+COUNTIF(INDIRECT(K36&9&\"T\"),\"A2\")+COUNTIF(INDIRECT(K36&9&\"E\"),\"A1\")+COUNTIF(INDIRECT(K36&9&\"E\"),\"A2\")","v":0},{"$f":"COUNTIF(INDIRECT(K36&9&\"T\"),\"B1\")+COUNTIF(INDIRECT(K36&9&\"T\"),\"B2\")+COUNTIF(INDIRECT(K36&9&\"E\"),\"B1\")+COUNTIF(INDIRECT(K36&9&\"E\"),\"B2\")","v":0},{"$f":"COUNTIF(INDIRECT(K36&9&\"T\"),\"C1\")+COUNTIF(INDIRECT(K36&9&\"T\"),\"C2\")+COUNTIF(INDIRECT(K36&9&\"E\"),\"C1\")+COUNTIF(INDIRECT(K36&9&\"E\"),\"C2\")","v":0},{"$f":"COUNTIF(INDIRECT(K36&9&\"T\"),\"D\")+COUNTIF(INDIRECT(K36&9&\"E\"),\"D\")","v":0},{"$f":"COUNTIF(INDIRECT(K36&9&\"T\"),\"E\")+COUNTIF(INDIRECT(K36&9&\"E\"),\"E\")","v":0},null,"MAT",0]
[{"$f":"H37+I37","v":0},null,"Science",{"$f":"IXTM!$D$160+IXEM!$D$160","v":0},{"$f":"COUNTIF(INDIRECT(K37&9&\"T\"),\"A1\")+COUNTIF(INDIRECT(K37&9&\"T\"),\"A2\")+COUNTIF(INDIRECT(K37&9&\"E\"),\"A1\")+COUNTIF(INDIRECT(K37&9&\"E\"),\"A2\")","v":0},{"$f":"COUNTIF(INDIRECT(K37&9&\"T\"),\"B1\")+COUNTIF(INDIRECT(K37&9&\"T\"),\"B2\")+COUNTIF(INDIRECT(K37&9&\"E\"),\"B1\")+COUNTIF(INDIRECT(K37&9&\"E\"),\"B2\")","v":0},{"$f":"COUNTIF(INDIRECT(K37&9&\"T\"),\"C1\")+COUNTIF(INDIRECT(K37&9&\"T\"),\"C2\")+COUNTIF(INDIRECT(K37&9&\"E\"),\"C1\")+COUNTIF(INDIRECT(K37&9&\"E\"),\"C2\")","v":0},{"$f":"COUNTIF(INDIRECT(K37&9&\"T\"),\"D\")+COUNTIF(INDIRECT(K37&9&\"E\"),\"D\")","v":0},{"$f":"COUNTIF(INDIRECT(K37&9&\"T\"),\"E\")+COUNTIF(INDIRECT(K37&9&\"E\"),\"E\")","v":0},null,"SCI",0]
[{"$f":"H38+I38","v":0},null,"Social Science",{"$f":"IXTM!$D$160+IXEM!$D$160","v":0},{"$f":"COUNTIF(INDIRECT(K38&9&\"T\"),\"A1\")+COUNTIF(INDIRECT(K38&9&\"T\"),\"A2\")+COUNTIF(INDIRECT(K38&9&\"E\"),\"A1\")+COUNTIF(INDIRECT(K38&9&\"E\"),\"A2\")","v":0},{"$f":"COUNTIF(INDIRECT(K38&9&\"T\"),\"B1\")+COUNTIF(INDIRECT(K38&9&\"T\"),\"B2\")+COUNTIF(INDIRECT(K38&9&\"E\"),\"B1\")+COUNTIF(INDIRECT(K38&9&\"E\"),\"B2\")","v":0},{"$f":"COUNTIF(INDIRECT(K38&9&\"T\"),\"C1\")+COUNTIF(INDIRECT(K38&9&\"T\"),\"C2\")+COUNTIF(INDIRECT(K38&9&\"E\"),\"C1\")+COUNTIF(INDIRECT(K38&9&\"E\"),\"C2\")","v":0},{"$f":"COUNTIF(INDIRECT(K38&9&\"T\"),\"D\")+COUNTIF(INDIRECT(K38&9&\"E\"),\"D\")","v":0},{"$f":"COUNTIF(INDIRECT(K38&9&\"T\"),\"E\")+COUNTIF(INDIRECT(K38&9&\"E\"),\"E\")","v":0},null,"SOC",0]
[{"$f":"H39+I39","v":0},"X","Language-I",{"$f":"XTM!$D$160+XEM!$D$160","v":0},{"$f":"COUNTIF(INDIRECT(K39&10&\"T\"),\"A1\")+COUNTIF(INDIRECT(K39&10&\"T\"),\"A2\")+COUNTIF(INDIRECT(K39&10&\"E\"),\"A1\")+COUNTIF(INDIRECT(K39&10&\"E\"),\"A2\")","v":0},{"$f":"COUNTIF(INDIRECT(K39&10&\"T\"),\"B1\")+COUNTIF(INDIRECT(K39&10&\"T\"),\"B2\")+COUNTIF(INDIRECT(K39&10&\"E\"),\"B1\")+COUNTIF(INDIRECT(K39&10&\"E\"),\"B2\")","v":0},{"$f":"COUNTIF(INDIRECT(K39&10&\"T\"),\"C1\")+COUNTIF(INDIRECT(K39&10&\"T\"),\"C2\")+COUNTIF(INDIRECT(K39&10&\"E\"),\"C1\")+COUNTIF(INDIRECT(K39&10&\"E\"),\"C2\")","v":0},{"$f":"COUNTIF(INDIRECT(K39&10&\"T\"),\"D\")+COUNTIF(INDIRECT(K39&10&\"E\"),\"D\")","v":0},{"$f":"COUNTIF(INDIRECT(K39&10&\"T\"),\"E\")+COUNTIF(INDIRECT(K39&10&\"E\"),\"E\")","v":0},{"$f":"IF(M39=0,\"NONE\",VLOOKUP(M39,A39:D43,3,FALSE))","v":"NONE"},"TEL",0,{"$f":"MAX(A39:A43)","v":0}]
[{"$f":"H40+I40","v":0},null,"Language-II",{"$f":"XTM!$D$160+XEM!$D$160","v":0},{"$f":"COUNTIF(INDIRECT(K40&10&\"T\"),\"A1\")+COUNTIF(INDIRECT(K40&10&\"T\"),\"A2\")+COUNTIF(INDIRECT(K40&10&\"E\"),\"A1\")+COUNTIF(INDIRECT(K40&10&\"E\"),\"A2\")","v":0},{"$f":"COUNTIF(INDIRECT(K40&10&\"T\"),\"B1\")+COUNTIF(INDIRECT(K40&10&\"T\"),\"B2\")+COUNTIF(INDIRECT(K40&10&\"E\"),\"B1\")+COUNTIF(INDIRECT(K40&10&\"E\"),\"B2\")","v":0},{"$f":"COUNTIF(INDIRECT(K40&10&\"T\"),\"C1\")+COUNTIF(INDIRECT(K40&10&\"T\"),\"C2\")+COUNTIF(INDIRECT(K40&10&\"E\"),\"C1\")+COUNTIF(INDIRECT(K40&10&\"E\"),\"C2\")","v":0},{"$f":"COUNTIF(INDIRECT(K40&10&\"T\"),\"D\")+COUNTIF(INDIRECT(K40&10&\"E\"),\"D\")","v":0},{"$f":"COUNTIF(INDIRECT(K40&10&\"T\"),\"E\")+COUNTIF(INDIRECT(K40&10&\"E\"),\"E\")","v":0},null,"ENG",0]
[{"$f":"H41+I41","v":0},null,"Maths",{"$f":"XTM!$D$160+XEM!$D$160","v":0},{"$f":"COUNTIF(INDIRECT(K41&10&\"T\"),\"A1\")+COUNTIF(INDIRECT(K41&10&\"T\"),\"A2\")+COUNTIF(INDIRECT(K41&10&\"E\"),\"A1\")+COUNTIF(INDIRECT(K41&10&\"E\"),\"A2\")","v":0},{"$f":"COUNTIF(INDIRECT(K41&10&\"T\"),\"B1\")+COUNTIF(INDIRECT(K41&10&\"T\"),\"B2\")+COUNTIF(INDIRECT(K41&10&\"E\"),\"B1\")+COUNTIF(INDIRECT(K41&10&\"E\"),\"B2\")","v":0},{"$f":"COUNTIF(INDIRECT(K41&10&\"T\"),\"C1\")+COUNTIF(INDIRECT(K41&10&\"T\"),\"C2\")+COUNTIF(INDIRECT(K41&10&\"E\"),\"C1\")+COUNTIF(INDIRECT(K41&10&\"E\"),\"C2\")","v":0},{"$f":"COUNTIF(INDIRECT(K41&10&\"T\"),\"D\")+COUNTIF(INDIRECT(K41&10&\"E\"),\"D\")","v":0},{"$f":"COUNTIF(INDIRECT(K41&10&\"T\"),\"E\")+COUNTIF(INDIRECT(K41&10&\"E\"),\"E\")","v":0},null,"MAT",0]
[{"$f":"H42+I42","v":0},null,"Science",{"$f":"XTM!$D$160+XEM!$D$160","v":0},{"$f":"COUNTIF(INDIRECT(K42&10&\"T\"),\"A1\")+COUNTIF(INDIRECT(K42&10&\"T\"),\"A2\")+COUNTIF(INDIRECT(K42&10&\"E\"),\"A1\")+COUNTIF(INDIRECT(K42&10&\"E\"),\"A2\")","v":0},{"$f":"COUNTIF(INDIRECT(K42&10&\"T\"),\"B1\")+COUNTIF(INDIRECT(K42&10&\"T\"),\"B2\")+COUNTIF(INDIRECT(K42&10&\"E\"),\"B1\")+COUNTIF(INDIRECT(K42&10&\"E\"),\"B2\")","v":0},{"$f":"COUNTIF(INDIRECT(K42&10&\"T\"),\"C1\")+COUNTIF(INDIRECT(K42&10&\"T\"),\"C2\")+COUNTIF(INDIRECT(K42&10&\"E\"),\"C1\")+COUNTIF(INDIRECT(K42&10&\"E\"),\"C2\")","v":0},{"$f":"COUNTIF(INDIRECT(K42&10&\"T\"),\"D\")+COUNTIF(INDIRECT(K42&10&\"E\"),\"D\")","v":0},{"$f":"COUNTIF(INDIRECT(K42&10&\"T\"),\"E\")+COUNTIF(INDIRECT(K42&10&\"E\"),\"E\")","v":0},null,"SCI",0]
[{"$f":"H43+I43","v":0},null,"Social Science",{"$f":"XTM!$D$160+XEM!$D$160","v":0},{"$f":"COUNTIF(INDIRECT(K43&10&\"T\"),\"A1\")+COUNTIF(INDIRECT(K43&10&\"T\"),\"A2\")+COUNTIF(INDIRECT(K43&10&\"E\"),\"A1\")+COUNTIF(INDIRECT(K43&10&\"E\"),\"A2\")","v":0},{"$f":"COUNTIF(INDIRECT(K43&10&\"T\"),\"B1\")+COUNTIF(INDIRECT(K43&10&\"T\"),\"B2\")+COUNTIF(INDIRECT(K43&10&\"E\"),\"B1\")+COUNTIF(INDIRECT(K43&10&\"E\"),\"B2\")","v":0},{"$f":"COUNTIF(INDIRECT(K43&10&\"T\"),\"C1\")+COUNTIF(INDIRECT(K43&10&\"T\"),\"C2\")+COUNTIF(INDIRECT(K43&10&\"E\"),\"C1\")+COUNTIF(INDIRECT(K43&10&\"E\"),\"C2\")","v":0},{"$f":"COUNTIF(INDIRECT(K43&10&\"T\"),\"D\")+COUNTIF(INDIRECT(K43&10&\"E\"),\"D\")","v":0},{"$f":"COUNTIF(INDIRECT(K43&10&\"T\"),\"E\")+COUNTIF(INDIRECT(K43&10&\"E\"),\"E\")","v":0},null,"SOC",0]

{"sheet":"VITM","index":2,"n_rows":160,"n_cols":27,"rows_kept":160,"cut":false,"hidden":false,"merged":[[0,0,0,6],[1,0,1,1]]}
["VITM-2018-19"]
[{"$f":"RIGHT(CELL(\"filename\",C3),LEN(CELL(\"filename\",C3))-FIND(\"]\",CELL(\"filename\",C3)))","v":"VITM"},null,null,null,null,null,null,null,null,null,null,null,null,null,null,null,null,null,null,null,null,"GRADES"]
["RNO","ADMN NO","NAME OF THE STUDENT","FATHER'S NAME","CASTE","DOB","DOA","SEX","MUSLIM",null,null,"TEL","HIN","ENG","MAT","SCI","SOC","ATT","TOTAL M","MARKS %",null,"TEL","HIN","ENG","MAT","SCI","SOC"]
[null,null,null,null,null,null,null,null,null,{"$f":"H4&E4","v":""},{"$f":"H4&I4","v":""},null,null,null,null,null,null,null,{"$f":"SUM(L4:Q4)","v":0},{"$f":"S4/600%","v":0},null,{"$f":"fgrade(L4)","v":""},{"$f":"fgrade(M4)","v":""},{"$f":"fgrade(N4)","v":""},{"$f":"fgrade(O4)","v":""},{"$f":"fgrade(P4)","v":""},{"$f":"fgrade(Q4)","v":""}]
[null,null,null,null,null,null,null,null,null,"","",null,null,null,null,null,null,null,{"$f":"SUM(L5:Q5)","v":0},0,null,"","","","","",""]
[null,null,null,null,null,null,null,null,null,"","",null,null,null,null,null,null,null,0,0,null,{"$f":"fgrade(L6)","v":""},"","","","",""]
[null,null,null,null,null,null,null,null,null,"","",null,null,null,null,null,null,null,0,0,null,"","","","","",""]
[null,null,null,null,null,null,null,null,null,"","",null,null,null,null,null,null,null,0,0,null,"","","","","",""]
[null,null,null,null,null,null,null,null,null,"","",null,null,null,null,null,null,null,0,0,null,"","","","","",""]
[null,null,null,null,null,null,null,null,null,"","",null,null,null,null,null,null,null,0,0,null,"","","","","",""]
[null,null,null,null,null,null,null,null,null,"","",null,null,null,null,null,null,null,0,0,null,"","","","","",""]
[null,null,null,null,null,null,null,null,null,"","",null,null,null,null,null,null,null,0,0,null,"","","","","",""]
[null,null,null,null,null,null,null,null,null,"","",null,null,null,null,null,null,null,0,0,null,"","","","","",""]
[null,null,null,null,null,null,null,null,null,"","",null,null,null,null,null,null,null,0,0,null,"","","","","",""]
[null,null,null,null,null,null,null,null,null,"","",null,null,null,null,null,null,null,0,0,null,"","","","","",""]
[null,null,null,null,null,null,null,null,null,"","",null,null,null,null,null,null,null,0,0,null,"","","","","",""]
[null,null,null,null,null,null,null,null,null,"","",null,null,null,null,null,null,null,0,0,null,"","","","","",""]
[null,null,null,null,null,null,null,null,null,"","",null,null,null,null,null,null,null,0,0,null,"","","","","",""]
[null,null,null,null,null,null,null,null,null,"","",null,null,null,null,null,null,null,0,0,null,"","","","","",""]
[null,null,null,null,null,null,null,null,null,"","",null,null,null,null,null,null,null,0,0,null,"","","","","",""]
[null,null,null,null,null,null,null,null,null,"","",null,null,null,null,null,null,null,0,0,null,"","","","","",""]
[null,null,null,null,null,null,null,null,null,"","",null,null,null,null,null,null,null,0,0,null,"","","","","",""]
[null,null,null,null,null,null,null,null,null,"","",null,null,null,null,null,null,null,0,0,null,"","","","","",""]
[null,null,null,null,null,null,null,null,null,"","",null,null,null,null,null,null,null,0,0,null,"","","","","",""]
[null,null,null,null,null,null,null,null,null,"","",null,null,null,null,null,null,null,0,0,null,"","","","","",""]
[null,null,null,null,null,null,null,null,null,"","",null,null,null,null,null,null,null,0,0,null,"","","","","",""]
[null,null,null,null,null,null,null,null,null,"","",null,null,null,null,null,null,null,0,0,null,"","","","","",""]
[null,null,null,null,null,null,null,null,null,"","",null,null,null,null,null,null,null,0,0,null,"","","","","",""]
[null,null,null,null,null,null,null,null,null,null,null,null,null,null,null,null,null,null,0,0,null,"","","","","",""]
[null,null,null,null,null,null,null,null,null,null,null,null,null,null,null,null,null,null,0,0,null,"","","","","",""]
[null,null,null,null,null,null,null,null,null,{"$f":"H31&E31","v":""},{"$f":"H31&I31","v":""},null,null,null,null,null,null,null,0,0]
[null,null,null,null,null,null,null,null,null,"","",null,null,null,null,null,null,null,0,0]
[null,null,null,null,null,null,null,null,null,"","",null,null,null,null,null,null,null,0,0]
[null,null,null,null,null,null,null,null,null,"","",null,null,null,null,null,null,null,0,0]
[null,null,null,null,null,null,null,null,null,"","",null,null,null,null,null,null,null,0,0]
[null,null,null,null,null,null,null,null,null,"","",null,null,null,null,null,null,null,{"$f":"SUM(L36:Q36)","v":0},{"$f":"S36/600%","v":0}]
[null,null,null,null,null,null,null,null,null,"","",null,null,null,null,null,null,null,0,0]
[null,null,null,null,null,null,null,null,null,"","",null,null,null,null,null,null,null,0,0]
[null,null,null,null,null,null,null,null,null,"","",null,null,null,null,null,null,null,0,0]
[null,null,null,null,null,null,null,null,null,"","",null,null,null,null,null,null,null,0,0]
[null,null,null,null,null,null,null,null,null,"","",null,null,null,null,null,null,null,0,0]
[null,null,null,null,null,null,null,null,null,"","",null,null,null,null,null,null,null,0,0]
[null,null,null,null,null,null,null,null,null,"","",null,null,null,null,null,null,null,0,0]
[null,null,null,null,null,null,null,null,null,"","",null,null,null,null,null,null,null,0,0]
[null,null,null,null,null,null,null,null,null,"","",null,null,null,null,null,null,null,0,0]
[null,null,null,null,null,null,null,null,null,"","",null,null,null,null,null,null,null,0,0]
[null,null,null,null,null,null,null,null,null,"","",null,null,null,null,null,null,null,0,0]
[null,null,null,null,null,null,null,null,null,"","",null,null,null,null,null,null,null,0,0]
[null,null,null,null,null,null,null,null,null,"","",null,null,null,null,null,null,null,0,0]
[null,null,null,null,null,null,null,null,null,"","",null,null,null,null,null,null,null,0,0]
[null,null,null,null,null,null,null,null,null,"","",null,null,null,null,null,null,null,0,0]
[null,null,null,null,null,null,null,null,null,"","",null,null,null,null,null,null,null,0,0]
[null,null,null,null,null,null,null,null,null,"","",null,null,null,null,null,null,null,0,0]
[null,null,null,null,null,null,null,null,null,"","",null,null,null,null,null,null,null,0,0]
[null,null,null,null,null,null,null,null,null,"","",null,null,null,null,null,null,null,0,0]
[null,null,null,null,null,null,null,null,null,"","",null,null,null,null,null,null,null,0,0]
[null,null,null,null,null,null,null,null,null,"","",null,null,null,null,null,null,null,0,0]
[null,null,null,null,null,null,null,null,null,"","",null,null,null,null,null,null,null,0,0]
[null,null,null,null,null,null,null,null,null,"","",null,null,null,null,null,null,null,0,0]
[null,null,null,null,null,null,null,null,null,"","",null,null,null,null,null,null,null,0,0]
[null,null,null,null,null,null,null,null,null,"","",null,null,null,null,null,null,null,0,0]
[null,null,null,null,null,null,null,null,null,"","",null,null,null,null,null,null,null,0,0]
[null,null,null,null,null,null,null,null,null,{"$f":"H63&E63","v":""},{"$f":"H63&I63","v":""},null,null,null,null,null,null,null,0,0]
[null,null,null,null,null,null,null,null,null,"","",null,null,null,null,null,null,null,0,0]
[null,null,null,null,null,null,null,null,null,"","",null,null,null,null,null,null,null,0,0]
[null,null,null,null,null,null,null,null,null,"","",null,null,null,null,null,null,null,0,0]
[null,null,null,null,null,null,null,null,null,"","",null,null,null,null,null,null,null,0,0]
[null,null,null,null,null,null,null,null,null,"","",null,null,null,null,null,null,null,{"$f":"SUM(L68:Q68)","v":0},{"$f":"S68/600%","v":0}]
[null,null,null,null,null,null,null,null,null,"","",null,null,null,null,null,null,null,0,0]
[null,null,null,null,null,null,null,null,null,"","",null,null,null,null,null,null,null,0,0]
[null,null,null,null,null,null,null,null,null,"","",null,null,null,null,null,null,null,0,0]
[null,null,null,null,null,null,null,null,null,"","",null,null,null,null,null,null,null,0,0]
[null,null,null,null,null,null,null,null,null,"","",null,null,null,null,null,null,null,0,0]
[null,null,null,null,null,null,null,null,null,"","",null,null,null,null,null,null,null,0,0]
[null,null,null,null,null,null,null,null,null,"","",null,null,null,null,null,null,null,0,0]
[null,null,null,null,null,null,null,null,null,"","",null,null,null,null,null,null,null,0,0]
[null,null,null,null,null,null,null,null,null,"","",null,null,null,null,null,null,null,0,0]
[null,null,null,null,null,null,null,null,null,"","",null,null,null,null,null,null,null,0,0]
[null,null,null,null,null,null,null,null,null,"","",null,null,null,null,null,null,null,0,0]
[null,null,null,null,null,null,null,null,null,"","",null,null,null,null,null,null,null,0,0]
[null,null,null,null,null,null,null,null,null,"","",null,null,null,null,null,null,null,0,0]
[null,null,null,null,null,null,null,null,null,"","",null,null,null,null,null,null,null,0,0]
[null,null,null,null,null,null,null,null,null,"","",null,null,null,null,null,null,null,0,0]
[null,null,null,null,null,null,null,null,null,"","",null,null,null,null,null,null,null,0,0]
[null,null,null,null,null,null,null,null,null,"","",null,null,null,null,null,null,null,0,0]
[null,null,null,null,null,null,null,null,null,"","",null,null,null,null,null,null,null,0,0]
[null,null,null,null,null,null,null,null,null,"","",null,null,null,null,null,null,null,0,0]
[null,null,null,null,null,null,null,null,null,"","",null,null,null,null,null,null,null,0,0]
[null,null,null,null,null,null,null,null,null,"","",null,null,null,null,null,null,null,0,0]
[null,null,null,null,null,null,null,null,null,"","",null,null,null,null,null,null,null,0,0]
[null,null,null,null,null,null,null,null,null,"","",null,null,null,null,null,null,null,0,0]
[null,null,null,null,null,null,null,null,null,"","",null,null,null,null,null,null,null,0,0]
[null,null,null,null,null,null,null,null,null,"","",null,null,null,null,null,null,null,0,0]
[null,null,null,null,null,null,null,null,null,"","",null,null,null,null,null,null,null,0,0]
[null,null,null,null,null,null,null,null,null,{"$f":"H95&E95","v":""},{"$f":"H95&I95","v":""},null,null,null,null,null,null,null,0,0]
[null,null,null,null,null,null,null,null,null,"","",null,null,null,null,null,null,null,0,0]
[null,null,null,null,null,null,null,null,null,"","",null,null,null,null,null,null,null,0,0]
[null,null,null,null,null,null,null,null,null,"","",null,null,null,null,null,null,null,0,0]
[null,null,null,null,null,null,null,null,null,"","",null,null,null,null,null,null,null,0,0]
[null,null,null,null,null,null,null,null,null,"","",null,null,null,null,null,null,null,{"$f":"SUM(L100:Q100)","v":0},{"$f":"S100/600%","v":0}]
[null,null,null,null,null,null,null,null,null,"","",null,null,null,null,null,null,null,0,0]
[null,null,null,null,null,null,null,null,null,"","",null,null,null,null,null,null,null,0,0]
[null,null,null,null,null,null,null,null,null,"","",null,null,null,null,null,null,null,0,0]
[null,null,null,null,null,null,null,null,null,"","",null,null,null,null,null,null,null,0,0]
[null,null,null,null,null,null,null,null,null,"","",null,null,null,null,null,null,null,0,0]
[null,null,null,null,null,null,null,null,null,"","",null,null,null,null,null,null,null,0,0]
[null,null,null,null,null,null,null,null,null,"","",null,null,null,null,null,null,null,0,0]
[null,null,null,null,null,null,null,null,null,"","",null,null,null,null,null,null,null,0,0]
[null,null,null,null,null,null,null,null,null,"","",null,null,null,null,null,null,null,0,0]
[null,null,null,null,null,null,null,null,null,"","",null,null,null,null,null,null,null,0,0]
[null,null,null,null,null,null,null,null,null,"","",null,null,null,null,null,null,null,0,0]
[null,null,null,null,null,null,null,null,null,"","",null,null,null,null,null,null,null,0,0]
[null,null,null,null,null,null,null,null,null,"","",null,null,null,null,null,null,null,0,0]
[null,null,null,null,null,null,null,null,null,"","",null,null,null,null,null,null,null,0,0]
[null,null,null,null,null,null,null,null,null,"","",null,null,null,null,null,null,null,0,0]
[null,null,null,null,null,null,null,null,null,"","",null,null,null,null,null,null,null,0,0]
[null,null,null,null,null,null,null,null,null,"","",null,null,null,null,null,null,null,0,0]
[null,null,null,null,null,null,null,null,null,"","",null,null,null,null,null,null,null,0,0]
[null,null,null,null,null,null,null,null,null,"","",null,null,null,null,null,null,null,0,0]
[null,null,null,null,null,null,null,null,null,"","",null,null,null,null,null,null,null,0,0]
[null,null,null,null,null,null,null,null,null,"","",null,null,null,null,null,null,null,0,0]
[null,null,null,null,null,null,null,null,null,"","",null,null,null,null,null,null,null,0,0]
[null,null,null,null,null,null,null,null,null,"","",null,null,null,null,null,null,null,0,0]
[null,null,null,null,null,null,null,null,null,"","",null,null,null,null,null,null,null,0,0]
[null,null,null,null,null,null,null,null,null,"","",null,null,null,null,null,null,null,0,0]
[null,null,null,null,null,null,null,null,null,"","",null,null,null,null,null,null,null,0,0]
[null,null,null,null,null,null,null,null,null,{"$f":"H127&E127","v":""},{"$f":"H127&I127","v":""},null,null,null,null,null,null,null,0,0]
[null,null,null,null,null,null,null,null,null,"","",null,null,null,null,null,null,null,0,0]
[null,null,null,null,null,null,null,null,null,"","",null,null,null,null,null,null,null,0,0]
[null,null,null,null,null,null,null,null,null,"","",null,null,null,null,null,null,null,0,0]
[null,null,null,null,null,null,null,null,null,"","",null,null,null,null,null,null,null,0,0]
[null,null,null,null,null,null,null,null,null,"","",null,null,null,null,null,null,null,{"$f":"SUM(L132:Q132)","v":0},{"$f":"S132/600%","v":0}]
[null,null,null,null,null,null,null,null,null,"","",null,null,null,null,null,null,null,0,0]
[null,null,null,null,null,null,null,null,null,"","",null,null,null,null,null,null,null,0,0]
[null,null,null,null,null,null,null,null,null,"","",null,null,null,null,null,null,null,0,0]
[null,null,null,null,null,null,null,null,null,"","",null,null,null,null,null,null,null,0,0]
[null,null,null,null,null,null,null,null,null,"","",null,null,null,null,null,null,null,0,0]
[null,null,null,null,null,null,null,null,null,"","",null,null,null,null,null,null,null,0,0]
[null,null,null,null,null,null,null,null,null,"","",null,null,null,null,null,null,null,0,0]
[null,null,null,null,null,null,null,null,null,"","",null,null,null,null,null,null,null,0,0]
[null,null,null,null,null,null,null,null,null,"","",null,null,null,null,null,null,null,0,0]
[null,null,null,null,null,null,null,null,null,"","",null,null,null,null,null,null,null,0,0]
[null,null,null,null,null,null,null,null,null,"","",null,null,null,null,null,null,null,0,0]
[null,null,null,null,null,null,null,null,null,"","",null,null,null,null,null,null,null,0,0]
[null,null,null,null,null,null,null,null,null,"","",null,null,null,null,null,null,null,0,0]
[null,null,null,null,null,null,null,null,null,"","",null,null,null,null,null,null,null,0,0]
[null,null,null,null,null,null,null,null,null,"","",null,null,null,null,null,null,null,0,0]
[null,null,null,null,null,null,null,null,null,"","",null,null,null,null,null,null,null,0,0]
[null,null,null,null,null,null,null,null,null,"","",null,null,null,null,null,null,null,0,0]
[null,null,null,null,null,null,null,null,null,"","",null,null,null,null,null,null,null,0,0]
[null,null,null,null,null,null,null,null,null,"","",null,null,null,null,null,null,null,0,0]
[null,null,null,null,null,null,null,null,null,"","",null,null,null,null,null,null,null,0,0]
[null,null,null,null,null,null,null,null,null,"","",null,null,null,null,null,null,null,0,0]
[".",null,null,null,null,null,null,null,null,null,null,null,null,null,null,null,"ATB","ATB"]
[".","BOYS","GIRLS","TOTAL",null,null,null,null,null,null,null,null,null,null,null,null,{"$f":"SUMIF(H4:H153,\"B\",R4:R153)","v":0},{"$f":"SUMIF(H4:H153,\"G\",R4:R153)","v":0},{"$f":"SUM(Q155:R155)","v":0}]
["SC",{"$f":"COUNTIF($J$4:$J$153,\"BSC\")","v":0},{"$f":"COUNTIF($J$4:$J$153,\"GSC\")","v":0},{"$f":"SUM(B156:C156)","v":0}]
["ST",{"$f":"COUNTIF($J$4:$J$153,\"BST\")","v":0},{"$f":"COUNTIF($J$4:$J$153,\"GST\")","v":0},{"$f":"SUM(B157:C157)","v":0}]
["BC",{"$f":"COUNTIF($J$4:$J$153,\"BBC\")","v":0},{"$f":"COUNTIF($J$4:$J$153,\"GBC\")","v":0},{"$f":"SUM(B158:C158)","v":0},null,"MIN BOY","MIN GIRL"]
["OC",{"$f":"COUNTIF($J$4:$J$153,\"BOC\")","v":0},{"$f":"COUNTIF($J$4:$J$153,\"GOC\")","v":0},{"$f":"SUM(B159:C159)","v":0},null,{"$f":"COUNTIF(K4:K153,\"BY\")","v":0},{"$f":"COUNTIF(K4:K153,\"GY\")","v":0}]
["TOTAL",{"$f":"SUM(B156:B159)","v":0},{"$f":"SUM(C156:C159)","v":0},{"$f":"SUM(B160:C160)","v":0}]

{"sheet":"VIITM","index":3,"n_rows":160,"n_cols":27,"rows_kept":160,"cut":false,"hidden":false,"merged":[[0,0,0,6],[1,0,1,1]]}
["VIITM-2018-19"]
[{"$f":"RIGHT(CELL(\"filename\",C3),LEN(CELL(\"filename\",C3))-FIND(\"]\",CELL(\"filename\",C3)))","v":"VIITM"},null,null,null,null,null,null,null,null,null,null,null,null,null,null,null,null,null,null,null,null,"GRADES"]
["RNO","ADMN NO","NAME OF THE STUDENT","FATHER'S NAME","CASTE","DOB","DOA","SEX","MUSLIM",null,null,"TEL","HIN","ENG","MAT","SCI","SOC","ATT","TOTAL M","MARKS %",null,"TEL","HIN","ENG","MAT","SCI","SOC"]
[null,null,null,null,null,null,null,null,null,{"$f":"TRIM(H4&E4)","v":""},{"$f":"H4&I4","v":""},null,null,null,null,null,null,null,{"$f":"SUM(L4:Q4)","v":0},{"$f":"S4/600%","v":0},null,{"$f":"fgrade(L4)","v":""},{"$f":"fgrade(M4)","v":""},{"$f":"fgrade(N4)","v":""},{"$f":"fgrade(O4)","v":""},{"$f":"fgrade(P4)","v":""},{"$f":"fgrade(Q4)","v":""}]
[null,null,null,null,null,null,null,null,null,{"$f":"TRIM(H5&E5)","v":""},{"$f":"H5&I5","v":""},null,null,null,null,null,null,null,{"$f":"SUM(L5:Q5)","v":0},0,null,{"$f":"fgrade(L5)","v":""},{"$f":"fgrade(M5)","v":""},{"$f":"fgrade(N5)","v":""},{"$f":"fgrade(O5)","v":""},{"$f":"fgrade(P5)","v":""},{"$f":"fgrade(Q5)","v":""}]
[null,null,null,null,null,null,null,null,null,"","",null,null,null,null,null,null,null,0,0,null,"","","","","",""]
[null,null,null,null,null,null,null,null,null,{"$f":"TRIM(H7&E7)","v":""},{"$f":"H7&I7","v":""},null,null,null,null,null,null,null,0,0,null,"","","","","",""]
[null,null,null,null,null,null,null,null,null,"","",null,null,null,null,null,null,null,0,0,null,"","","","","",""]
[null,null,null,null,null,null,null,null,null,"","",null,null,null,null,null,null,null,0,0,null,"","","","","",""]
[null,null,null,null,null,null,null,null,null,"","",null,null,null,null,null,null,null,0,0,null,"","","","","",""]
[null,null,null,null,null,null,null,null,null,"","",null,null,null,null,null,null,null,0,0,null,{"$f":"fgrade(L11)","v":""},"","","","",""]
[null,null,null,null,null,null,null,null,null,"","",null,null,null,null,null,null,null,0,0,null,"","","","","",""]
[null,null,null,null,null,null,null,null,null,"","",null,null,null,null,null,null,null,0,0,null,"","","","","",""]
[null,null,null,null,null,null,null,null,null,"","",null,null,null,null,null,null,null,0,0,null,"","","","","",""]
[null,null,null,null,null,null,null,null,null,"","",null,null,null,null,null,null,null,0,0,null,"","","","","",""]
[null,null,null,null,null,null,null,null,null,"","",null,null,null,null,null,null,null,0,0,null,"","","","","",""]
[null,null,null,null,null,null,null,null,null,"","",null,null,null,null,null,null,null,0,0,null,"","","","","",""]
[null,null,null,null,null,null,null,null,null,"","",null,null,null,null,null,null,null,0,0,null,"","","","","",""]
[null,null,null,null,null,null,null,null,null,"","",null,null,null,null,null,null,null,0,0,null,"","","","","",""]
[null,null,null,null,null,null,null,null,null,"","",null,null,null,null,null,null,null,0,0,null,"","","","","",""]
[null,null,null,null,null,null,null,null,null,"","",null,null,null,null,null,null,null,0,0,null,"","","","","",""]
[null,null,null,null,null,null,null,null,null,"","",null,null,null,null,null,null,null,0,0,null,"","","","","",""]
[null,null,null,null,null,null,null,null,null,"","",null,null,null,null,null,null,null,0,0,null,"","","","","",""]
[null,null,null,null,null,null,null,null,null,"","",null,null,null,null,null,null,null,0,0,null,"","","","","",""]
[null,null,null,null,null,null,null,null,null,"","",null,null,null,null,null,null,null,0,0,null,"","","","","",""]
[null,null,null,null,null,null,null,null,null,"","",null,null,null,null,null,null,null,0,0,null,"","","","","",""]
[null,null,null,null,null,null,null,null,null,"","",null,null,null,null,null,null,null,0,0,null,"","","","","",""]
[null,null,null,null,null,null,null,null,null,"","",null,null,null,null,null,null,null,0,0,null,"","","","","",""]
[null,null,null,null,null,null,null,null,null,"","",null,null,null,null,null,null,null,0,0,null,"","","","","",""]
[null,null,null,null,null,null,null,null,null,"","",null,null,null,null,null,null,null,0,0,null,"","","","","",""]
[null,null,null,null,null,null,null,null,null,"","",null,null,null,null,null,null,null,{"$f":"SUM(L31:R31)","v":0},0,null,"","","","","",""]
[null,null,null,null,null,null,null,null,null,"","",null,null,null,null,null,null,null,0,0,null,"","","","","",""]
[null,null,null,null,null,null,null,null,null,"","",null,null,null,null,null,null,null,0,0,null,"","","","","",""]
[null,null,null,null,null,null,null,null,null,"","",null,null,null,null,null,null,null,0,0,null,"","","","","",""]
[null,null,null,null,null,null,null,null,null,"","",null,null,null,null,null,null,null,0,0,null,"","","","","",""]
[null,null,null,null,null,null,null,null,null,"","",null,null,null,null,null,null,null,0,0,null,"","","","","",""]
[null,null,null,null,null,null,null,null,null,"","",null,null,null,null,null,null,null,0,0,null,"","","","","",""]
[null,null,null,null,null,null,null,null,null,"","",null,null,null,null,null,null,null,0,0,null,"","","","","",""]
[null,null,null,null,null,null,null,null,null,"","",null,null,null,null,null,null,null,0,0,null,"","","","","",""]
[null,null,null,null,null,null,null,null,null,"","",null,null,null,null,null,null,null,0,0,null,"","","","","",""]
[null,null,null,null,null,null,null,null,null,"","",null,null,null,null,null,null,null,0,0,null,"","","","","",""]
[null,null,null,null,null,null,null,null,null,"","",null,null,null,null,null,null,null,0,0,null,"","","","","",""]
[null,null,null,null,null,null,null,null,null,"","",null,null,null,null,null,null,null,0,0,null,"","","","","",""]
[null,null,null,null,null,null,null,null,null,"","",null,null,null,null,null,null,null,0,0,null,"","","","","",""]
[null,null,null,null,null,null,null,null,null,"","",null,null,null,null,null,null,null,0,0,null,"","","","","",""]
[null,null,null,null,null,null,null,null,null,"","",null,null,null,null,null,null,null,0,0,null,"","","","","",""]
[null,null,null,null,null,null,null,null,null,"","",null,null,null,null,null,null,null,0,0,null,"","","","","",""]
[null,null,null,null,null,null,null,null,null,"","",null,null,null,null,null,null,null,0,0,null,"","","","","",""]
[null,null,null,null,null,null,null,null,null,"","",null,null,null,null,null,null,null,0,0,null,"","","","","",""]
[null,null,null,null,null,null,null,null,null,"","",null,null,null,null,null,null,null,0,0,null,"","","","","",""]
[null,null,null,null,null,null,null,null,null,"","",null,null,null,null,null,null,null,0,0,null,"","","","","",""]
[null,null,null,null,null,null,null,null,null,"","",null,null,null,null,null,null,null,0,0,null,"","","","","",""]
[null,null,null,null,null,null,null,null,null,"","",null,null,null,null,null,null,null,0,0,null,"","","","","",""]
[null,null,null,null,null,null,null,null,null,"","",null,null,null,null,null,null,null,0,0,null,"","","","","",""]
[null,null,null,null,null,null,null,null,null,"","",null,null,null,null,null,null,null,0,0,null,"","","","","",""]
[null,null,null,null,null,null,null,null,null,"","",null,null,null,null,null,null,null,0,0,null,"","","","","",""]
[null,null,null,null,null,null,null,null,null,"","",null,null,null,null,null,null,null,0,0,null,"","","","","",""]
[null,null,null,null,null,null,null,null,null,"","",null,null,null,null,null,null,null,{"$f":"SUM(L58:Q58)","v":0},0,null,"","","","","",""]
[null,null,null,null,null,null,null,null,null,"","",null,null,null,null,null,null,null,0,0,null,"","","","","",""]
[null,null,null,null,null,null,null,null,null,"","",null,null,null,null,null,null,null,0,0,null,"","","","","",""]
[null,null,null,null,null,null,null,null,null,{"$f":"TRIM(H61&E61)","v":""},{"$f":"H61&I61","v":""},null,null,null,null,null,null,null,0,0,null,"","","","","",""]
[null,null,null,null,null,null,null,null,null,"","",null,null,null,null,null,null,null,{"$f":"SUM(L62:Q62)","v":0},{"$f":"S62/600%","v":0},null,"","","","","",""]
[null,null,null,null,null,null,null,null,null,"","",null,null,null,null,null,null,null,0,0,null,"","","","","",""]
[null,null,null,null,null,null,null,null,null,"","",null,null,null,null,null,null,null,0,0,null,"","","","","",""]
[null,null,null,null,null,null,null,null,null,"","",null,null,null,null,null,null,null,0,0,null,"","","","","",""]
[null,null,null,null,null,null,null,null,null,"","",null,null,null,null,null,null,null,0,0,null,"","","","","",""]
[null,null,null,null,null,null,null,null,null,"","",null,null,null,null,null,null,null,0,0,null,"","","","","",""]
[null,null,null,null,null,null,null,null,null,"","",null,null,null,null,null,null,null,0,0,null,"","","","","",""]
[null,null,null,null,null,null,null,null,null,"","",null,null,null,null,null,null,null,0,0,null,{"$f":"fgrade(L69)","v":""},{"$f":"fgrade(M69)","v":""},{"$f":"fgrade(N69)","v":""},{"$f":"fgrade(O69)","v":""},{"$f":"fgrade(P69)","v":""},{"$f":"fgrade(Q69)","v":""}]
[null,null,null,null,null,null,null,null,null,"","",null,null,null,null,null,null,null,0,0,null,"","","","","",""]
[null,null,null,null,null,null,null,null,null,"","",null,null,null,null,null,null,null,0,0,null,"","","","","",""]
[null,null,null,null,null,null,null,null,null,"","",null,null,null,null,null,null,null,0,0,null,"","","","","",""]
[null,null,null,null,null,null,null,null,null,"","",null,null,null,null,null,null,null,{"$f":"SUM(L73:Q73)","v":0},0,null,"","","","","",""]
[null,null,null,null,null,null,null,null,null,"","",null,null,null,null,null,null,null,0,0,null,"","","","","",""]
[null,null,null,null,null,null,null,null,null,"","",null,null,null,null,null,null,null,0,0,null,"","","","","",""]
[null,null,null,null,null,null,null,null,null,"","",null,null,null,null,null,null,null,0,0,null,"","","","","",""]
[null,null,null,null,null,null,null,null,null,"","",null,null,null,null,null,null,null,0,0,null,"","","","","",""]
[null,null,null,null,null,null,null,null,null,"","",null,null,null,null,null,null,null,0,0,null,"","","","","",""]
[null,null,null,null,null,null,null,null,null,"","",null,null,null,null,null,null,null,0,0,null,"","","","","",""]
[null,null,null,null,null,null,null,null,null,"","",null,null,null,null,null,null,null,0,0,null,"","","","","",""]
[null,null,null,null,null,null,null,null,null,"","",null,null,null,null,null,null,null,0,0,null,"","","","","",""]
[null,null,null,null,null,null,null,null,null,"","",null,null,null,null,null,null,null,0,0,null,"","","","","",""]
[null,null,null,null,null,null,null,null,null,"","",null,null,null,null,null,null,null,0,0,null,"","","","","",""]
[null,null,null,null,null,null,null,null,null,"","",null,null,null,null,null,null,null,0,0,null,"","","","","",""]
[null,null,null,null,null,null,null,null,null,"","",null,null,null,null,null,null,null,0,0,null,"","","","","",""]
[null,null,null,null,null,null,null,null,null,"","",null,null,null,null,null,null,null,0,0,null,"","","","","",""]
[null,null,null,null,null,null,null,null,null,"","",null,null,null,null,null,null,null,0,0,null,"","","","","",""]
[null,null,null,null,null,null,null,null,null,"","",null,null,null,null,null,null,null,0,0,null,"","","","","",""]
[null,null,null,null,null,null,null,null,null,"","",null,null,null,null,null,null,null,0,0,null,"","","","","",""]
[null,null,null,null,null,null,null,null,null,"","",null,null,null,null,null,null,null,0,0,null,"","","","","",""]
[null,null,null,null,null,null,null,null,null,"","",null,null,null,null,null,null,null,0,0,null,"","","","","",""]
[null,null,null,null,null,null,null,null,null,"","",null,null,null,null,null,null,null,0,0,null,"","","","","",""]
[null,null,null,null,null,null,null,null,null,"","",null,null,null,null,null,null,null,0,0,null,"","","","","",""]
[null,null,null,null,null,null,null,null,null,"","",null,null,null,null,null,null,null,0,0,null,"","","","","",""]
[null,null,null,null,null,null,null,null,null,"","",null,null,null,null,null,null,null,0,0,null,"","","","","",""]
[null,null,null,null,null,null,null,null,null,"","",null,null,null,null,null,null,null,0,0,null,"","","","","",""]
[null,null,null,null,null,null,null,null,null,"","",null,null,null,null,null,null,null,0,0,null,"","","","","",""]
[null,null,null,null,null,null,null,null,null,"","",null,null,null,null,null,null,null,0,0,null,"","","","","",""]
[null,null,null,null,null,null,null,null,null,"","",null,null,null,null,null,null,null,0,0,null,"","","","","",""]
[null,null,null,null,null,null,null,null,null,"","",null,null,null,null,null,null,null,0,0,null,"","","","","",""]
[null,null,null,null,null,null,null,null,null,"","",null,null,null,null,null,null,null,0,0,null,"","","","","",""]
[null,null,null,null,null,null,null,null,null,"","",null,null,null,null,null,null,null,0,0,null,"","","","","",""]
[null,null,null,null,null,null,null,null,null,"","",null,null,null,null,null,null,null,0,0,null,"","","","","",""]
[null,null,null,null,null,null,null,null,null,"","",null,null,null,null,null,null,null,0,0,null,"","","","","",""]
[null,null,null,null,null,null,null,null,null,"","",null,null,null,null,null,null,null,0,0,null,"","","","","",""]
[null,null,null,null,null,null,null,null,null,"","",null,null,null,null,null,null,null,0,0,null,"","","","","",""]
[null,null,null,null,null,null,null,null,null,"","",null,null,null,null,null,null,null,0,0,null,"","","","","",""]
[null,null,null,null,null,null,null,null,null,"","",null,null,null,null,null,null,null,0,0,null,"","","","","",""]
[null,null,null,null,null,null,null,null,null,"","",null,null,null,null,null,null,null,0,0,null,"","","","","",""]
[null,null,null,null,null,null,null,null,null,"","",null,null,null,null,null,null,null,0,0,null,"","","","","",""]
[null,null,null,null,null,null,null,null,null,"","",null,null,null,null,null,null,null,0,0,null,"","","","","",""]
[null,null,null,null,null,null,null,null,null,"","",null,null,null,null,null,null,null,0,0,null,"","","","","",""]
[null,null,null,null,null,null,null,null,null,"","",null,null,null,null,null,null,null,0,0,null,"","","","","",""]
[null,null,null,null,null,null,null,null,null,"","",null,null,null,null,null,null,null,0,0,null,"","","","","",""]
[null,null,null,null,null,null,null,null,null,"","",null,null,null,null,null,null,null,0,0,null,"","","","","",""]
[null,null,null,null,null,null,null,null,null,"","",null,null,null,null,null,null,null,0,0,null,"","","","","",""]
[null,null,null,null,null,null,null,null,null,"","",null,null,null,null,null,null,null,0,0,null,"","","","","",""]
[null,null,null,null,null,null,null,null,null,"","",null,null,null,null,null,null,null,0,0,null,"","","","","",""]
[null,null,null,null,null,null,null,null,null,"","",null,null,null,null,null,null,null,0,0,null,"","","","","",""]
[null,null,null,null,null,null,null,null,null,"","",null,null,null,null,null,null,null,0,0,null,"","","","","",""]
[null,null,null,null,null,null,null,null,null,"","",null,null,null,null,null,null,null,0,0,null,"","","","","",""]
[null,null,null,null,null,null,null,null,null,"","",null,null,null,null,null,null,null,0,0,null,"","","","","",""]
[null,null,null,null,null,null,null,null,null,"","",null,null,null,null,null,null,null,0,0,null,"","","","","",""]
[null,null,null,null,null,null,null,null,null,"","",null,null,null,null,null,null,null,0,0,null,"","","","","",""]
[null,null,null,null,null,null,null,null,null,{"$f":"TRIM(H125&E125)","v":""},{"$f":"H125&I125","v":""},null,null,null,null,null,null,null,0,0,null,"","","","","",""]
[null,null,null,null,null,null,null,null,null,"","",null,null,null,null,null,null,null,{"$f":"SUM(L126:Q126)","v":0},{"$f":"S126/600%","v":0},null,"","","","","",""]
[null,null,null,null,null,null,null,null,null,"","",null,null,null,null,null,null,null,0,0,null,"","","","","",""]
[null,null,null,null,null,null,null,null,null,"","",null,null,null,null,null,null,null,0,0,null,"","","","","",""]
[null,null,null,null,null,null,null,null,null,"","",null,null,null,null,null,null,null,0,0,null,"","","","","",""]
[null,null,null,null,null,null,null,null,null,"","",null,null,null,null,null,null,null,0,0,null,"","","","","",""]
[null,null,null,null,null,null,null,null,null,"","",null,null,null,null,null,null,null,0,0,null,"","","","","",""]
[null,null,null,null,null,null,null,null,null,"","",null,null,null,null,null,null,null,0,0,null,"","","","","",""]
[null,null,null,null,null,null,null,null,null,"","",null,null,null,null,null,null,null,0,0,null,{"$f":"fgrade(L133)","v":""},{"$f":"fgrade(M133)","v":""},{"$f":"fgrade(N133)","v":""},{"$f":"fgrade(O133)","v":""},{"$f":"fgrade(P133)","v":""},{"$f":"fgrade(Q133)","v":""}]
[null,null,null,null,null,null,null,null,null,"","",null,null,null,null,null,null,null,0,0,null,"","","","","",""]
[null,null,null,null,null,null,null,null,null,"","",null,null,null,null,null,null,null,0,0,null,"","","","","",""]
[null,null,null,null,null,null,null,null,null,"","",null,null,null,null,null,null,null,0,0,null,"","","","","",""]
[null,null,null,null,null,null,null,null,null,"","",null,null,null,null,null,null,null,0,0,null,"","","","","",""]
[null,null,null,null,null,null,null,null,null,"","",null,null,null,null,null,null,null,0,0,null,"","","","","",""]
[null,null,null,null,null,null,null,null,null,null,null,null,null,null,null,null,null,null,{"$f":"SUM(L139:Q139)","v":0},{"$f":"S139/600%","v":0},null,{"$f":"fgrade(L139)","v":""},{"$f":"fgrade(M139)","v":""},{"$f":"fgrade(N139)","v":""},{"$f":"fgrade(O139)","v":""},{"$f":"fgrade(P139)","v":""},{"$f":"fgrade(Q139)","v":""}]
[null,null,null,null,null,null,null,null,null,null,null,null,null,null,null,null,null,null,0,0,null,"","","","","",""]
[null,null,null,null,null,null,null,null,null,null,null,null,null,null,null,null,null,null,0,0,null,"","","","","",""]
[null,null,null,null,null,null,null,null,null,null,null,null,null,null,null,null,null,null,0,0,null,"","","","","",""]
[null,null,null,null,null,null,null,null,null,null,null,null,null,null,null,null,null,null,0,0,null,"","","","","",""]
[null,null,null,null,null,null,null,null,null,null,null,null,null,null,null,null,null,null,0,0,null,"","","","","",""]
[null,null,null,null,null,null,null,null,null,null,null,null,null,null,null,null,null,null,0,0,null,"","","","","",""]
[null,null,null,null,null,null,null,null,null,"","",null,null,null,null,null,null,null,0,0,null,"","","","","",""]
[null,null,null,null,null,null,null,null,null,"","",null,null,null,null,null,null,null,0,0,null,"","","","","",""]
[null,null,null,null,null,null,null,null,null,"","",null,null,null,null,null,null,null,0,0,null,"","","","","",""]
[null,null,null,null,null,null,null,null,null,"","",null,null,null,null,null,null,null,0,0,null,"","","","","",""]
[null,null,null,null,null,null,null,null,null,"","",null,null,null,null,null,null,null,0,0,null,"","","","","",""]
[null,null,null,null,null,null,null,null,null,"","",null,null,null,null,null,null,null,0,0,null,"","","","","",""]
[null,null,null,null,null,null,null,null,null,"","",null,null,null,null,null,null,null,0,0,null,"","","","","",""]
[null,null,null,null,null,null,null,null,null,"","",null,null,null,null,null,null,null,0,0,null,"","","","","",""]
[".",null,null,null,null,null,null,null,null,null,null,null,null,null,null,null,"ATB","ATB"]
[".","BOYS","GIRLS","TOTAL",null,null,null,null,null,null,null,null,null,null,null,null,{"$f":"SUMIF(H4:H153,\"B\",R4:R153)","v":0},{"$f":"SUMIF(H4:H153,\"G\",R4:R153)","v":0},{"$f":"SUM(Q155:R155)","v":0}]
["SC",{"$f":"COUNTIF($J$4:$J$153,\"BSC\")","v":0},{"$f":"COUNTIF($J$4:$J$153,\"GSC\")","v":0},{"$f":"SUM(B156:C156)","v":0}]
["ST",{"$f":"COUNTIF($J$4:$J$153,\"BST\")","v":0},{"$f":"COUNTIF($J$4:$J$153,\"GST\")","v":0},{"$f":"SUM(B157:C157)","v":0}]
["BC",{"$f":"COUNTIF($J$4:$J$153,\"BBC\")","v":0},{"$f":"COUNTIF($J$4:$J$153,\"GBC\")","v":0},{"$f":"SUM(B158:C158)","v":0},null,"MIN BOY","MIN GIRL"]
["OC",{"$f":"COUNTIF($J$4:$J$153,\"BOC\")","v":0},{"$f":"COUNTIF($J$4:$J$153,\"GOC\")","v":0},{"$f":"SUM(B159:C159)","v":0},null,{"$f":"COUNTIF(K4:K153,\"BY\")","v":0},{"$f":"COUNTIF(K4:K153,\"GY\")","v":0}]
["TOTAL",{"$f":"SUM(B156:B159)","v":0},{"$f":"SUM(C156:C159)","v":0},{"$f":"SUM(B160:C160)","v":0}]

{"sheet":"VIIITM","index":4,"n_rows":160,"n_cols":27,"rows_kept":160,"cut":false,"hidden":false,"merged":[[0,0,0,6],[1,0,1,1]]}
["VIIITM-2018-19"]
[{"$f":"RIGHT(CELL(\"filename\",C2),LEN(CELL(\"filename\",C2))-FIND(\"]\",CELL(\"filename\",C2)))","v":"VIIITM"},null,null,null,null,null,null,null,null,null,null,null,null,null,null,null,null,null,null,null,null,"GRADES"]
["RNO","ADMN NO","NAME OF THE STUDENT","FATHER'S NAME","CASTE","DOB","DOA","SEX","MUSLIM",null,null,"TEL","HIN","ENG","MAT","SCI","SOC","ATT","TOTAL M","MARKS %",null,"TEL","HIN","ENG","MAT","SCI","SOC"]
[null,null,null,null,null,null,null,null,null,{"$f":"H4&E4","v":""},{"$f":"H4&I4","v":""},null,null,null,null,null,null,null,{"$f":"SUM(L4:Q4)","v":0},{"$f":"S4/600%","v":0},null,{"$f":"fgrade(L4)","v":""},{"$f":"fgrade(M4)","v":""},"","","",{"$f":"fgrade(Q4)","v":""}]
[null,null,null,null,null,null,null,null,null,"","",null,null,null,null,null,null,null,{"$f":"SUM(L5:Q5)","v":0},{"$f":"S5/600%","v":0},null,{"$f":"fgrade(L5)","v":""},{"$f":"fgrade(M5)","v":""},{"$f":"fgrade(N5)","v":""},{"$f":"fgrade(O5)","v":""},{"$f":"fgrade(P5)","v":""},{"$f":"fgrade(Q5)","v":""}]
[null,null,null,null,null,null,null,null,null,"","",null,null,null,null,null,null,null,0,0,null,"","","","","",""]
[null,null,null,null,null,null,null,null,null,"","",null,null,null,null,null,null,null,0,0,null,"","","","","",""]
[null,null,null,null,null,null,null,null,null,"","",null,null,null,null,null,null,null,0,0,null,"","","","","",""]
[null,null,null,null,null,null,null,null,null,"","",null,null,null,null,null,null,null,0,0,null,"","","","","",""]
[null,null,null,null,null,null,null,null,null,"","",null,null,null,null,null,null,null,0,0,null,"","","","","",""]
[null,null,null,null,null,null,null,null,null,"","",null,null,null,null,null,null,null,0,0,null,"","","","","",""]
[null,null,null,null,null,null,null,null,null,"","",null,null,null,null,null,null,null,0,0,null,"","","","","",""]
[null,null,null,null,null,null,null,null,null,"","",null,null,null,null,null,null,null,0,0,null,"","","","","",""]
[null,null,null,null,null,null,null,null,null,"","",null,null,null,null,null,null,null,0,0,null,"","","","","",""]
[null,null,null,null,null,null,null,null,null,"","",null,null,null,null,null,null,null,0,0,null,"","","","","",""]
[null,null,null,null,null,null,null,null,null,"","",null,null,null,null,null,null,null,0,0,null,"","","","","",""]
[null,null,null,null,null,null,null,null,null,"","",null,null,null,null,null,null,null,0,0,null,"","","","","",""]
[null,null,null,null,null,null,null,null,null,"","",null,null,null,null,null,null,null,0,0,null,"","","","","",""]
[null,null,null,null,null,null,null,null,null,"","",null,null,null,null,null,null,null,0,0,null,"","","","","",""]
[null,null,null,null,null,null,null,null,null,"","",null,null,null,null,null,null,null,0,0,null,"","","","","",""]
[null,null,null,null,null,null,null,null,null,"","",null,null,null,null,null,null,null,0,0,null,"","","","","",""]
[null,null,null,null,null,null,null,null,null,"","",null,null,null,null,null,null,null,0,0,null,"","","","","",""]
[null,null,null,null,null,null,null,null,null,"","",null,null,null,null,null,null,null,0,0,null,"","","","","",""]
[null,null,null,null,null,null,null,null,null,"","",null,null,null,null,null,null,null,0,0,null,"","","","","",""]
[null,null,null,null,null,null,null,null,null,"","",null,null,null,null,null,null,null,0,0,null,"","","","","",""]
[null,null,null,null,null,null,null,null,null,"","",null,null,null,null,null,null,null,0,0,null,"","","","","",""]
[null,null,null,null,null,null,null,null,null,"","",null,null,null,null,null,null,null,0,0,null,"","","","","",""]
[null,null,null,null,null,null,null,null,null,"","",null,null,null,null,null,null,null,0,0,null,"","","","","",""]
[null,null,null,null,null,null,null,null,null,"","",null,null,null,null,null,null,null,0,0,null,"","","","","",""]
[null,null,null,null,null,null,null,null,null,"","",null,null,null,null,null,null,null,0,0,null,"","","","","",""]
[null,null,null,null,null,null,null,null,null,"","",null,null,null,null,null,null,null,0,0,null,"","","","","",""]
[null,null,null,null,null,null,null,null,null,"","",null,null,null,null,null,null,null,0,0,null,"","","","","",""]
[null,null,null,null,null,null,null,null,null,"","",null,null,null,null,null,null,null,0,0,null,"","","","","",""]
[null,null,null,null,null,null,null,null,null,"","",null,null,null,null,null,null,null,0,0,null,"","","","","",""]
[null,null,null,null,null,null,null,null,null,{"$f":"H35&E35","v":""},{"$f":"H35&I35","v":""},null,null,null,null,null,null,null,{"$f":"SUM(L35:Q35)","v":0},{"$f":"S35/600%","v":0},null,{"$f":"fgrade(L35)","v":""},{"$f":"fgrade(M35)","v":""},{"$f":"fgrade(N35)","v":""},{"$f":"fgrade(O35)","v":""},{"$f":"fgrade(P35)","v":""},{"$f":"fgrade(Q35)","v":""}]
[null,null,null,null,null,null,null,null,null,"","",null,null,null,null,null,null,null,0,0,null,"","","","","",""]
[null,null,null,null,null,null,null,null,null,"","",null,null,null,null,null,null,null,0,0,null,"","","","","",""]
[null,null,null,null,null,null,null,null,null,"","",null,null,null,null,null,null,null,0,0,null,"","","","","",""]
[null,null,null,null,null,null,null,null,null,"","",null,null,null,null,null,null,null,0,0,null,"","","","","",""]
[null,null,null,null,null,null,null,null,null,"","",null,null,null,null,null,null,null,0,0,null,"","","","","",""]
[null,null,null,null,null,null,null,null,null,"","",null,null,null,null,null,null,null,0,0,null,"","","","","",""]
[null,null,null,null,null,null,null,null,null,"","",null,null,null,null,null,null,null,0,0,null,"","","","","",""]
[null,null,null,null,null,null,null,null,null,"","",null,null,null,null,null,null,null,0,0,null,"","","","","",""]
[null,null,null,null,null,null,null,null,null,"","",null,null,null,null,null,null,null,0,0,null,"","","","","",""]
[null,null,null,null,null,null,null,null,null,"","",null,null,null,null,null,null,null,0,0,null,"","","","","",""]
[null,null,null,null,null,null,null,null,null,"","",null,null,null,null,null,null,null,0,0,null,"","","","","",""]
[null,null,null,null,null,null,null,null,null,"","",null,null,null,null,null,null,null,0,0,null,"","","","","",""]
[null,null,null,null,null,null,null,null,null,"","",null,null,null,null,null,null,null,0,0,null,"","","","","",""]
[null,null,null,null,null,null,null,null,null,"","",null,null,null,null,null,null,null,0,0,null,"","","","","",""]
[null,null,null,null,null,null,null,null,null,"","",null,null,null,null,null,null,null,0,0,null,"","","","","",""]
[null,null,null,null,null,null,null,null,null,"","",null,null,null,null,null,null,null,0,0,null,"","","","","",""]
[null,null,null,null,null,null,null,null,null,"","",null,null,null,null,null,null,null,0,0,null,"","","","","",""]
[null,null,null,null,null,null,null,null,null,"","",null,null,null,null,null,null,null,0,0,null,"","","","","",""]
[null,null,null,null,null,null,null,null,null,"","",null,null,null,null,null,null,null,0,0,null,"","","","","",""]
[null,null,null,null,null,null,null,null,null,"","",null,null,null,null,null,null,null,0,0,null,"","","","","",""]
[null,null,null,null,null,null,null,null,null,"","",null,null,null,null,null,null,null,0,0,null,"","","","","",""]
[null,null,null,null,null,null,null,null,null,"","",null,null,null,null,null,null,null,0,0,null,"","","","","",""]
[null,null,null,null,null,null,null,null,null,"","",null,null,null,null,null,null,null,0,0,null,"","","","","",""]
[null,null,null,null,null,null,null,null,null,"","",null,null,null,null,null,null,null,0,0,null,"","","","","",""]
[null,null,null,null,null,null,null,null,null,"","",null,null,null,null,null,null,null,0,0,null,"","","","","",""]
[null,null,null,null,null,null,null,null,null,"","",null,null,null,null,null,null,null,0,0,null,"","","","","",""]
[null,null,null,null,null,null,null,null,null,"","",null,null,null,null,null,null,null,0,0,null,"","","","","",""]
[null,null,null,null,null,null,null,null,null,"","",null,null,null,null,null,null,null,0,0,null,"","","","","",""]
[null,null,null,null,null,null,null,null,null,{"$f":"H64&E64","v":""},{"$f":"H64&I64","v":""},null,null,null,null,null,null,null,0,0,null,"","","","","",""]
[null,null,null,null,null,null,null,null,null,"","",null,null,null,null,null,null,null,0,0,null,"","","","","",""]
[null,null,null,null,null,null,null,null,null,"","",null,null,null,null,null,null,null,0,0,null,"","","","","",""]
[null,null,null,null,null,null,null,null,null,"","",null,null,null,null,null,null,null,0,0,null,"","","","","",""]
[null,null,null,null,null,null,null,null,null,"","",null,null,null,null,null,null,null,0,0,null,"","","","","",""]
[null,null,null,null,null,null,null,null,null,"","",null,null,null,null,null,null,null,0,0,null,"","","","","",""]
[null,null,null,null,null,null,null,null,null,"","",null,null,null,null,null,null,null,0,0,null,"","","","","",""]
[null,null,null,null,null,null,null,null,null,"","",null,null,null,null,null,null,null,0,0,null,"","","","","",""]
[null,null,null,null,null,null,null,null,null,"","",null,null,null,null,null,null,null,0,0,null,"","","","","",""]
[null,null,null,null,null,null,null,null,null,"","",null,null,null,null,null,null,null,0,0,null,"","","","","",""]
[null,null,null,null,null,null,null,null,null,"","",null,null,null,null,null,null,null,0,0,null,"","","","","",""]
[null,null,null,null,null,null,null,null,null,"","",null,null,null,null,null,null,null,0,0,null,"","","","","",""]
[null,null,null,null,null,null,null,null,null,"","",null,null,null,null,null,null,null,0,0,null,"","","","","",""]
[null,null,null,null,null,null,null,null,null,"","",null,null,null,null,null,null,null,0,0,null,"","","","","",""]
[null,null,null,null,null,null,null,null,null,"","",null,null,null,null,null,null,null,0,0,null,"","","","","",""]
[null,null,null,null,null,null,null,null,null,"","",null,null,null,null,null,null,null,0,0,null,"","","","","",""]
[null,null,null,null,null,null,null,null,null,"","",null,null,null,null,null,null,null,0,0,null,"","","","","",""]
[null,null,null,null,null,null,null,null,null,"","",null,null,null,null,null,null,null,0,0,null,"","","","","",""]
[null,null,null,null,null,null,null,null,null,"","",null,null,null,null,null,null,null,0,0,null,"","","","","",""]
[null,null,null,null,null,null,null,null,null,"","",null,null,null,null,null,null,null,0,0,null,"","","","","",""]
[null,null,null,null,null,null,null,null,null,"","",null,null,null,null,null,null,null,0,0,null,"","","","","",""]
[null,null,null,null,null,null,null,null,null,"","",null,null,null,null,null,null,null,0,0,null,"","","","","",""]
[null,null,null,null,null,null,null,null,null,"","",null,null,null,null,null,null,null,0,0,null,"","","","","",""]
[null,null,null,null,null,null,null,null,null,"","",null,null,null,null,null,null,null,0,0,null,"","","","","",""]
[null,null,null,null,null,null,null,null,null,"","",null,null,null,null,null,null,null,0,0,null,"","","","","",""]
[null,null,null,null,null,null,null,null,null,"","",null,null,null,null,null,null,null,0,0,null,"","","","","",""]
[null,null,null,null,null,null,null,null,null,"","",null,null,null,null,null,null,null,0,0,null,"","","","","",""]
[null,null,null,null,null,null,null,null,null,"","",null,null,null,null,null,null,null,0,0,null,"","","","","",""]
[null,null,null,null,null,null,null,null,null,"","",null,null,null,null,null,null,null,0,0,null,"","","","","",""]
[null,null,null,null,null,null,null,null,null,"","",null,null,null,null,null,null,null,0,0,null,"","","","","",""]
[null,null,null,null,null,null,null,null,null,"","",null,null,null,null,null,null,null,0,0,null,"","","","","",""]
[null,null,null,null,null,null,null,null,null,"","",null,null,null,null,null,null,null,0,0,null,"","","","","",""]
[null,null,null,null,null,null,null,null,null,"","",null,null,null,null,null,null,null,0,0,null,"","","","","",""]
[null,null,null,null,null,null,null,null,null,"","",null,null,null,null,null,null,null,0,0,null,"","","","","",""]
[null,null,null,null,null,null,null,null,null,"","",null,null,null,null,null,null,null,0,0,null,"","","","","",""]
[null,null,null,null,null,null,null,null,null,"","",null,null,null,null,null,null,null,{"$f":"SUM(L99:Q99)","v":0},{"$f":"S99/600%","v":0},null,{"$f":"fgrade(L99)","v":""},{"$f":"fgrade(M99)","v":""},{"$f":"fgrade(N99)","v":""},{"$f":"fgrade(O99)","v":""},{"$f":"fgrade(P99)","v":""},{"$f":"fgrade(Q99)","v":""}]
[null,null,null,null,null,null,null,null,null,"","",null,null,null,null,null,null,null,0,0,null,"","","","","",""]
[null,null,null,null,null,null,null,null,null,"","",null,null,null,null,null,null,null,0,0,null,"","","","","",""]
[null,null,null,null,null,null,null,null,null,"","",null,null,null,null,null,null,null,0,0,null,"","","","","",""]
[null,null,null,null,null,null,null,null,null,"","",null,null,null,null,null,null,null,0,0,null,"","","","","",""]
[null,null,null,null,null,null,null,null,null,"","",null,null,null,null,null,null,null,0,0,null,"","","","","",""]
[null,null,null,null,null,null,null,null,null,"","",null,null,null,null,null,null,null,0,0,null,"","","","","",""]
[null,null,null,null,null,null,null,null,null,"","",null,null,null,null,null,null,null,0,0,null,"","","","","",""]
[null,null,null,null,null,null,null,null,null,"","",null,null,null,null,null,null,null,0,0,null,"","","","","",""]
[null,null,null,null,null,null,null,null,null,"","",null,null,null,null,null,null,null,0,0,null,"","","","","",""]
[null,null,null,null,null,null,null,null,null,"","",null,null,null,null,null,null,null,0,0,null,"","","","","",""]
[null,null,null,null,null,null,null,null,null,"","",null,null,null,null,null,null,null,0,0,null,"","","","","",""]
[null,null,null,null,null,null,null,null,null,"","",null,null,null,null,null,null,null,0,0,null,"","","","","",""]
[null,null,null,null,null,null,null,null,null,"","",null,null,null,null,null,null,null,0,0,null,"","","","","",""]
[null,null,null,null,null,null,null,null,null,"","",null,null,null,null,null,null,null,0,0,null,"","","","","",""]
[null,null,null,null,null,null,null,null,null,"","",null,null,null,null,null,null,null,0,0,null,"","","","","",""]
[null,null,null,null,null,null,null,null,null,"","",null,null,null,null,null,null,null,0,0,null,"","","","","",""]
[null,null,null,null,null,null,null,null,null,"","",null,null,null,null,null,null,null,0,0,null,"","","","","",""]
[null,null,null,null,null,null,null,null,null,"","",null,null,null,null,null,null,null,0,0,null,"","","","","",""]
[null,null,null,null,null,null,null,null,null,"","",null,null,null,null,null,null,null,0,0,null,"","","","","",""]
[null,null,null,null,null,null,null,null,null,"","",null,null,null,null,null,null,null,0,0,null,"","","","","",""]
[null,null,null,null,null,null,null,null,null,"","",null,null,null,null,null,null,null,0,0,null,"","","","","",""]
[null,null,null,null,null,null,null,null,null,"","",null,null,null,null,null,null,null,0,0,null,"","","","","",""]
[null,null,null,null,null,null,null,null,null,"","",null,null,null,null,null,null,null,0,0,null,"","","","","",""]
[null,null,null,null,null,null,null,null,null,"","",null,null,null,null,null,null,null,0,0,null,"","","","","",""]
[null,null,null,null,null,null,null,null,null,"","",null,null,null,null,null,null,null,0,0,null,"","","","","",""]
[null,null,null,null,null,null,null,null,null,"","",null,null,null,null,null,null,null,0,0,null,"","","","","",""]
[null,null,null,null,null,null,null,null,null,"","",null,null,null,null,null,null,null,0,0,null,"","","","","",""]
[null,null,null,null,null,null,null,null,null,"","",null,null,null,null,null,null,null,0,0,null,"","","","","",""]
[null,null,null,null,null,null,null,null,null,{"$f":"H128&E128","v":""},{"$f":"H128&I128","v":""},null,null,null,null,null,null,null,0,0,null,"","","","","",""]
[null,null,null,null,null,null,null,null,null,"","",null,null,null,null,null,null,null,0,0,null,"","","","","",""]
[null,null,null,null,null,null,null,null,null,"","",null,null,null,null,null,null,null,0,0,null,"","","","","",""]
[null,null,null,null,null,null,null,null,null,"","",null,null,null,null,null,null,null,0,0,null,"","","","","",""]
[null,null,null,null,null,null,null,null,null,"","",null,null,null,null,null,null,null,0,0,null,"","","","","",""]
[null,null,null,null,null,null,null,null,null,"","",null,null,null,null,null,null,null,0,0,null,"","","","","",""]
[null,null,null,null,null,null,null,null,null,"","",null,null,null,null,null,null,null,0,0,null,"","","","","",""]
[null,null,null,null,null,null,null,null,null,"","",null,null,null,null,null,null,null,0,0,null,"","","","","",""]
[null,null,null,null,null,null,null,null,null,"","",null,null,null,null,null,null,null,0,0,null,"","","","","",""]
[null,null,null,null,null,null,null,null,null,"","",null,null,null,null,null,null,null,0,0,null,"","","","","",""]
[null,null,null,null,null,null,null,null,null,"","",null,null,null,null,null,null,null,0,0,null,"","","","","",""]
[null,null,null,null,null,null,null,null,null,"","",null,null,null,null,null,null,null,0,0,null,"","","","","",""]
[null,null,null,null,null,null,null,null,null,"","",null,null,null,null,null,null,null,0,0,null,"","","","","",""]
[null,null,null,null,null,null,null,null,null,"","",null,null,null,null,null,null,null,0,0,null,"","","","","",""]
[null,null,null,null,null,null,null,null,null,"","",null,null,null,null,null,null,null,0,0,null,"","","","","",""]
[null,null,null,null,null,null,null,null,null,"","",null,null,null,null,null,null,null,0,0,null,"","","","","",""]
[null,null,null,null,null,null,null,null,null,"","",null,null,null,null,null,null,null,0,0,null,"","","","","",""]
[null,null,null,null,null,null,null,null,null,"","",null,null,null,null,null,null,null,0,0,null,"","","","","",""]
[null,null,null,null,null,null,null,null,null,null,null,null,null,null,null,null,null,null,0,0,null,"","","","","",""]
[null,null,null,null,null,null,null,null,null,null,null,null,null,null,null,null,null,null,0,0,null,"","","","","",""]
[null,null,null,null,null,null,null,null,null,null,null,null,null,null,null,null,null,null,0,0,null,"","","","","",""]
[null,null,null,null,null,null,null,null,null,null,null,null,null,null,null,null,null,null,0,0,null,"","","","","",""]
[null,null,null,null,null,null,null,null,null,"","",null,null,null,null,null,null,null,0,0,null,"","","","","",""]
[null,null,null,null,null,null,null,null,null,"","",null,null,null,null,null,null,null,0,0,null,"","","","","",""]
[null,null,null,null,null,null,null,null,null,"","",null,null,null,null,null,null,null,0,0,null,"","","","","",""]
[null,null,null,null,null,null,null,null,null,"","",null,null,null,null,null,null,null,0,0,null,"","","","","",""]
[".",null,null,null,null,null,null,null,null,null,null,null,null,null,null,null,"ATB","ATB"]
[".","BOYS","GIRLS","TOTAL",null,null,null,null,null,null,{"$f":"H155&I155","v":""},null,null,null,null,null,{"$f":"SUMIF(H4:H153,\"B\",R4:R153)","v":0},{"$f":"SUMIF(H4:H153,\"G\",R4:R153)","v":0},{"$f":"SUM(Q155:R155)","v":0}]
["SC",{"$f":"COUNTIF($J$4:$J$153,\"BSC\")","v":0},{"$f":"COUNTIF($J$4:$J$153,\"GSC\")","v":0},{"$f":"SUM(B156:C156)","v":0}]
["ST",{"$f":"COUNTIF($J$4:$J$153,\"BST\")","v":0},{"$f":"COUNTIF($J$4:$J$153,\"GST\")","v":0},{"$f":"SUM(B157:C157)","v":0},null,null,null,null,null,null,{"$f":"H157&I157","v":""}]
["BC",{"$f":"COUNTIF($J$4:$K$153,\"BBC\")","v":0},{"$f":"COUNTIF($J$4:$J$153,\"GBC\")","v":0},{"$f":"SUM(B158:C158)","v":0},null,"MIN BOY","MIN GIRL",null,null,null,{"$f":"H158&I158","v":""}]
["OC",{"$f":"COUNTIF($J$4:$J$153,\"BOC\")","v":0},{"$f":"COUNTIF($J$4:$J$153,\"GOC\")","v":0},{"$f":"SUM(B159:C159)","v":0},null,{"$f":"COUNTIF(K4:K153,\"BY\")","v":0},{"$f":"COUNTIF(K4:K153,\"GY\")","v":0},null,null,null,{"$f":"H159&I159","v":""}]
["TOTAL",{"$f":"SUM(B156:B159)","v":0},{"$f":"SUM(C156:C159)","v":0},{"$f":"SUM(D156:D159)","v":0},null,null,null,null,null,null,{"$f":"H160&I160","v":""}]

{"sheet":"IXTM","index":5,"n_rows":161,"n_cols":27,"rows_kept":161,"cut":false,"hidden":false,"merged":[[0,0,0,6],[1,0,1,1]]}
["IXTM-2018-19"]
[{"$f":"RIGHT(CELL(\"filename\",C1),LEN(CELL(\"filename\",C1))-FIND(\"]\",CELL(\"filename\",C1)))","v":"IXTM"},null,null,null,null,null,null,null,null,null,null,null,null,null,null,null,null,null,null,null,null,"GRADES"]
["RNO","ADMN NO","NAME OF THE STUDENT","FATHER'S NAME","CASTE","DOB","DOA","SEX","MUSLIM",null,null,"TEL","HIN","ENG","MAT","SCI","SOC","ATT","TOTAL M","MARKS %",null,"TEL","HIN","ENG","MAT","SCI","SOC"]
[null,null,null,null,null,null,null,null,null,{"$f":"H4&E4","v":""},{"$f":"H4&I4","v":""},null,null,null,null,null,null,null,{"$f":"SUM(L4:Q4)","v":0},{"$f":"S4/600%","v":0},null,{"$f":"fgrade(L4)","v":""},{"$f":"fgrade(M4)","v":""},"","","",""]
[null,null,null,null,null,null,null,null,null,"","",null,null,null,null,null,null,null,0,{"$f":"S5/600%","v":0},null,{"$f":"fgrade(L5)","v":""},{"$f":"fgrade(M5)","v":""},{"$f":"fgrade(N5)","v":""},{"$f":"fgrade(O5)","v":""},{"$f":"fgrade(P5)","v":""},{"$f":"fgrade(Q5)","v":""}]
[null,null,null,null,null,null,null,null,null,"","",null,null,null,null,null,null,null,0,0,null,"","","","","",""]
[null,null,null,null,null,null,null,null,null,"","",null,null,null,null,null,null,null,{"$f":"SUM(L7:Q7)","v":0},0,null,"","","","","",""]
[null,null,null,null,null,null,null,null,null,"","",null,null,null,null,null,null,null,0,0,null,{"$f":"fgrade(L8)","v":""},"","","","",""]
[null,null,null,null,null,null,null,null,null,"","",null,null,null,null,null,null,null,{"$f":"SUM(L9:Q9)","v":0},0,null,"","","","","",""]
[null,null,null,null,null,null,null,null,null,"","",null,null,null,null,null,null,null,0,0,null,"","","","","",""]
[null,null,null,null,null,null,null,null,null,"","",null,null,null,null,null,null,null,0,0,null,"","","","","",""]
[null,null,null,null,null,null,null,null,null,"","",null,null,null,null,null,null,null,0,0,null,"","","","","",""]
[null,null,null,null,null,null,null,null,null,"","",null,null,null,null,null,null,null,0,0,null,"","","","","",""]
[null,null,null,null,null,null,null,null,null,"","",null,null,null,null,null,null,null,0,0,null,"","","","","",""]
[null,null,null,null,null,null,null,null,null,"","",null,null,null,null,null,null,null,0,0,null,"","","","","",""]
[null,null,null,null,null,null,null,null,null,"","",null,null,null,null,null,null,null,0,0,null,"","","","","",""]
[null,null,null,null,null,null,null,null,null,"","",null,null,null,null,null,null,null,0,0,null,"","","","","",""]
[null,null,null,null,null,null,null,null,null,"","",null,null,null,null,null,null,null,0,0,null,"","","","","",""]
[null,null,null,null,null,null,null,null,null,"","",null,null,null,null,null,null,null,0,0,null,"","","","","",""]
[null,null,null,null,null,null,null,null,null,"","",null,null,null,null,null,null,null,0,0,null,"","","","","",""]
[null,null,null,null,null,null,null,null,null,"","",null,null,null,null,null,null,null,0,0,null,"","","","","",""]
[null,null,null,null,null,null,null,null,null,"","",null,null,null,null,null,null,null,0,0,null,"","","","","",""]
[null,null,null,null,null,null,null,null,null,"","",null,null,null,null,null,null,null,0,0,null,"","","","","",""]
[null,null,null,null,null,null,null,null,null,"","",null,null,null,null,null,null,null,0,0,null,"","","","","",""]
[null,null,null,null,null,null,null,null,null,"","",null,null,null,null,null,null,null,0,0,null,"","","","","",""]
[null,null,null,null,null,null,null,null,null,"","",null,null,null,null,null,null,null,0,0,null,"","","","","",""]
[null,null,null,null,null,null,null,null,null,"","",null,null,null,null,null,null,null,0,0,null,"","","","","",""]
[null,null,null,null,null,null,null,null,null,"","",null,null,null,null,null,null,null,{"$f":"SUM(L28:Q28)","v":0},0,null,"","","","","",""]
[null,null,null,null,null,null,null,null,null,"","",null,null,null,null,null,null,null,0,0,null,"","","","","",""]
[null,null,null,null,null,null,null,null,null,"","",null,null,null,null,null,null,null,0,0,null,"","","","","",""]
[null,null,null,null,null,null,null,null,null,"","",null,null,null,null,null,null,null,0,0,null,"","","","","",""]
[null,null,null,null,null,null,null,null,null,"","",null,null,null,null,null,null,null,0,0,null,"","","","","",""]
[null,null,null,null,null,null,null,null,null,"","",null,null,null,null,null,null,null,0,0,null,"","","","","",""]
[null,null,null,null,null,null,null,null,null,"","",null,null,null,null,null,null,null,0,0,null,"","","","","",""]
[null,null,null,null,null,null,null,null,null,"","",null,null,null,null,null,null,null,0,0,null,"","","","","",""]
[null,null,null,null,null,null,null,null,null,"","",null,null,null,null,null,null,null,0,0,null,"","","","","",""]
[null,null,null,null,null,null,null,null,null,"","",null,null,null,null,null,null,null,0,0,null,"","","","","",""]
[null,null,null,null,null,null,null,null,null,"","",null,null,null,null,null,null,null,0,0,null,"","","","","",""]
[null,null,null,null,null,null,null,null,null,"","",null,null,null,null,null,null,null,0,0,null,"","","","","",""]
[null,null,null,null,null,null,null,null,null,"","",null,null,null,null,null,null,null,0,0,null,"","","","","",""]
[null,null,null,null,null,null,null,null,null,"","",null,null,null,null,null,null,null,0,0,null,"","","","","",""]
[null,null,null,null,null,null,null,null,null,"","",null,null,null,null,null,null,null,0,0,null,"","","","","",""]
[null,null,null,null,null,null,null,null,null,"","",null,null,null,null,null,null,null,0,0,null,"","","","","",""]
[null,null,null,null,null,null,null,null,null,"","",null,null,null,null,null,null,null,0,0,null,"","","","","",""]
[null,null,null,null,null,null,null,null,null,"","",null,null,null,null,null,null,null,0,0,null,"","","","","",""]
[null,null,null,null,null,null,null,null,null,"","",null,null,null,null,null,null,null,0,0,null,"","","","","",""]
[null,null,null,null,null,null,null,null,null,"","",null,null,null,null,null,null,null,0,0,null,"","","","","",""]
[null,null,null,null,null,null,null,null,null,"","",null,null,null,null,null,null,null,0,0,null,"","","","","",""]
[null,null,null,null,null,null,null,null,null,"","",null,null,null,null,null,null,null,0,0,null,"","","","","",""]
[null,null,null,null,null,null,null,null,null,"","",null,null,null,null,null,null,null,0,0,null,"","","","","",""]
[null,null,null,null,null,null,null,null,null,"","",null,null,null,null,null,null,null,0,0,null,"","","","","",""]
[null,null,null,null,null,null,null,null,null,"","",null,null,null,null,null,null,null,0,0,null,"","","","","",""]
[null,null,null,null,null,null,null,null,null,"","",null,null,null,null,null,null,null,0,0,null,"","","","","",""]
[null,null,null,null,null,null,null,null,null,"","",null,null,null,null,null,null,null,0,0,null,"","","","","",""]
[null,null,null,null,null,null,null,null,null,"","",null,null,null,null,null,null,null,0,0,null,"","","","","",""]
[null,null,null,null,null,null,null,null,null,"","",null,null,null,null,null,null,null,0,0,null,"","","","","",""]
[null,null,null,null,null,null,null,null,null,"","",null,null,null,null,null,null,null,0,0,null,"","","","","",""]
[null,null,null,null,null,null,null,null,null,"","",null,null,null,null,null,null,null,0,0,null,"","","","","",""]
[null,null,null,null,null,null,null,null,null,"","",null,null,null,null,null,null,null,0,0,null,"","","","","",""]
[null,null,null,null,null,null,null,null,null,"","",null,null,null,null,null,null,null,0,0,null,"","","","","",""]
[null,null,null,null,null,null,null,null,null,"","",null,null,null,null,null,null,null,0,0,null,"","","","","",""]
[null,null,null,null,null,null,null,null,null,"","",null,null,null,null,null,null,null,0,0,null,"","","","","",""]
[null,null,null,null,null,null,null,null,null,"","",null,null,null,null,null,null,null,0,0,null,"","","","","",""]
[null,null,null,null,null,null,null,null,null,"","",null,null,null,null,null,null,null,0,0,null,"","","","","",""]
[null,null,null,null,null,null,null,null,null,"","",null,null,null,null,null,null,null,0,0,null,"","","","","",""]
[null,null,null,null,null,null,null,null,null,"","",null,null,null,null,null,null,null,0,0,null,"","","","","",""]
[null,null,null,null,null,null,null,null,null,"","",null,null,null,null,null,null,null,0,0,null,"","","","","",""]
[null,null,null,null,null,null,null,null,null,{"$f":"H68&E68","v":""},{"$f":"H68&I68","v":""},null,null,null,null,null,null,null,0,0,null,"","","","","",""]
[null,null,null,null,null,null,null,null,null,"","",null,null,null,null,null,null,null,{"$f":"SUM(L69:Q69)","v":0},{"$f":"S69/600%","v":0},null,{"$f":"fgrade(L69)","v":""},{"$f":"fgrade(M69)","v":""},{"$f":"fgrade(N69)","v":""},{"$f":"fgrade(O69)","v":""},{"$f":"fgrade(P69)","v":""},{"$f":"fgrade(Q69)","v":""}]
[null,null,null,null,null,null,null,null,null,"","",null,null,null,null,null,null,null,0,0,null,"","","","","",""]
[null,null,null,null,null,null,null,null,null,"","",null,null,null,null,null,null,null,0,0,null,"","","","","",""]
[null,null,null,null,null,null,null,null,null,"","",null,null,null,null,null,null,null,0,0,null,"","","","","",""]
[null,null,null,null,null,null,null,null,null,"","",null,null,null,null,null,null,null,0,0,null,"","","","","",""]
[null,null,null,null,null,null,null,null,null,"","",null,null,null,null,null,null,null,0,0,null,"","","","","",""]
[null,null,null,null,null,null,null,null,null,"","",null,null,null,null,null,null,null,0,0,null,"","","","","",""]
[null,null,null,null,null,null,null,null,null,"","",null,null,null,null,null,null,null,0,0,null,"","","","","",""]
[null,null,null,null,null,null,null,null,null,"","",null,null,null,null,null,null,null,0,0,null,"","","","","",""]
[null,null,null,null,null,null,null,null,null,"","",null,null,null,null,null,null,null,0,0,null,"","","","","",""]
[null,null,null,null,null,null,null,null,null,"","",null,null,null,null,null,null,null,0,0,null,"","","","","",""]
[null,null,null,null,null,null,null,null,null,"","",null,null,null,null,null,null,null,0,0,null,"","","","","",""]
[null,null,null,null,null,null,null,null,null,"","",null,null,null,null,null,null,null,0,0,null,"","","","","",""]
[null,null,null,null,null,null,null,null,null,"","",null,null,null,null,null,null,null,0,0,null,"","","","","",""]
[null,null,null,null,null,null,null,null,null,"","",null,null,null,null,null,null,null,0,0,null,"","","","","",""]
[null,null,null,null,null,null,null,null,null,"","",null,null,null,null,null,null,null,0,0,null,"","","","","",""]
[null,null,null,null,null,null,null,null,null,"","",null,null,null,null,null,null,null,0,0,null,"","","","","",""]
[null,null,null,null,null,null,null,null,null,"","",null,null,null,null,null,null,null,0,0,null,"","","","","",""]
[null,null,null,null,null,null,null,null,null,"","",null,null,null,null,null,null,null,0,0,null,"","","","","",""]
[null,null,null,null,null,null,null,null,null,"","",null,null,null,null,null,null,null,0,0,null,"","","","","",""]
[null,null,null,null,null,null,null,null,null,"","",null,null,null,null,null,null,null,0,0,null,"","","","","",""]
[null,null,null,null,null,null,null,null,null,"","",null,null,null,null,null,null,null,0,0,null,"","","","","",""]
[null,null,null,null,null,null,null,null,null,"","",null,null,null,null,null,null,null,0,0,null,"","","","","",""]
[null,null,null,null,null,null,null,null,null,"","",null,null,null,null,null,null,null,0,0,null,"","","","","",""]
[null,null,null,null,null,null,null,null,null,"","",null,null,null,null,null,null,null,0,0,null,"","","","","",""]
[null,null,null,null,null,null,null,null,null,"","",null,null,null,null,null,null,null,0,0,null,"","","","","",""]
[null,null,null,null,null,null,null,null,null,"","",null,null,null,null,null,null,null,0,0,null,"","","","","",""]
[null,null,null,null,null,null,null,null,null,"","",null,null,null,null,null,null,null,0,0,null,"","","","","",""]
[null,null,null,null,null,null,null,null,null,"","",null,null,null,null,null,null,null,0,0,null,"","","","","",""]
[null,null,null,null,null,null,null,null,null,"","",null,null,null,null,null,null,null,0,0,null,"","","","","",""]
[null,null,null,null,null,null,null,null,null,"","",null,null,null,null,null,null,null,0,0,null,"","","","","",""]
[null,null,null,null,null,null,null,null,null,"","",null,null,null,null,null,null,null,0,0,null,"","","","","",""]
[null,null,null,null,null,null,null,null,null,"","",null,null,null,null,null,null,null,0,0,null,"","","","","",""]
[null,null,null,null,null,null,null,null,null,"","",null,null,null,null,null,null,null,0,0,null,"","","","","",""]
[null,null,null,null,null,null,null,null,null,"","",null,null,null,null,null,null,null,0,0,null,"","","","","",""]
[null,null,null,null,null,null,null,null,null,"","",null,null,null,null,null,null,null,0,0,null,"","","","","",""]
[null,null,null,null,null,null,null,null,null,"","",null,null,null,null,null,null,null,0,0,null,"","","","","",""]
[null,null,null,null,null,null,null,null,null,"","",null,null,null,null,null,null,null,0,0,null,"","","","","",""]
[null,null,null,null,null,null,null,null,null,"","",null,null,null,null,null,null,null,0,0,null,"","","","","",""]
[null,null,null,null,null,null,null,null,null,"","",null,null,null,null,null,null,null,0,0,null,"","","","","",""]
[null,null,null,null,null,null,null,null,null,"","",null,null,null,null,null,null,null,0,0,null,"","","","","",""]
[null,null,null,null,null,null,null,null,null,"","",null,null,null,null,null,null,null,0,0,null,"","","","","",""]
[null,null,null,null,null,null,null,null,null,"","",null,null,null,null,null,null,null,0,0,null,"","","","","",""]
[null,null,null,null,null,null,null,null,null,"","",null,null,null,null,null,null,null,0,0,null,"","","","","",""]
[null,null,null,null,null,null,null,null,null,"","",null,null,null,null,null,null,null,0,0,null,"","","","","",""]
[null,null,null,null,null,null,null,null,null,"","",null,null,null,null,null,null,null,0,0,null,"","","","","",""]
[null,null,null,null,null,null,null,null,null,"","",null,null,null,null,null,null,null,0,0,null,"","","","","",""]
[null,null,null,null,null,null,null,null,null,"","",null,null,null,null,null,null,null,0,0,null,"","","","","",""]
[null,null,null,null,null,null,null,null,null,"","",null,null,null,null,null,null,null,0,0,null,"","","","","",""]
[null,null,null,null,null,null,null,null,null,"","",null,null,null,null,null,null,null,0,0,null,"","","","","",""]
[null,null,null,null,null,null,null,null,null,"","",null,null,null,null,null,null,null,0,0,null,"","","","","",""]
[null,null,null,null,null,null,null,null,null,"","",null,null,null,null,null,null,null,0,0,null,"","","","","",""]
[null,null,null,null,null,null,null,null,null,"","",null,null,null,null,null,null,null,0,0,null,"","","","","",""]
[null,null,null,null,null,null,null,null,null,"","",null,null,null,null,null,null,null,0,0,null,"","","","","",""]
[null,null,null,null,null,null,null,null,null,"","",null,null,null,null,null,null,null,0,0,null,"","","","","",""]
[null,null,null,null,null,null,null,null,null,"","",null,null,null,null,null,null,null,0,0,null,"","","","","",""]
[null,null,null,null,null,null,null,null,null,"","",null,null,null,null,null,null,null,0,0,null,"","","","","",""]
[null,null,null,null,null,null,null,null,null,"","",null,null,null,null,null,null,null,0,0,null,"","","","","",""]
[null,null,null,null,null,null,null,null,null,"","",null,null,null,null,null,null,null,0,0,null,"","","","","",""]
[null,null,null,null,null,null,null,null,null,"","",null,null,null,null,null,null,null,0,0,null,"","","","","",""]
[null,null,null,null,null,null,null,null,null,"","",null,null,null,null,null,null,null,0,0,null,"","","","","",""]
[null,null,null,null,null,null,null,null,null,"","",null,null,null,null,null,null,null,0,0,null,"","","","","",""]
[null,null,null,null,null,null,null,null,null,"","",null,null,null,null,null,null,null,0,0,null,"","","","","",""]
[null,null,null,null,null,null,null,null,null,{"$f":"H132&E132","v":""},{"$f":"H132&I132","v":""},null,null,null,null,null,null,null,0,0,null,"","","","","",""]
[null,null,null,null,null,null,null,null,null,"","",null,null,null,null,null,null,null,{"$f":"SUM(L133:Q133)","v":0},{"$f":"S133/600%","v":0},null,{"$f":"fgrade(L133)","v":""},{"$f":"fgrade(M133)","v":""},{"$f":"fgrade(N133)","v":""},{"$f":"fgrade(O133)","v":""},{"$f":"fgrade(P133)","v":""},{"$f":"fgrade(Q133)","v":""}]
[null,null,null,null,null,null,null,null,null,"","",null,null,null,null,null,null,null,0,0,null,"","","","","",""]
[null,null,null,null,null,null,null,null,null,"","",null,null,null,null,null,null,null,0,0,null,"","","","","",""]
[null,null,null,null,null,null,null,null,null,"","",null,null,null,null,null,null,null,0,0,null,"","","","","",""]
[null,null,null,null,null,null,null,null,null,"","",null,null,null,null,null,null,null,0,0,null,"","","","","",""]
[null,null,null,null,null,null,null,null,null,"","",null,null,null,null,null,null,null,0,0,null,"","","","","",""]
[null,null,null,null,null,null,null,null,null,"","",null,null,null,null,null,null,null,0,0,null,"","","","","",""]
[null,null,null,null,null,null,null,null,null,"","",null,null,null,null,null,null,null,0,0,null,"","","","","",""]
[null,null,null,null,null,null,null,null,null,"","",null,null,null,null,null,null,null,0,0,null,"","","","","",""]
[null,null,null,null,null,null,null,null,null,"","",null,null,null,null,null,null,null,0,0,null,"","","","","",""]
[null,null,null,null,null,null,null,null,null,"","",null,null,null,null,null,null,null,0,0,null,"","","","","",""]
[null,null,null,null,null,null,null,null,null,"","",null,null,null,null,null,null,null,0,0,null,"","","","","",""]
[null,null,null,null,null,null,null,null,null,"","",null,null,null,null,null,null,null,0,0,null,"","","","","",""]
[null,null,null,null,null,null,null,null,null,"","",null,null,null,null,null,null,null,0,0,null,"","","","","",""]
[null,null,null,null,null,null,null,null,null,"","",null,null,null,null,null,null,null,0,0,null,"","","","","",""]
[null,null,null,null,null,null,null,null,null,"","",null,null,null,null,null,null,null,0,0,null,"","","","","",""]
[null,null,null,null,null,null,null,null,null,"","",null,null,null,null,null,null,null,0,0,null,"","","","","",""]
[null,null,null,null,null,null,null,null,null,"","",null,null,null,null,null,null,null,0,0,null,"","","","","",""]
[null,null,null,null,null,null,null,null,null,"","",null,null,null,null,null,null,null,0,0,null,"","","","","",""]
[null,null,null,null,null,null,null,null,null,"","",null,null,null,null,null,null,null,0,0,null,"","","","","",""]
[null,null,null,null,null,null,null,null,null,"","",null,null,null,null,null,null,null,0,0,null,"","","","","",""]
[".",null,null,null,null,null,null,null,null,"","",null,null,null,null,null,"ATB","ATB"]
[".","BOYS","GIRLS","TOTAL",null,null,null,null,null,null,null,null,null,null,null,null,{"$f":"SUMIF(H4:H153,\"B\",R4:R153)","v":0},{"$f":"SUMIF(H4:H153,\"G\",R4:R153)","v":0},{"$f":"SUM(Q155:R155)","v":0}]
["SC",{"$f":"COUNTIF($J$4:$J$153,\"BSC\")","v":0},{"$f":"COUNTIF($J$4:$J$153,\"GSC\")","v":0},{"$f":"SUM(B156:C156)","v":0},null,null,null,null,null,null,{"$f":"H156&I156","v":""}]
["ST",{"$f":"COUNTIF($J$4:$J$153,\"BST\")","v":0},{"$f":"COUNTIF($J$4:$J$153,\"GST\")","v":0},{"$f":"SUM(B157:C157)","v":0},null,null,null,null,null,null,""]
["BC",{"$f":"COUNTIF($J$4:$J$153,\"BBC\")","v":0},{"$f":"COUNTIF($J$4:$J$153,\"GBC\")","v":0},{"$f":"SUM(B158:C158)","v":0},null,"MIN BOY","MIN GIRL",null,null,null,""]
["OC",{"$f":"COUNTIF($J$4:$J$153,\"BOC\")","v":0},{"$f":"COUNTIF($J$4:$J$153,\"GOC\")","v":0},{"$f":"SUM(B159:C159)","v":0},null,{"$f":"COUNTIF(K4:K154,\"BY\")","v":0},{"$f":"COUNTIF(K4:K154,\"GY\")","v":0},null,null,null,""]
["TOTAL",{"$f":"SUM(B156:B159)","v":0},{"$f":"SUM(C156:C159)","v":0},{"$f":"SUM(D156:D159)","v":0},null,null,null,null,null,null,""]
[null,null,null,null,null,null,null,null,null,null,""]

{"sheet":"XTM","index":6,"n_rows":160,"n_cols":27,"rows_kept":160,"cut":false,"hidden":false,"merged":[[0,0,0,6],[1,0,1,1],[156,5,156,6]]}
["XTM-2018-19"]
[{"$f":"RIGHT(CELL(\"filename\",C3),LEN(CELL(\"filename\",C3))-FIND(\"]\",CELL(\"filename\",C3)))","v":"XTM"},null,null,null,null,null,null,null,null,null,null,null,null,null,null,null,null,null,null,null,null,"GRADES"]
["RNO","ADMN NO","NAME OF THE STUDENT","FATHER'S NAME","CASTE","DOB","DOA","SEX","MUSLIM",null,null,"TEL","HIN","ENG","MAT","SCI","SOC","ATT","TOTAL M","MARKS %",null,"TEL","HIN","ENG","MAT","SCI","SOC"]
[null,null,null,null,null,null,null,null,null,null,null,null,null,null,null,null,null,null,{"$f":"SUM(L4:Q4)","v":0},{"$f":"S4/600%","v":0},null,{"$f":"sscFGrade(L4)","v":""},{"$f":"sscFGrade(M4)","v":""},"","","",""]
[null,null,null,null,null,null,null,null,null,null,null,null,null,null,null,null,null,null,{"$f":"SUM(L5:Q5)","v":0},{"$f":"S5/600%","v":0},null,{"$f":"sscFGrade(L5)","v":""},{"$f":"sscFGrade(M5)","v":""},{"$f":"sscFGrade(N5)","v":""},{"$f":"sscFGrade(O5)","v":""},{"$f":"sscFGrade(P5)","v":""},{"$f":"sscFGrade(Q5)","v":""}]
[null,null,null,null,null,null,null,null,null,null,null,null,null,null,null,null,null,null,0,0,null,"","","","","",""]
[null,null,null,null,null,null,null,null,null,null,null,null,null,null,null,null,null,null,0,0,null,"","","","","",""]
[null,null,null,null,null,null,null,null,null,null,null,null,null,null,null,null,null,null,0,0,null,"","","","","",""]
[null,null,null,null,null,null,null,null,null,null,null,null,null,null,null,null,null,null,0,0,null,"","","","","",""]
[null,null,null,null,null,null,null,null,null,null,null,null,null,null,null,null,null,null,0,0,null,"","","","","",""]
[null,null,null,null,null,null,null,null,null,null,null,null,null,null,null,null,null,null,0,0,null,"","","","","",""]
[null,null,null,null,null,null,null,null,null,null,null,null,null,null,null,null,null,null,0,0,null,"","","","","",""]
[null,null,null,null,null,null,null,null,null,null,null,null,null,null,null,null,null,null,0,0,null,"","","","","",""]
[null,null,null,null,null,null,null,null,null,null,null,null,null,null,null,null,null,null,0,0,null,"","","","","",""]
[null,null,null,null,null,null,null,null,null,null,null,null,null,null,null,null,null,null,0,0,null,"","","","","",""]
[null,null,null,null,null,null,null,null,null,null,null,null,null,null,null,null,null,null,0,0,null,"","","","","",""]
[null,null,null,null,null,null,null,null,null,null,null,null,null,null,null,null,null,null,0,0,null,"","","","","",""]
[null,null,null,null,null,null,null,null,null,null,null,null,null,null,null,null,null,null,0,0,null,"","","","","",""]
[null,null,null,null,null,null,null,null,null,null,null,null,null,null,null,null,null,null,0,0,null,"","","","","",""]
[null,null,null,null,null,null,null,null,null,null,null,null,null,null,null,null,null,null,0,0,null,"","","","","",""]
[null,null,null,null,null,null,null,null,null,null,null,null,null,null,null,null,null,null,0,0,null,"","","","","",""]
[null,null,null,null,null,null,null,null,null,null,null,null,null,null,null,null,null,null,0,0,null,"","","","","",""]
[null,null,null,null,null,null,null,null,null,null,null,null,null,null,null,null,null,null,0,0,null,"","","","","",""]
[null,null,null,null,null,null,null,null,null,null,null,null,null,null,null,null,null,null,0,0,null,"","","","","",""]
[null,null,null,null,null,null,null,null,null,null,null,null,null,null,null,null,null,null,0,0,null,"","","","","",""]
[null,null,null,null,null,null,null,null,null,null,null,null,null,null,null,null,null,null,0,0,null,"","","","","",""]
[null,null,null,null,null,null,null,null,null,null,null,null,null,null,null,null,null,null,0,0,null,"","","","","",""]
[null,null,null,null,null,null,null,null,null,null,null,null,null,null,null,null,null,null,0,0,null,"","","","","",""]
[null,null,null,null,null,null,null,null,null,null,null,null,null,null,null,null,null,null,0,0,null,"","","","","",""]
[null,null,null,null,null,null,null,null,null,null,null,null,null,null,null,null,null,null,0,0,null,"","","","","",""]
[null,null,null,null,null,null,null,null,null,null,null,null,null,null,null,null,null,null,0,0,null,"","","","","",""]
[null,null,null,null,null,null,null,null,null,null,null,null,null,null,null,null,null,null,0,0,null,"","","","","",""]
[null,null,null,null,null,null,null,null,null,null,null,null,null,null,null,null,null,null,0,0,null,"","","","","",""]
[null,null,null,null,null,null,null,null,null,null,null,null,null,null,null,null,null,null,0,0,null,"","","","","",""]
[null,null,null,null,null,null,null,null,null,null,null,null,null,null,null,null,null,null,0,0,null,"","","","","",""]
[null,null,null,null,null,null,null,null,null,null,null,null,null,null,null,null,null,null,0,0,null,"","","","","",""]
[null,null,null,null,null,null,null,null,null,null,null,null,null,null,null,null,null,null,0,0,null,"","","","","",""]
[null,null,null,null,null,null,null,null,null,null,null,null,null,null,null,null,null,null,0,0,null,"","","","","",""]
[null,null,null,null,null,null,null,null,null,null,null,null,null,null,null,null,null,null,0,0,null,"","","","","",""]
[null,null,null,null,null,null,null,null,null,null,null,null,null,null,null,null,null,null,0,0,null,"","","","","",""]
[null,null,null,null,null,null,null,null,null,null,null,null,null,null,null,null,null,null,0,0,null,"","","","","",""]
[null,null,null,null,null,null,null,null,null,null,null,null,null,null,null,null,null,null,0,0,null,"","","","","",""]
[null,null,null,null,null,null,null,null,null,null,null,null,null,null,null,null,null,null,0,0,null,"","","","","",""]
[null,null,null,null,null,null,null,null,null,null,null,null,null,null,null,null,null,null,0,0,null,"","","","","",""]
[null,null,null,null,null,null,null,null,null,null,null,null,null,null,null,null,null,null,0,0,null,"","","","","",""]
[null,null,null,null,null,null,null,null,null,null,null,null,null,null,null,null,null,null,0,0,null,"","","","","",""]
[null,null,null,null,null,null,null,null,null,null,null,null,null,null,null,null,null,null,0,0,null,"","","","","",""]
[null,null,null,null,null,null,null,null,null,null,null,null,null,null,null,null,null,null,0,0,null,"","","","","",""]
[null,null,null,null,null,null,null,null,null,null,null,null,null,null,null,null,null,null,0,0,null,"","","","","",""]
[null,null,null,null,null,null,null,null,null,null,null,null,null,null,null,null,null,null,0,0,null,"","","","","",""]
[null,null,null,null,null,null,null,null,null,null,null,null,null,null,null,null,null,null,0,0,null,"","","","","",""]
[null,null,null,null,null,null,null,null,null,null,null,null,null,null,null,null,null,null,0,0,null,"","","","","",""]
[null,null,null,null,null,null,null,null,null,null,null,null,null,null,null,null,null,null,0,0,null,"","","","","",""]
[null,null,null,null,null,null,null,null,null,null,null,null,null,null,null,null,null,null,0,0,null,"","","","","",""]
[null,null,null,null,null,null,null,null,null,null,null,null,null,null,null,null,null,null,0,0,null,"","","","","",""]
[null,null,null,null,null,null,null,null,null,null,null,null,null,null,null,null,null,null,0,0,null,"","","","","",""]
[null,null,null,null,null,null,null,null,null,null,null,null,null,null,null,null,null,null,0,0,null,"","","","","",""]
[null,null,null,null,null,null,null,null,null,null,null,null,null,null,null,null,null,null,0,0,null,"","","","","",""]
[null,null,null,null,null,null,null,null,null,null,null,null,null,null,null,null,null,null,0,0,null,"","","","","",""]
[null,null,null,null,null,null,null,null,null,null,null,null,null,null,null,null,null,null,0,0,null,"","","","","",""]
[null,null,null,null,null,null,null,null,null,null,null,null,null,null,null,null,null,null,0,0,null,"","","","","",""]
[null,null,null,null,null,null,null,null,null,null,null,null,null,null,null,null,null,null,0,0,null,"","","","","",""]
[null,null,null,null,null,null,null,null,null,null,null,null,null,null,null,null,null,null,0,0,null,"","","","","",""]
[null,null,null,null,null,null,null,null,null,null,null,null,null,null,null,null,null,null,0,0,null,"","","","","",""]
[null,null,null,null,null,null,null,null,null,null,null,null,null,null,null,null,null,null,0,0,null,"","","","","",""]
[null,null,null,null,null,null,null,null,null,null,null,null,null,null,null,null,null,null,0,0,null,"","","","","",""]
[null,null,null,null,null,null,null,null,null,null,null,null,null,null,null,null,null,null,0,0,null,"","","","","",""]
[null,null,null,null,null,null,null,null,null,null,null,null,null,null,null,null,null,null,0,0,null,"","","","","",""]
[null,null,null,null,null,null,null,null,null,null,null,null,null,null,null,null,null,null,{"$f":"SUM(L69:Q69)","v":0},{"$f":"S69/600%","v":0},null,{"$f":"sscFGrade(L69)","v":""},{"$f":"sscFGrade(M69)","v":""},{"$f":"sscFGrade(N69)","v":""},{"$f":"sscFGrade(O69)","v":""},{"$f":"sscFGrade(P69)","v":""},{"$f":"sscFGrade(Q69)","v":""}]
[null,null,null,null,null,null,null,null,null,null,null,null,null,null,null,null,null,null,0,0,null,"","","","","",""]
[null,null,null,null,null,null,null,null,null,null,null,null,null,null,null,null,null,null,0,0,null,"","","","","",""]
[null,null,null,null,null,null,null,null,null,null,null,null,null,null,null,null,null,null,0,0,null,"","","","","",""]
[null,null,null,null,null,null,null,null,null,null,null,null,null,null,null,null,null,null,0,0,null,"","","","","",""]
[null,null,null,null,null,null,null,null,null,null,null,null,null,null,null,null,null,null,0,0,null,"","","","","",""]
[null,null,null,null,null,null,null,null,null,null,null,null,null,null,null,null,null,null,0,0,null,"","","","","",""]
[null,null,null,null,null,null,null,null,null,null,null,null,null,null,null,null,null,null,0,0,null,"","","","","",""]
[null,null,null,null,null,null,null,null,null,null,null,null,null,null,null,null,null,null,0,0,null,"","","","","",""]
[null,null,null,null,null,null,null,null,null,null,null,null,null,null,null,null,null,null,0,0,null,"","","","","",""]
[null,null,null,null,null,null,null,null,null,null,null,null,null,null,null,null,null,null,0,0,null,"","","","","",""]
[null,null,null,null,null,null,null,null,null,null,null,null,null,null,null,null,null,null,0,0,null,"","","","","",""]
[null,null,null,null,null,null,null,null,null,null,null,null,null,null,null,null,null,null,0,0,null,"","","","","",""]
[null,null,null,null,null,null,null,null,null,null,null,null,null,null,null,null,null,null,0,0,null,"","","","","",""]
[null,null,null,null,null,null,null,null,null,null,null,null,null,null,null,null,null,null,0,0,null,"","","","","",""]
[null,null,null,null,null,null,null,null,null,null,null,null,null,null,null,null,null,null,0,0,null,"","","","","",""]
[null,null,null,null,null,null,null,null,null,null,null,null,null,null,null,null,null,null,0,0,null,"","","","","",""]
[null,null,null,null,null,null,null,null,null,null,null,null,null,null,null,null,null,null,0,0,null,"","","","","",""]
[null,null,null,null,null,null,null,null,null,null,null,null,null,null,null,null,null,null,0,0,null,"","","","","",""]
[null,null,null,null,null,null,null,null,null,null,null,null,null,null,null,null,null,null,0,0,null,"","","","","",""]
[null,null,null,null,null,null,null,null,null,null,null,null,null,null,null,null,null,null,0,0,null,"","","","","",""]
[null,null,null,null,null,null,null,null,null,null,null,null,null,null,null,null,null,null,0,0,null,"","","","","",""]
[null,null,null,null,null,null,null,null,null,null,null,null,null,null,null,null,null,null,0,0,null,"","","","","",""]
[null,null,null,null,null,null,null,null,null,null,null,null,null,null,null,null,null,null,0,0,null,"","","","","",""]
[null,null,null,null,null,null,null,null,null,null,null,null,null,null,null,null,null,null,0,0,null,"","","","","",""]
[null,null,null,null,null,null,null,null,null,null,null,null,null,null,null,null,null,null,0,0,null,"","","","","",""]
[null,null,null,null,null,null,null,null,null,null,null,null,null,null,null,null,null,null,0,0,null,"","","","","",""]
[null,null,null,null,null,null,null,null,null,null,null,null,null,null,null,null,null,null,0,0,null,"","","","","",""]
[null,null,null,null,null,null,null,null,null,null,null,null,null,null,null,null,null,null,0,0,null,"","","","","",""]
[null,null,null,null,null,null,null,null,null,null,null,null,null,null,null,null,null,null,0,0,null,"","","","","",""]
[null,null,null,null,null,null,null,null,null,null,null,null,null,null,null,null,null,null,0,0,null,"","","","","",""]
[null,null,null,null,null,null,null,null,null,null,null,null,null,null,null,null,null,null,0,0,null,"","","","","",""]
[null,null,null,null,null,null,null,null,null,null,null,null,null,null,null,null,null,null,0,0,null,"","","","","",""]
[null,null,null,null,null,null,null,null,null,null,null,null,null,null,null,null,null,null,0,0,null,"","","","","",""]
[null,null,null,null,null,null,null,null,null,null,null,null,null,null,null,null,null,null,0,0,null,"","","","","",""]
[null,null,null,null,null,null,null,null,null,null,null,null,null,null,null,null,null,null,0,0,null,"","","","","",""]
[null,null,null,null,null,null,null,null,null,null,null,null,null,null,null,null,null,null,0,0,null,"","","","","",""]
[null,null,null,null,null,null,null,null,null,null,null,null,null,null,null,null,null,null,0,0,null,"","","","","",""]
[null,null,null,null,null,null,null,null,null,null,null,null,null,null,null,null,null,null,0,0,null,"","","","","",""]
[null,null,null,null,null,null,null,null,null,null,null,null,null,null,null,null,null,null,0,0,null,"","","","","",""]
[null,null,null,null,null,null,null,null,null,null,null,null,null,null,null,null,null,null,0,0,null,"","","","","",""]
[null,null,null,null,null,null,null,null,null,null,null,null,null,null,null,null,null,null,0,0,null,"","","","","",""]
[null,null,null,null,null,null,null,null,null,null,null,null,null,null,null,null,null,null,0,0,null,"","","","","",""]
[null,null,null,null,null,null,null,null,null,null,null,null,null,null,null,null,null,null,0,0,null,"","","","","",""]
[null,null,null,null,null,null,null,null,null,null,null,null,null,null,null,null,null,null,0,0,null,"","","","","",""]
[null,null,null,null,null,null,null,null,null,null,null,null,null,null,null,null,null,null,0,0,null,"","","","","",""]
[null,null,null,null,null,null,null,null,null,null,null,null,null,null,null,null,null,null,0,0,null,"","","","","",""]
[null,null,null,null,null,null,null,null,null,null,null,null,null,null,null,null,null,null,0,0,null,"","","","","",""]
[null,null,null,null,null,null,null,null,null,null,null,null,null,null,null,null,null,null,0,0,null,"","","","","",""]
[null,null,null,null,null,null,null,null,null,null,null,null,null,null,null,null,null,null,0,0,null,"","","","","",""]
[null,null,null,null,null,null,null,null,null,null,null,null,null,null,null,null,null,null,0,0,null,"","","","","",""]
[null,null,null,null,null,null,null,null,null,null,null,null,null,null,null,null,null,null,0,0,null,"","","","","",""]
[null,null,null,null,null,null,null,null,null,null,null,null,null,null,null,null,null,null,0,0,null,"","","","","",""]
[null,null,null,null,null,null,null,null,null,null,null,null,null,null,null,null,null,null,0,0,null,"","","","","",""]
[null,null,null,null,null,null,null,null,null,null,null,null,null,null,null,null,null,null,0,0,null,"","","","","",""]
[null,null,null,null,null,null,null,null,null,null,null,null,null,null,null,null,null,null,0,0,null,"","","","","",""]
[null,null,null,null,null,null,null,null,null,null,null,null,null,null,null,null,null,null,0,0,null,"","","","","",""]
[null,null,null,null,null,null,null,null,null,null,null,null,null,null,null,null,null,null,0,0,null,"","","","","",""]
[null,null,null,null,null,null,null,null,null,null,null,null,null,null,null,null,null,null,0,0,null,"","","","","",""]
[null,null,null,null,null,null,null,null,null,null,null,null,null,null,null,null,null,null,0,0,null,"","","","","",""]
[null,null,null,null,null,null,null,null,null,null,null,null,null,null,null,null,null,null,0,0,null,"","","","","",""]
[null,null,null,null,null,null,null,null,null,null,null,null,null,null,null,null,null,null,0,0,null,"","","","","",""]
[null,null,null,null,null,null,null,null,null,null,null,null,null,null,null,null,null,null,0,0,null,"","","","","",""]
[null,null,null,null,null,null,null,null,null,null,null,null,null,null,null,null,null,null,0,0,null,"","","","","",""]
[null,null,null,null,null,null,null,null,null,null,null,null,null,null,null,null,null,null,{"$f":"SUM(L133:Q133)","v":0},{"$f":"S133/600%","v":0},null,{"$f":"sscFGrade(L133)","v":""},{"$f":"sscFGrade(M133)","v":""},{"$f":"sscFGrade(N133)","v":""},{"$f":"sscFGrade(O133)","v":""},{"$f":"sscFGrade(P133)","v":""},{"$f":"sscFGrade(Q133)","v":""}]
[null,null,null,null,null,null,null,null,null,null,null,null,null,null,null,null,null,null,0,0,null,"","","","","",""]
[null,null,null,null,null,null,null,null,null,null,null,null,null,null,null,null,null,null,0,0,null,"","","","","",""]
[null,null,null,null,null,null,null,null,null,null,null,null,null,null,null,null,null,null,0,0,null,"","","","","",""]
[null,null,null,null,null,null,null,null,null,null,null,null,null,null,null,null,null,null,0,0,null,"","","","","",""]
[null,null,null,null,null,null,null,null,null,null,null,null,null,null,null,null,null,null,0,0,null,"","","","","",""]
[null,null,null,null,null,null,null,null,null,null,null,null,null,null,null,null,null,null,0,0,null,"","","","","",""]
[null,null,null,null,null,null,null,null,null,null,null,null,null,null,null,null,null,null,0,0,null,"","","","","",""]
[null,null,null,null,null,null,null,null,null,null,null,null,null,null,null,null,null,null,0,0,null,"","","","","",""]
[null,null,null,null,null,null,null,null,null,null,null,null,null,null,null,null,null,null,0,0,null,"","","","","",""]
[null,null,null,null,null,null,null,null,null,null,null,null,null,null,null,null,null,null,0,0,null,"","","","","",""]
[null,null,null,null,null,null,null,null,null,null,null,null,null,null,null,null,null,null,0,0,null,"","","","","",""]
[null,null,null,null,null,null,null,null,null,null,null,null,null,null,null,null,null,null,0,0,null,"","","","","",""]
[null,null,null,null,null,null,null,null,null,null,null,null,null,null,null,null,null,null,{"$f":"SUM(L146:Q146)","v":0},0,null,"","","","","",""]
[null,null,null,null,null,null,null,null,null,null,null,null,null,null,null,null,null,null,0,0,null,"","","","","",""]
[null,null,null,null,null,null,null,null,null,null,null,null,null,null,null,null,null,null,0,0,null,"","","","","",""]
[null,null,null,null,null,null,null,null,null,null,null,null,null,null,null,null,null,null,0,0,null,"","","","","",""]
[null,null,null,null,null,null,null,null,null,null,null,null,null,null,null,null,null,null,0,0,null,"","","","","",""]
[null,null,null,null,null,null,null,null,null,null,null,null,null,null,null,null,null,null,0,0,null,"","","","","",""]
[null,null,null,null,null,null,null,null,null,null,null,null,null,null,null,null,null,null,0,0,null,"","","","","",""]
[null,null,null,null,null,null,null,null,null,null,null,null,null,null,null,null,null,null,0,0,null,"","","","","",""]
[null,null,null,null,null,null,null,null,null,null,null,null,null,null,null,null,"ATB","ATB"]
[".","BOYS","GIRLS","TOTAL",null,null,null,null,null,null,null,null,null,null,null,null,{"$f":"SUMIF(H4:H153,\"B\",R4:R153)","v":0},{"$f":"SUMIF(H4:H153,\"G\",R4:R153)","v":0},{"$f":"SUM(Q155:R155)","v":0}]
["SC",{"$f":"COUNTIF($J$4:$J$153,\"BSC\")","v":0},{"$f":"COUNTIF($J$4:$J$153,\"GSC\")","v":0},{"$f":"SUM(B156:C156)","v":0}]
["ST",{"$f":"COUNTIF($J$4:$J$153,\"BST\")","v":0},{"$f":"COUNTIF($J$4:$J$153,\"GST\")","v":0},{"$f":"SUM(B157:C157)","v":0},null,"MINORITY"]
["BC",{"$f":"COUNTIF($J$4:$J$153,\"BBC\")","v":0},{"$f":"COUNTIF($J$4:$J$153,\"GBC\")","v":0},{"$f":"SUM(B158:C158)","v":0},null,"BOYS","GIRLS"]
["OC",{"$f":"COUNTIF($J$4:$J$153,\"BOC\")","v":0},{"$f":"COUNTIF($J$4:$J$153,\"GOC\")","v":0},{"$f":"SUM(B159:C159)","v":0},null,{"$f":"COUNTIF(K4:K47,\"BY\")","v":0},{"$f":"COUNTIF(K4:K47,\"GY\")","v":0}]
["TOTAL",{"$f":"SUM(B156:B159)","v":0},{"$f":"SUM(C156:C159)","v":0},{"$f":"SUM(B160:C160)","v":0}]

{"sheet":"VIEM","index":7,"n_rows":167,"n_cols":27,"rows_kept":167,"cut":false,"hidden":false,"merged":[[0,0,0,6],[1,0,1,1]]}
["VIEM-2018-19"]
[{"$f":"RIGHT(CELL(\"filename\",C2),LEN(CELL(\"filename\",C2))-FIND(\"]\",CELL(\"filename\",C2)))","v":"VIEM"},null,null,null,null,null,null,null,null,null,null,null,null,null,null,null,null,null,null,null,null,"GRADES"]
["RNO","ADMN NO","NAME OF THE STUDENT","FATHER'S NAME","CASTE","DOB","DOA","SEX","MUSLIM",null,null,"TEL","HIN","ENG","MAT","SCI","SOC","ATT","TOTAL M","MARKS %",null,"TEL","HIN","ENG","MAT","SCI","SOC"]
[null,null,null,null,null,null,null,null,null,{"$f":"H4&E4","v":""},{"$f":"H4&I4","v":""},null,null,null,null,null,null,null,{"$f":"SUM(L4:Q4)","v":0},{"$f":"S4/600%","v":0},null,{"$f":"fgrade(L4)","v":""},{"$f":"fgrade(M4)","v":""},"","","",""]
[null,null,null,null,null,null,null,null,null,"","",null,null,null,null,null,null,null,{"$f":"SUM(L5:Q5)","v":0},{"$f":"S5/600%","v":0},null,{"$f":"fgrade(L5)","v":""},{"$f":"fgrade(M5)","v":""},{"$f":"fgrade(N5)","v":""},{"$f":"fgrade(O5)","v":""},{"$f":"fgrade(P5)","v":""},{"$f":"fgrade(Q5)","v":""}]
[null,null,null,null,null,null,null,null,null,"","",null,null,null,null,null,null,null,0,0,null,"","","","","",""]
[null,null,null,null,null,null,null,null,null,"","",null,null,null,null,null,null,null,0,0,null,"","","","","",""]
[null,null,null,null,null,null,null,null,null,"","",null,null,null,null,null,null,null,0,0,null,"","","","","",""]
[null,null,null,null,null,null,null,null,null,"","",null,null,null,null,null,null,null,0,0,null,"","","","","",""]
[null,null,null,null,null,null,null,null,null,"","",null,null,null,null,null,null,null,0,0,null,"","","","","",""]
[null,null,null,null,null,null,null,null,null,"","",null,null,null,null,null,null,null,0,0,null,"","","","","",""]
[null,null,null,null,null,null,null,null,null,"","",null,null,null,null,null,null,null,0,0,null,"","","","","",""]
[null,null,null,null,null,null,null,null,null,"","",null,null,null,null,null,null,null,0,0,null,"","","","","",""]
[null,null,null,null,null,null,null,null,null,"","",null,null,null,null,null,null,null,0,0,null,"","","","","",""]
[null,null,null,null,null,null,null,null,null,"","",null,null,null,null,null,null,null,0,0,null,"","","","","",""]
[null,null,null,null,null,null,null,null,null,"","",null,null,null,null,null,null,null,0,0,null,"","","","","",""]
[null,null,null,null,null,null,null,null,null,"","",null,null,null,null,null,null,null,0,0,null,"","","","","",""]
[null,null,null,null,null,null,null,null,null,"","",null,null,null,null,null,null,null,0,0,null,"","","","","",""]
[null,null,null,null,null,null,null,null,null,"","",null,null,null,null,null,null,null,0,0,null,"","","","","",""]
[null,null,null,null,null,null,null,null,null,"","",null,null,null,null,null,null,null,0,0,null,"","","","","",""]
[null,null,null,null,null,null,null,null,null,"","",null,null,null,null,null,null,null,0,0,null,"","","","","",""]
[null,null,null,null,null,null,null,null,null,"","",null,null,null,null,null,null,null,0,0,null,"","","","","",""]
[null,null,null,null,null,null,null,null,null,"","",null,null,null,null,null,null,null,0,0,null,"","","","","",""]
[null,null,null,null,null,null,null,null,null,"","",null,null,null,null,null,null,null,0,0,null,"","","","","",""]
[null,null,null,null,null,null,null,null,null,"","",null,null,null,null,null,null,null,0,0,null,"","","","","",""]
[null,null,null,null,null,null,null,null,null,"","",null,null,null,null,null,null,null,0,0,null,"","","","","",""]
[null,null,null,null,null,null,null,null,null,"","",null,null,null,null,null,null,null,0,0,null,"","","","","",""]
[null,null,null,null,null,null,null,null,null,"","",null,null,null,null,null,null,null,0,0,null,"","","","","",""]
[null,null,null,null,null,null,null,null,null,"","",null,null,null,null,null,null,null,0,0,null,"","","","","",""]
[null,null,null,null,null,null,null,null,null,"","",null,null,null,null,null,null,null,0,0,null,"","","","","",""]
[null,null,null,null,null,null,null,null,null,"","",null,null,null,null,null,null,null,0,0,null,"","","","","",""]
[null,null,null,null,null,null,null,null,null,"","",null,null,null,null,null,null,null,0,0,null,"","","","","",""]
[null,null,null,null,null,null,null,null,null,"","",null,null,null,null,null,null,null,0,0,null,"","","","","",""]
[null,null,null,null,null,null,null,null,null,"","",null,null,null,null,null,null,null,0,0,null,"","","","","",""]
[null,null,null,null,null,null,null,null,null,"","",null,null,null,null,null,null,null,0,0,null,"","","","","",""]
[null,null,null,null,null,null,null,null,null,"","",null,null,null,null,null,null,null,0,0,null,"","","","","",""]
[null,null,null,null,null,null,null,null,null,"","",null,null,null,null,null,null,null,0,0,null,"","","","","",""]
[null,null,null,null,null,null,null,null,null,"","",null,null,null,null,null,null,null,0,0,null,"","","","","",""]
[null,null,null,null,null,null,null,null,null,"","",null,null,null,null,null,null,null,0,0,null,"","","","","",""]
[null,null,null,null,null,null,null,null,null,"","",null,null,null,null,null,null,null,0,0,null,"","","","","",""]
[null,null,null,null,null,null,null,null,null,"","",null,null,null,null,null,null,null,0,0,null,"","","","","",""]
[null,null,null,null,null,null,null,null,null,"","",null,null,null,null,null,null,null,0,0,null,"","","","","",""]
[null,null,null,null,null,null,null,null,null,"","",null,null,null,null,null,null,null,0,0,null,"","","","","",""]
[null,null,null,null,null,null,null,null,null,"","",null,null,null,null,null,null,null,0,0,null,"","","","","",""]
[null,null,null,null,null,null,null,null,null,"","",null,null,null,null,null,null,null,0,0,null,"","","","","",""]
[null,null,null,null,null,null,null,null,null,"","",null,null,null,null,null,null,null,0,0,null,"","","","","",""]
[null,null,null,null,null,null,null,null,null,"","",null,null,null,null,null,null,null,0,0,null,"","","","","",""]
[null,null,null,null,null,null,null,null,null,"","",null,null,null,null,null,null,null,0,0,null,"","","","","",""]
[null,null,null,null,null,null,null,null,null,"","",null,null,null,null,null,null,null,{"$f":"SUM(L49:Q49)","v":0},0,null,"","","","","",""]
[null,null,null,null,null,null,null,null,null,{"$f":"H50&E50","v":""},{"$f":"H50&I50","v":""},null,null,null,null,null,null,null,{"$f":"SUM(L50:Q50)","v":0},0,null,"","","","","",""]
[null,null,null,null,null,null,null,null,null,"","",null,null,null,null,null,null,null,0,0,null,"","","","","",""]
[null,null,null,null,null,null,null,null,null,"","",null,null,null,null,null,null,null,0,0,null,"","","","","",""]
[null,null,null,null,null,null,null,null,null,"","",null,null,null,null,null,null,null,0,0,null,"","","","","",""]
[null,null,null,null,null,null,null,null,null,"","",null,null,null,null,null,null,null,0,0,null,"","","","","",""]
[null,null,null,null,null,null,null,null,null,"","",null,null,null,null,null,null,null,0,0,null,"","","","","",""]
[null,null,null,null,null,null,null,null,null,"","",null,null,null,null,null,null,null,0,0,null,"","","","","",""]
[null,null,null,null,null,null,null,null,null,"","",null,null,null,null,null,null,null,0,0,null,"","","","","",""]
[null,null,null,null,null,null,null,null,null,"","",null,null,null,null,null,null,null,0,0,null,"","","","","",""]
[null,null,null,null,null,null,null,null,null,"","",null,null,null,null,null,null,null,0,0,null,"","","","","",""]
[null,null,null,null,null,null,null,null,null,"","",null,null,null,null,null,null,null,0,0,null,"","","","","",""]
[null,null,null,null,null,null,null,null,null,"","",null,null,null,null,null,null,null,0,0,null,"","","","","",""]
[null,null,null,null,null,null,null,null,null,"","",null,null,null,null,null,null,null,0,0,null,"","","","","",""]
[null,null,null,null,null,null,null,null,null,"","",null,null,null,null,null,null,null,0,0,null,"","","","","",""]
[null,null,null,null,null,null,null,null,null,"","",null,null,null,null,null,null,null,0,0,null,"","","","","",""]
[null,null,null,null,null,null,null,null,null,"","",null,null,null,null,null,null,null,0,0,null,"","","","","",""]
[null,null,null,null,null,null,null,null,null,"","",null,null,null,null,null,null,null,0,0,null,"","","","","",""]
[null,null,null,null,null,null,null,null,null,"","",null,null,null,null,null,null,null,0,0,null,"","","","","",""]
[null,null,null,null,null,null,null,null,null,"","",null,null,null,null,null,null,null,0,0,null,"","","","","",""]
[null,null,null,null,null,null,null,null,null,"","",null,null,null,null,null,null,null,0,{"$f":"S69/600%","v":0},null,{"$f":"fgrade(L69)","v":""},{"$f":"fgrade(M69)","v":""},{"$f":"fgrade(N69)","v":""},{"$f":"fgrade(O69)","v":""},{"$f":"fgrade(P69)","v":""},{"$f":"fgrade(Q69)","v":""}]
[null,null,null,null,null,null,null,null,null,"","",null,null,null,null,null,null,null,0,0,null,"","","","","",""]
[null,null,null,null,null,null,null,null,null,"","",null,null,null,null,null,null,null,0,0,null,"","","","","",""]
[null,null,null,null,null,null,null,null,null,"","",null,null,null,null,null,null,null,0,0,null,"","","","","",""]
[null,null,null,null,null,null,null,null,null,"","",null,null,null,null,null,null,null,0,0,null,"","","","","",""]
[null,null,null,null,null,null,null,null,null,"","",null,null,null,null,null,null,null,0,0,null,"","","","","",""]
[null,null,null,null,null,null,null,null,null,"","",null,null,null,null,null,null,null,0,0,null,"","","","","",""]
[null,null,null,null,null,null,null,null,null,"","",null,null,null,null,null,null,null,0,0,null,"","","","","",""]
[null,null,null,null,null,null,null,null,null,"","",null,null,null,null,null,null,null,0,0,null,"","","","","",""]
[null,null,null,null,null,null,null,null,null,"","",null,null,null,null,null,null,null,0,0,null,"","","","","",""]
[null,null,null,null,null,null,null,null,null,"","",null,null,null,null,null,null,null,0,0,null,"","","","","",""]
[null,null,null,null,null,null,null,null,null,"","",null,null,null,null,null,null,null,0,0,null,"","","","","",""]
[null,null,null,null,null,null,null,null,null,"","",null,null,null,null,null,null,null,0,0,null,"","","","","",""]
[null,null,null,null,null,null,null,null,null,"","",null,null,null,null,null,null,null,0,0,null,"","","","","",""]
[null,null,null,null,null,null,null,null,null,"","",null,null,null,null,null,null,null,0,0,null,"","","","","",""]
[null,null,null,null,null,null,null,null,null,"","",null,null,null,null,null,null,null,0,0,null,"","","","","",""]
[null,null,null,null,null,null,null,null,null,"","",null,null,null,null,null,null,null,0,0,null,"","","","","",""]
[null,null,null,null,null,null,null,null,null,"","",null,null,null,null,null,null,null,0,0,null,"","","","","",""]
[null,null,null,null,null,null,null,null,null,"","",null,null,null,null,null,null,null,0,0,null,"","","","","",""]
[null,null,null,null,null,null,null,null,null,"","",null,null,null,null,null,null,null,0,0,null,"","","","","",""]
[null,null,null,null,null,null,null,null,null,"","",null,null,null,null,null,null,null,0,0,null,"","","","","",""]
[null,null,null,null,null,null,null,null,null,"","",null,null,null,null,null,null,null,0,0,null,"","","","","",""]
[null,null,null,null,null,null,null,null,null,"","",null,null,null,null,null,null,null,0,0,null,"","","","","",""]
[null,null,null,null,null,null,null,null,null,{"$f":"H92&E92","v":""},{"$f":"H92&I92","v":""},null,null,null,null,null,null,null,0,0,null,"","","","","",""]
[null,null,null,null,null,null,null,null,null,"","",null,null,null,null,null,null,null,0,0,null,"","","","","",""]
[null,null,null,null,null,null,null,null,null,"","",null,null,null,null,null,null,null,0,0,null,"","","","","",""]
[null,null,null,null,null,null,null,null,null,"","",null,null,null,null,null,null,null,0,0,null,"","","","","",""]
[null,null,null,null,null,null,null,null,null,"","",null,null,null,null,null,null,null,0,0,null,"","","","","",""]
[null,null,null,null,null,null,null,null,null,"","",null,null,null,null,null,null,null,0,0,null,"","","","","",""]
[null,null,null,null,null,null,null,null,null,"","",null,null,null,null,null,null,null,0,0,null,"","","","","",""]
[null,null,null,null,null,null,null,null,null,"","",null,null,null,null,null,null,null,0,0,null,"","","","","",""]
[null,null,null,null,null,null,null,null,null,"","",null,null,null,null,null,null,null,0,0,null,"","","","","",""]
[null,null,null,null,null,null,null,null,null,"","",null,null,null,null,null,null,null,0,0,null,"","","","","",""]
[null,null,null,null,null,null,null,null,null,"","",null,null,null,null,null,null,null,0,0,null,"","","","","",""]
[null,null,null,null,null,null,null,null,null,"","",null,null,null,null,null,null,null,0,0,null,"","","","","",""]
[null,null,null,null,null,null,null,null,null,"","",null,null,null,null,null,null,null,0,0,null,"","","","","",""]
[null,null,null,null,null,null,null,null,null,"","",null,null,null,null,null,null,null,0,0,null,"","","","","",""]
[null,null,null,null,null,null,null,null,null,"","",null,null,null,null,null,null,null,0,0,null,"","","","","",""]
[null,null,null,null,null,null,null,null,null,"","",null,null,null,null,null,null,null,0,0,null,"","","","","",""]
[null,null,null,null,null,null,null,null,null,"","",null,null,null,null,null,null,null,0,0,null,"","","","","",""]
[null,null,null,null,null,null,null,null,null,"","",null,null,null,null,null,null,null,0,0,null,"","","","","",""]
[null,null,null,null,null,null,null,null,null,"","",null,null,null,null,null,null,null,0,0,null,"","","","","",""]
[null,null,null,null,null,null,null,null,null,"","",null,null,null,null,null,null,null,0,0,null,"","","","","",""]
[null,null,null,null,null,null,null,null,null,"","",null,null,null,null,null,null,null,0,0,null,"","","","","",""]
[null,null,null,null,null,null,null,null,null,"","",null,null,null,null,null,null,null,0,0,null,"","","","","",""]
[null,null,null,null,null,null,null,null,null,"","",null,null,null,null,null,null,null,{"$f":"SUM(L114:Q114)","v":0},0,null,"","","","","",""]
[null,null,null,null,null,null,null,null,null,"","",null,null,null,null,null,null,null,0,0,null,"","","","","",""]
[null,null,null,null,null,null,null,null,null,"","",null,null,null,null,null,null,null,0,0,null,"","","","","",""]
[null,null,null,null,null,null,null,null,null,"","",null,null,null,null,null,null,null,0,0,null,"","","","","",""]
[null,null,null,null,null,null,null,null,null,"","",null,null,null,null,null,null,null,0,0,null,"","","","","",""]
[null,null,null,null,null,null,null,null,null,"","",null,null,null,null,null,null,null,0,0,null,"","","","","",""]
[null,null,null,null,null,null,null,null,null,"","",null,null,null,null,null,null,null,0,0,null,"","","","","",""]
[null,null,null,null,null,null,null,null,null,"","",null,null,null,null,null,null,null,0,0,null,"","","","","",""]
[null,null,null,null,null,null,null,null,null,"","",null,null,null,null,null,null,null,0,0,null,"","","","","",""]
[null,null,null,null,null,null,null,null,null,"","",null,null,null,null,null,null,null,0,0,null,"","","","","",""]
[null,null,null,null,null,null,null,null,null,"","",null,null,null,null,null,null,null,0,0,null,"","","","","",""]
[null,null,null,null,null,null,null,null,null,"","",null,null,null,null,null,null,null,0,0,null,"","","","","",""]
[null,null,null,null,null,null,null,null,null,"","",null,null,null,null,null,null,null,0,0,null,"","","","","",""]
[null,null,null,null,null,null,null,null,null,"","",null,null,null,null,null,null,null,0,0,null,"","","","","",""]
[null,null,null,null,null,null,null,null,null,"","",null,null,null,null,null,null,null,0,0,null,"","","","","",""]
[null,null,null,null,null,null,null,null,null,"","",null,null,null,null,null,null,null,0,0,null,"","","","","",""]
[null,null,null,null,null,null,null,null,null,"","",null,null,null,null,null,null,null,0,0,null,"","","","","",""]
[null,null,null,null,null,null,null,null,null,"","",null,null,null,null,null,null,null,0,0,null,"","","","","",""]
[null,null,null,null,null,null,null,null,null,{"$f":"H132&E132","v":""},{"$f":"H132&I132","v":""},null,null,null,null,null,null,null,0,0,null,"","","","","",""]
[null,null,null,null,null,null,null,null,null,"","",null,null,null,null,null,null,null,0,{"$f":"S133/600%","v":0},null,{"$f":"fgrade(L133)","v":""},{"$f":"fgrade(M133)","v":""},{"$f":"fgrade(N133)","v":""},{"$f":"fgrade(O133)","v":""},{"$f":"fgrade(P133)","v":""},{"$f":"fgrade(Q133)","v":""}]
[null,null,null,null,null,null,null,null,null,"","",null,null,null,null,null,null,null,0,0,null,"","","","","",""]
[null,null,null,null,null,null,null,null,null,"","",null,null,null,null,null,null,null,0,0,null,"","","","","",""]
[null,null,null,null,null,null,null,null,null,"","",null,null,null,null,null,null,null,0,0,null,"","","","","",""]
[null,null,null,null,null,null,null,null,null,"","",null,null,null,null,null,null,null,0,0,null,"","","","","",""]
[null,null,null,null,null,null,null,null,null,"","",null,null,null,null,null,null,null,0,0,null,"","","","","",""]
[null,null,null,null,null,null,null,null,null,"","",null,null,null,null,null,null,null,0,0,null,"","","","","",""]
[null,null,null,null,null,null,null,null,null,"","",null,null,null,null,null,null,null,0,0,null,"","","","","",""]
[null,null,null,null,null,null,null,null,null,"","",null,null,null,null,null,null,null,0,0,null,"","","","","",""]
[null,null,null,null,null,null,null,null,null,"","",null,null,null,null,null,null,null,0,0,null,"","","","","",""]
[null,null,null,null,null,null,null,null,null,"","",null,null,null,null,null,null,null,0,0,null,"","","","","",""]
[null,null,null,null,null,null,null,null,null,"","",null,null,null,null,null,null,null,0,0,null,"","","","","",""]
[null,null,null,null,null,null,null,null,null,"","",null,null,null,null,null,null,null,0,0,null,"","","","","",""]
[null,null,null,null,null,null,null,null,null,"","",null,null,null,null,null,null,null,0,0,null,"","","","","",""]
[null,null,null,null,null,null,null,null,null,"","",null,null,null,null,null,null,null,0,0,null,"","","","","",""]
[null,null,null,null,null,null,null,null,null,"","",null,null,null,null,null,null,null,0,0,null,"","","","","",""]
[null,null,null,null,null,null,null,null,null,"","",null,null,null,null,null,null,null,0,0,null,"","","","","",""]
[null,null,null,null,null,null,null,null,null,"","",null,null,null,null,null,null,null,0,0,null,"","","","","",""]
[null,null,null,null,null,null,null,null,null,"","",null,null,null,null,null,null,null,0,0,null,"","","","","",""]
[null,null,null,null,null,null,null,null,null,"","",null,null,null,null,null,null,null,0,0,null,"","","","","",""]
[null,null,null,null,null,null,null,null,null,"","",null,null,null,null,null,null,null,0,0,null,"","","","","",""]
[".",null,null,null,null,null,null,null,null,null,"",null,null,null,null,null,"AT6B","AT6G"]
[".","BOYS","GIRLS","TOTAL",null,null,null,null,null,null,"",null,null,null,null,null,{"$f":"SUMIF(H4:H153,\"B\",R4:R153)","v":0},{"$f":"SUMIF(H4:H153,\"G\",R4:R153)","v":0},{"$f":"SUM(Q155:R155)","v":0}]
["SC",{"$f":"COUNTIF($J$4:$J$153,\"BSC\")","v":0},{"$f":"COUNTIF($J$4:$J$153,\"GSC\")","v":0},{"$f":"SUM(B156:C156)","v":0},null,null,null,null,null,null,""]
["ST",{"$f":"COUNTIF($J$4:$J$153,\"BST\")","v":0},{"$f":"COUNTIF($J$4:$J$153,\"GST\")","v":0},{"$f":"SUM(B157:C157)","v":0},null,null,null,null,null,null,""]
["BC",{"$f":"COUNTIF($J$4:$J$153,\"BBC\")","v":0},{"$f":"COUNTIF($J$4:$J$153,\"GBC\")","v":0},{"$f":"SUM(B158:C158)","v":0},null,"MIN BOY","MIN GIRL",null,null,null,""]
["OC",{"$f":"COUNTIF($J$4:$J$153,\"BOC\")","v":0},{"$f":"COUNTIF($J$4:$J$153,\"GOC\")","v":0},{"$f":"SUM(B159:C159)","v":0},null,{"$f":"COUNTIF(K4:K154,\"BY\")","v":0},{"$f":"COUNTIF(K4:K154,\"GY\")","v":0},null,null,null,""]
["TOTAL",{"$f":"SUM(B156:B159)","v":0},{"$f":"SUM(C156:C159)","v":0},{"$f":"SUM(B160:C160)","v":0},null,null,null,null,null,null,""]
[null,null,null,null,null,null,null,null,null,null,""]
[null,null,null,null,null,null,null,null,null,null,""]
[null,null,null,null,null,null,null,null,null,null,""]
[null,null,null,null,null,null,null,null,null,null,""]
[null,null,null,null,null,null,null,null,null,null,""]
[null,null,null,null,null,null,null,null,null,null,""]
[null,null,null,null,null,null,null,null,null,null,""]

{"sheet":"VIIEM","index":8,"n_rows":160,"n_cols":27,"rows_kept":160,"cut":false,"hidden":false,"merged":[[0,0,0,6],[1,0,1,1]]}
["VIIEM-2018-19"]
[{"$f":"RIGHT(CELL(\"filename\",C3),LEN(CELL(\"filename\",C3))-FIND(\"]\",CELL(\"filename\",C3)))","v":"VIIEM"},null,null,null,null,null,null,null,null,null,null,null,null,null,null,null,null,null,null,null,null,"GRADES"]
["RNO","ADMN NO","NAME OF THE STUDENT","FATHER'S NAME","CASTE","DOB","DOA","SEX","MUSLIM",null,null,"TEL","HIN","ENG","MAT","SCI","SOC","ATT","TOTAL M","MARKS %",null,"TEL","HIN","ENG","MAT","SCI","SOC"]
[null,null,null,null,null,null,null,null,null,{"$f":"TRIM(H4&E4)","v":""},{"$f":"H4&I4","v":""},null,null,null,null,null,null,null,{"$f":"SUM(L4:Q4)","v":0},{"$f":"S4/600%","v":0},null,{"$f":"fgrade(L4)","v":""},{"$f":"fgrade(M4)","v":""},"","","",""]
[null,null,null,null,null,null,null,null,null,"","",null,null,null,null,null,null,null,{"$f":"SUM(L5:Q5)","v":0},{"$f":"S5/600%","v":0},null,{"$f":"fgrade(L5)","v":""},{"$f":"fgrade(M5)","v":""},{"$f":"fgrade(N5)","v":""},{"$f":"fgrade(O5)","v":""},{"$f":"fgrade(P5)","v":""},{"$f":"fgrade(Q5)","v":""}]
[null,null,null,null,null,null,null,null,null,"","",null,null,null,null,null,null,null,0,0,null,"","","","","",""]
[null,null,null,null,null,null,null,null,null,"","",null,null,null,null,null,null,null,0,0,null,"","","","","",""]
[null,null,null,null,null,null,null,null,null,"","",null,null,null,null,null,null,null,0,0,null,"","","","","",""]
[null,null,null,null,null,null,null,null,null,"","",null,null,null,null,null,null,null,0,0,null,"","","","","",""]
[null,null,null,null,null,null,null,null,null,"","",null,null,null,null,null,null,null,0,0,null,"","","","","",""]
[null,null,null,null,null,null,null,null,null,"","",null,null,null,null,null,null,null,0,0,null,"","","","","",""]
[null,null,null,null,null,null,null,null,null,"","",null,null,null,null,null,null,null,0,0,null,"","","","","",""]
[null,null,null,null,null,null,null,null,null,"","",null,null,null,null,null,null,null,0,0,null,"","","","","",""]
[null,null,null,null,null,null,null,null,null,"","",null,null,null,null,null,null,null,0,0,null,"","","","","",""]
[null,null,null,null,null,null,null,null,null,"","",null,null,null,null,null,null,null,0,0,null,"","","","","",""]
[null,null,null,null,null,null,null,null,null,"","",null,null,null,null,null,null,null,0,0,null,"","","","","",""]
[null,null,null,null,null,null,null,null,null,"","",null,null,null,null,null,null,null,0,0,null,"","","","","",""]
[null,null,null,null,null,null,null,null,null,"","",null,null,null,null,null,null,null,0,0,null,"","","","","",""]
[null,null,null,null,null,null,null,null,null,"","",null,null,null,null,null,null,null,0,{"$f":"S19/600%","v":0},null,"","","","","",""]
[null,null,null,null,null,null,null,null,null,"","",null,null,null,null,null,null,null,0,0,null,"","","","","",""]
[null,null,null,null,null,null,null,null,null,"","",null,null,null,null,null,null,null,0,0,null,"","","","","",""]
[null,null,null,null,null,null,null,null,null,"","",null,null,null,null,null,null,null,0,0,null,"","","","","",""]
[null,null,null,null,null,null,null,null,null,"","",null,null,null,null,null,null,null,0,0,null,"","","","","",""]
[null,null,null,null,null,null,null,null,null,"","",null,null,null,null,null,null,null,0,0,null,"","","","","",""]
[null,null,null,null,null,null,null,null,null,"","",null,null,null,null,null,null,null,0,0,null,"","","","","",""]
[null,null,null,null,null,null,null,null,null,"","",null,null,null,null,null,null,null,0,0,null,"","","","","",""]
[null,null,null,null,null,null,null,null,null,"","",null,null,null,null,null,null,null,0,0,null,"","","","","",""]
[null,null,null,null,null,null,null,null,null,"","",null,null,null,null,null,null,null,0,0,null,"","","","","",""]
[null,null,null,null,null,null,null,null,null,"","",null,null,null,null,null,null,null,0,0,null,"","","","","",""]
[null,null,null,null,null,null,null,null,null,"","",null,null,null,null,null,null,null,0,0,null,"","","","","",""]
[null,null,null,null,null,null,null,null,null,"","",null,null,null,null,null,null,null,0,0,null,"","","","","",""]
[null,null,null,null,null,null,null,null,null,"","",null,null,null,null,null,null,null,0,0,null,"","","","","",""]
[null,null,null,null,null,null,null,null,null,"","",null,null,null,null,null,null,null,0,0,null,"","","","","",""]
[null,null,null,null,null,null,null,null,null,"","",null,null,null,null,null,null,null,0,0,null,"","","","","",""]
[null,null,null,null,null,null,null,null,null,"","",null,null,null,null,null,null,null,0,0,null,"","","","","",""]
[null,null,null,null,null,null,null,null,null,"","",null,null,null,null,null,null,null,0,0,null,"","","","","",""]
[null,null,null,null,null,null,null,null,null,"","",null,null,null,null,null,null,null,0,0,null,"","","","","",""]
[null,null,null,null,null,null,null,null,null,"","",null,null,null,null,null,null,null,0,0,null,"","","","","",""]
[null,null,null,null,null,null,null,null,null,"","",null,null,null,null,null,null,null,0,0,null,"","","","","",""]
[null,null,null,null,null,null,null,null,null,"","",null,null,null,null,null,null,null,0,0,null,"","","","","",""]
[null,null,null,null,null,null,null,null,null,"","",null,null,null,null,null,null,null,0,0,null,"","","","","",""]
[null,null,null,null,null,null,null,null,null,"","",null,null,null,null,null,null,null,0,0,null,"","","","","",""]
[null,null,null,null,null,null,null,null,null,"","",null,null,null,null,null,null,null,0,0,null,"","","","","",""]
[null,null,null,null,null,null,null,null,null,"","",null,null,null,null,null,null,null,0,0,null,"","","","","",""]
[null,null,null,null,null,null,null,null,null,"","",null,null,null,null,null,null,null,0,0,null,"","","","","",""]
[null,null,null,null,null,null,null,null,null,"","",null,null,null,null,null,null,null,0,0,null,"","","","","",""]
[null,null,null,null,null,null,null,null,null,"","",null,null,null,null,null,null,null,0,0,null,"","","","","",""]
[null,null,null,null,null,null,null,null,null,"","",null,null,null,null,null,null,null,0,0,null,"","","","","",""]
[null,null,null,null,null,null,null,null,null,"","",null,null,null,null,null,null,null,0,0,null,"","","","","",""]
[null,null,null,null,null,null,null,null,null,"","",null,null,null,null,null,null,null,0,0,null,"","","","","",""]
[null,null,null,null,null,null,null,null,null,"","",null,null,null,null,null,null,null,0,0,null,"","","","","",""]
[null,null,null,null,null,null,null,null,null,"","",null,null,null,null,null,null,null,0,0,null,"","","","","",""]
[null,null,null,null,null,null,null,null,null,"","",null,null,null,null,null,null,null,0,0,null,"","","","","",""]
[null,null,null,null,null,null,null,null,null,"","",null,null,null,null,null,null,null,0,0,null,"","","","","",""]
[null,null,null,null,null,null,null,null,null,"","",null,null,null,null,null,null,null,0,0,null,"","","","","",""]
[null,null,null,null,null,null,null,null,null,"","",null,null,null,null,null,null,null,0,0,null,"","","","","",""]
[null,null,null,null,null,null,null,null,null,"","",null,null,null,null,null,null,null,0,0,null,"","","","","",""]
[null,null,null,null,null,null,null,null,null,"","",null,null,null,null,null,null,null,0,0,null,"","","","","",""]
[null,null,null,null,null,null,null,null,null,"","",null,null,null,null,null,null,null,0,0,null,"","","","","",""]
[null,null,null,null,null,null,null,null,null,"","",null,null,null,null,null,null,null,0,0,null,"","","","","",""]
[null,null,null,null,null,null,null,null,null,"","",null,null,null,null,null,null,null,0,0,null,"","","","","",""]
[null,null,null,null,null,null,null,null,null,"","",null,null,null,null,null,null,null,0,0,null,"","","","","",""]
[null,null,null,null,null,null,null,null,null,"","",null,null,null,null,null,null,null,0,0,null,"","","","","",""]
[null,null,null,null,null,null,null,null,null,"","",null,null,null,null,null,null,null,0,0,null,"","","","","",""]
[null,null,null,null,null,null,null,null,null,"","",null,null,null,null,null,null,null,0,0,null,"","","","","",""]
[null,null,null,null,null,null,null,null,null,"","",null,null,null,null,null,null,null,0,0,null,"","","","","",""]
[null,null,null,null,null,null,null,null,null,"","",null,null,null,null,null,null,null,0,0,null,"","","","","",""]
[null,null,null,null,null,null,null,null,null,{"$f":"TRIM(H68&E68)","v":""},{"$f":"H68&I68","v":""},null,null,null,null,null,null,null,0,0,null,"","","","","",""]
[null,null,null,null,null,null,null,null,null,"","",null,null,null,null,null,null,null,{"$f":"SUM(L69:Q69)","v":0},{"$f":"S69/600%","v":0},null,{"$f":"fgrade(L69)","v":""},{"$f":"fgrade(M69)","v":""},{"$f":"fgrade(N69)","v":""},{"$f":"fgrade(O69)","v":""},{"$f":"fgrade(P69)","v":""},{"$f":"fgrade(Q69)","v":""}]
[null,null,null,null,null,null,null,null,null,"","",null,null,null,null,null,null,null,0,0,null,"","","","","",""]
[null,null,null,null,null,null,null,null,null,"","",null,null,null,null,null,null,null,0,0,null,"","","","","",""]
[null,null,null,null,null,null,null,null,null,"","",null,null,null,null,null,null,null,0,0,null,"","","","","",""]
[null,null,null,null,null,null,null,null,null,"","",null,null,null,null,null,null,null,0,0,null,"","","","","",""]
[null,null,null,null,null,null,null,null,null,"","",null,null,null,null,null,null,null,0,0,null,"","","","","",""]
[null,null,null,null,null,null,null,null,null,"","",null,null,null,null,null,null,null,0,0,null,"","","","","",""]
[null,null,null,null,null,null,null,null,null,"","",null,null,null,null,null,null,null,0,0,null,"","","","","",""]
[null,null,null,null,null,null,null,null,null,"","",null,null,null,null,null,null,null,0,0,null,"","","","","",""]
[null,null,null,null,null,null,null,null,null,"","",null,null,null,null,null,null,null,0,0,null,"","","","","",""]
[null,null,null,null,null,null,null,null,null,"","",null,null,null,null,null,null,null,0,0,null,"","","","","",""]
[null,null,null,null,null,null,null,null,null,"","",null,null,null,null,null,null,null,0,0,null,"","","","","",""]
[null,null,null,null,null,null,null,null,null,"","",null,null,null,null,null,null,null,0,0,null,"","","","","",""]
[null,null,null,null,null,null,null,null,null,"","",null,null,null,null,null,null,null,0,0,null,"","","","","",""]
[null,null,null,null,null,null,null,null,null,"","",null,null,null,null,null,null,null,0,0,null,"","","","","",""]
[null,null,null,null,null,null,null,null,null,"","",null,null,null,null,null,null,null,0,0,null,"","","","","",""]
[null,null,null,null,null,null,null,null,null,"","",null,null,null,null,null,null,null,0,0,null,"","","","","",""]
[null,null,null,null,null,null,null,null,null,"","",null,null,null,null,null,null,null,0,0,null,"","","","","",""]
[null,null,null,null,null,null,null,null,null,"","",null,null,null,null,null,null,null,0,0,null,"","","","","",""]
[null,null,null,null,null,null,null,null,null,"","",null,null,null,null,null,null,null,0,0,null,"","","","","",""]
[null,null,null,null,null,null,null,null,null,"","",null,null,null,null,null,null,null,0,0,null,"","","","","",""]
[null,null,null,null,null,null,null,null,null,"","",null,null,null,null,null,null,null,0,0,null,"","","","","",""]
[null,null,null,null,null,null,null,null,null,"","",null,null,null,null,null,null,null,0,0,null,"","","","","",""]
[null,null,null,null,null,null,null,null,null,"","",null,null,null,null,null,null,null,0,0,null,"","","","","",""]
[null,null,null,null,null,null,null,null,null,"","",null,null,null,null,null,null,null,0,0,null,"","","","","",""]
[null,null,null,null,null,null,null,null,null,"","",null,null,null,null,null,null,null,0,0,null,"","","","","",""]
[null,null,null,null,null,null,null,null,null,"","",null,null,null,null,null,null,null,0,0,null,"","","","","",""]
[null,null,null,null,null,null,null,null,null,"","",null,null,null,null,null,null,null,0,0,null,"","","","","",""]
[null,null,null,null,null,null,null,null,null,"","",null,null,null,null,null,null,null,0,0,null,"","","","","",""]
[null,null,null,null,null,null,null,null,null,"","",null,null,null,null,null,null,null,0,0,null,"","","","","",""]
[null,null,null,null,null,null,null,null,null,"","",null,null,null,null,null,null,null,0,0,null,"","","","","",""]
[null,null,null,null,null,null,null,null,null,"","",null,null,null,null,null,null,null,0,0,null,"","","","","",""]
[null,null,null,null,null,null,null,null,null,"","",null,null,null,null,null,null,null,0,0,null,"","","","","",""]
[null,null,null,null,null,null,null,null,null,"","",null,null,null,null,null,null,null,0,0,null,"","","","","",""]
[null,null,null,null,null,null,null,null,null,"","",null,null,null,null,null,null,null,0,0,null,"","","","","",""]
[null,null,null,null,null,null,null,null,null,"","",null,null,null,null,null,null,null,0,0,null,"","","","","",""]
[null,null,null,null,null,null,null,null,null,"","",null,null,null,null,null,null,null,0,0,null,"","","","","",""]
[null,null,null,null,null,null,null,null,null,"","",null,null,null,null,null,null,null,0,0,null,"","","","","",""]
[null,null,null,null,null,null,null,null,null,"","",null,null,null,null,null,null,null,0,0,null,"","","","","",""]
[null,null,null,null,null,null,null,null,null,"","",null,null,null,null,null,null,null,0,0,null,"","","","","",""]
[null,null,null,null,null,null,null,null,null,"","",null,null,null,null,null,null,null,0,0,null,"","","","","",""]
[null,null,null,null,null,null,null,null,null,"","",null,null,null,null,null,null,null,0,0,null,"","","","","",""]
[null,null,null,null,null,null,null,null,null,"","",null,null,null,null,null,null,null,0,0,null,"","","","","",""]
[null,null,null,null,null,null,null,null,null,"","",null,null,null,null,null,null,null,0,0,null,"","","","","",""]
[null,null,null,null,null,null,null,null,null,"","",null,null,null,null,null,null,null,0,0,null,"","","","","",""]
[null,null,null,null,null,null,null,null,null,"","",null,null,null,null,null,null,null,0,0,null,"","","","","",""]
[null,null,null,null,null,null,null,null,null,"","",null,null,null,null,null,null,null,0,0,null,"","","","","",""]
[null,null,null,null,null,null,null,null,null,"","",null,null,null,null,null,null,null,0,0,null,"","","","","",""]
[null,null,null,null,null,null,null,null,null,"","",null,null,null,null,null,null,null,0,0,null,"","","","","",""]
[null,null,null,null,null,null,null,null,null,"","",null,null,null,null,null,null,null,0,0,null,"","","","","",""]
[null,null,null,null,null,null,null,null,null,"","",null,null,null,null,null,null,null,0,0,null,"","","","","",""]
[null,null,null,null,null,null,null,null,null,"","",null,null,null,null,null,null,null,0,0,null,"","","","","",""]
[null,null,null,null,null,null,null,null,null,"","",null,null,null,null,null,null,null,0,0,null,"","","","","",""]
[null,null,null,null,null,null,null,null,null,"","",null,null,null,null,null,null,null,0,0,null,"","","","","",""]
[null,null,null,null,null,null,null,null,null,"","",null,null,null,null,null,null,null,0,0,null,"","","","","",""]
[null,null,null,null,null,null,null,null,null,{"$f":"TRIM(H124&E124)","v":""},{"$f":"H124&I124","v":""},null,null,null,null,null,null,null,0,0,null,"","","","","",""]
[null,null,null,null,null,null,null,null,null,"","",null,null,null,null,null,null,null,0,{"$f":"S125/600%","v":0},null,{"$f":"fgrade(L125)","v":""},{"$f":"fgrade(M125)","v":""},{"$f":"fgrade(N125)","v":""},{"$f":"fgrade(O125)","v":""},{"$f":"fgrade(P125)","v":""},{"$f":"fgrade(Q125)","v":""}]
[null,null,null,null,null,null,null,null,null,"","",null,null,null,null,null,null,null,0,0,null,"","","","","",""]
[null,null,null,null,null,null,null,null,null,"","",null,null,null,null,null,null,null,0,0,null,"","","","","",""]
[null,null,null,null,null,null,null,null,null,"","",null,null,null,null,null,null,null,0,{"$f":"S128/600%","v":0},null,{"$f":"fgrade(L128)","v":""},{"$f":"fgrade(M128)","v":""},{"$f":"fgrade(N128)","v":""},{"$f":"fgrade(O128)","v":""},{"$f":"fgrade(P128)","v":""},{"$f":"fgrade(Q128)","v":""}]
[null,null,null,null,null,null,null,null,null,"","",null,null,null,null,null,null,null,0,0,null,"","","","","",""]
[null,null,null,null,null,null,null,null,null,"","",null,null,null,null,null,null,null,0,0,null,"","","","","",""]
[null,null,null,null,null,null,null,null,null,"","",null,null,null,null,null,null,null,0,0,null,"","","","","",""]
[null,null,null,null,null,null,null,null,null,"","",null,null,null,null,null,null,null,0,0,null,"","","","","",""]
[null,null,null,null,null,null,null,null,null,"","",null,null,null,null,null,null,null,{"$f":"SUM(L133:Q133)","v":0},0,null,"","","","","",""]
[null,null,null,null,null,null,null,null,null,"","",null,null,null,null,null,null,null,0,0,null,"","","","","",""]
[null,null,null,null,null,null,null,null,null,"","",null,null,null,null,null,null,null,0,0,null,"","","","","",""]
[null,null,null,null,null,null,null,null,null,"","",null,null,null,null,null,null,null,0,0,null,"","","","","",""]
[null,null,null,null,null,null,null,null,null,"","",null,null,null,null,null,null,null,0,0,null,"","","","","",""]
[null,null,null,null,null,null,null,null,null,"","",null,null,null,null,null,null,null,0,0,null,"","","","","",""]
[null,null,null,null,null,null,null,null,null,"","",null,null,null,null,null,null,null,0,0,null,"","","","","",""]
[null,null,null,null,null,null,null,null,null,"","",null,null,null,null,null,null,null,0,0,null,"","","","","",""]
[null,null,null,null,null,null,null,null,null,null,null,null,null,null,null,null,null,null,0,0,null,"","","","","",""]
[null,null,null,null,null,null,null,null,null,null,null,null,null,null,null,null,null,null,0,0,null,"","","","","",""]
[null,null,null,null,null,null,null,null,null,null,null,null,null,null,null,null,null,null,0,0,null,"","","","","",""]
[null,null,null,null,null,null,null,null,null,null,null,null,null,null,null,null,null,null,0,0,null,"","","","","",""]
[null,null,null,null,null,null,null,null,null,null,null,null,null,null,null,null,null,null,0,0,null,"","","","","",""]
[null,null,null,null,null,null,null,null,null,null,null,null,null,null,null,null,null,null,0,0,null,"","","","","",""]
[null,null,null,null,null,null,null,null,null,null,null,null,null,null,null,null,null,null,0,0,null,"","","","","",""]
[null,null,null,null,null,null,null,null,null,null,null,null,null,null,null,null,null,null,0,0,null,"","","","","",""]
[null,null,null,null,null,null,null,null,null,"","",null,null,null,null,null,null,null,0,0,null,"","","","","",""]
[null,null,null,null,null,null,null,null,null,"","",null,null,null,null,null,null,null,0,0,null,"","","","","",""]
[null,null,null,null,null,null,null,null,null,"","",null,null,null,null,null,null,null,0,0,null,"","","","","",""]
[null,null,null,null,null,null,null,null,null,"","",null,null,null,null,null,null,null,0,0,null,"","","","","",""]
[null,null,null,null,null,null,null,null,null,"","",null,null,null,null,null,null,null,0,0,null,"","","","","",""]
[".",null,null,null,null,null,null,null,null,null,null,null,null,null,null,null,"ATB","ATB"]
[".","BOYS","GIRLS","TOTAL",null,null,null,null,null,null,null,null,null,null,null,null,{"$f":"SUMIF(H4:H153,\"B\",R4:R153)","v":0},{"$f":"SUMIF(H4:H153,\"G\",R4:R153)","v":0},{"$f":"SUM(Q155:R155)","v":0}]
["SC",{"$f":"COUNTIF($J$4:$J$153,\"BSC\")","v":0},{"$f":"COUNTIF($J$4:$J$153,\"GSC\")","v":0},{"$f":"SUM(B156:C156)","v":0}]
["ST",{"$f":"COUNTIF($J$4:$J$153,\"BST\")","v":0},{"$f":"COUNTIF($J$4:$J$153,\"GST\")","v":0},{"$f":"SUM(B157:C157)","v":0}]
["BC",{"$f":"COUNTIF($J$4:$J$153,\"BBC\")","v":0},{"$f":"COUNTIF($J$4:$J$153,\"GBC\")","v":0},{"$f":"SUM(B158:C158)","v":0},null,"MIN BOY","MIN GIRL"]
["OC",{"$f":"COUNTIF($J$4:$J$153,\"BOC\")","v":0},{"$f":"COUNTIF($J$4:$J$153,\"GOC\")","v":0},{"$f":"SUM(B159:C159)","v":0},null,{"$f":"COUNTIF(K4:K153,\"BY\")","v":0},{"$f":"COUNTIF(K4:K153,\"GY\")","v":0}]
["TOTAL",{"$f":"SUM(B156:B159)","v":0},{"$f":"SUM(C156:C159)","v":0},{"$f":"SUM(B160:C160)","v":0}]

{"sheet":"VIIIEM","index":9,"n_rows":158,"n_cols":27,"rows_kept":158,"cut":false,"hidden":false,"merged":[[0,0,0,6],[1,0,1,1]]}
["VIIIEM-2018-19"]
[{"$f":"RIGHT(CELL(\"filename\",C2),LEN(CELL(\"filename\",C2))-FIND(\"]\",CELL(\"filename\",C2)))","v":"VIIIEM"},null,null,null,null,null,null,null,null,null,null,null,null,null,null,null,null,null,null,null,null,"GRADES"]
["RNO","ADMN NO","NAME OF THE STUDENT","FATHER'S NAME","CASTE","DOB","DOA","SEX","MUSLIM",null,null,"TEL","HIN","ENG","MAT","SCI","SOC","ATT","TOTAL M","MARKS %",null,"TEL","HIN","ENG","MAT","SCI","SOC"]
[null,null,null,null,null,null,null,null,null,{"$f":"H4&E4","v":""},{"$f":"H4&I4","v":""},null,null,null,null,null,null,null,{"$f":"SUM(L4:Q4)","v":0},{"$f":"S4/600%","v":0},null,{"$f":"fgrade(L4)","v":""},{"$f":"fgrade(M4)","v":""},"","","",""]
[null,null,null,null,null,null,null,null,null,"","",null,null,null,null,null,null,null,{"$f":"SUM(L5:Q5)","v":0},{"$f":"S5/600%","v":0},null,{"$f":"fgrade(L5)","v":""},{"$f":"fgrade(M5)","v":""},{"$f":"fgrade(N5)","v":""},{"$f":"fgrade(O5)","v":""},{"$f":"fgrade(P5)","v":""},{"$f":"fgrade(Q5)","v":""}]
[null,null,null,null,null,null,null,null,null,"","",null,null,null,null,null,null,null,0,0,null,"","","","","",""]
[null,null,null,null,null,null,null,null,null,"","",null,null,null,null,null,null,null,0,0,null,"","","","","",""]
[null,null,null,null,null,null,null,null,null,"","",null,null,null,null,null,null,null,0,0,null,"","","","","",""]
[null,null,null,null,null,null,null,null,null,"","",null,null,null,null,null,null,null,0,0,null,"","","","","",""]
[null,null,null,null,null,null,null,null,null,"","",null,null,null,null,null,null,null,0,0,null,"","","","","",""]
[null,null,null,null,null,null,null,null,null,"","",null,null,null,null,null,null,null,0,0,null,"","","","","",""]
[null,null,null,null,null,null,null,null,null,"","",null,null,null,null,null,null,null,0,0,null,"","","","","",""]
[null,null,null,null,null,null,null,null,null,"","",null,null,null,null,null,null,null,0,0,null,"","","","","",""]
[null,null,null,null,null,null,null,null,null,"","",null,null,null,null,null,null,null,0,0,null,"","","","","",""]
[null,null,null,null,null,null,null,null,null,"","",null,null,null,null,null,null,null,0,0,null,"","","","","",""]
[null,null,null,null,null,null,null,null,null,"","",null,null,null,null,null,null,null,0,0,null,"","","","","",""]
[null,null,null,null,null,null,null,null,null,"","",null,null,null,null,null,null,null,0,0,null,"","","","","",""]
[null,null,null,null,null,null,null,null,null,"","",null,null,null,null,null,null,null,0,0,null,"","","","","",""]
[null,null,null,null,null,null,null,null,null,"","",null,null,null,null,null,null,null,0,0,null,"","","","","",""]
[null,null,null,null,null,null,null,null,null,"","",null,null,null,null,null,null,null,0,0,null,"","","","","",""]
[null,null,null,null,null,null,null,null,null,"","",null,null,null,null,null,null,null,0,0,null,"","","","","",""]
[null,null,null,null,null,null,null,null,null,"","",null,null,null,null,null,null,null,0,0,null,"","","","","",""]
[null,null,null,null,null,null,null,null,null,"","",null,null,null,null,null,null,null,0,0,null,"","","","","",""]
[null,null,null,null,null,null,null,null,null,"","",null,null,null,null,null,null,null,0,0,null,"","","","","",""]
[null,null,null,null,null,null,null,null,null,"","",null,null,null,null,null,null,null,0,0,null,"","","","","",""]
[null,null,null,null,null,null,null,null,null,"","",null,null,null,null,null,null,null,0,0,null,"","","","","",""]
[null,null,null,null,null,null,null,null,null,"","",null,null,null,null,null,null,null,0,0,null,"","","","","",""]
[null,null,null,null,null,null,null,null,null,"","",null,null,null,null,null,null,null,0,0,null,"","","","","",""]
[null,null,null,null,null,null,null,null,null,"","",null,null,null,null,null,null,null,0,0,null,"","","","","",""]
[null,null,null,null,null,null,null,null,null,"","",null,null,null,null,null,null,null,0,0,null,"","","","","",""]
[null,null,null,null,null,null,null,null,null,"","",null,null,null,null,null,null,null,0,0,null,"","","","","",""]
[null,null,null,null,null,null,null,null,null,"","",null,null,null,null,null,null,null,0,0,null,"","","","","",""]
[null,null,null,null,null,null,null,null,null,"","",null,null,null,null,null,null,null,0,0,null,"","","","","",""]
[null,null,null,null,null,null,null,null,null,"","",null,null,null,null,null,null,null,0,0,null,"","","","","",""]
[null,null,null,null,null,null,null,null,null,"","",null,null,null,null,null,null,null,0,0,null,"","","","","",""]
[null,null,null,null,null,null,null,null,null,"","",null,null,null,null,null,null,null,0,0,null,"","","","","",""]
[null,null,null,null,null,null,null,null,null,"","",null,null,null,null,null,null,null,0,0,null,"","","","","",""]
[null,null,null,null,null,null,null,null,null,"","",null,null,null,null,null,null,null,0,0,null,"","","","","",""]
[null,null,null,null,null,null,null,null,null,"","",null,null,null,null,null,null,null,0,0,null,"","","","","",""]
[null,null,null,null,null,null,null,null,null,"","",null,null,null,null,null,null,null,0,0,null,"","","","","",""]
[null,null,null,null,null,null,null,null,null,"","",null,null,null,null,null,null,null,0,0,null,"","","","","",""]
[null,null,null,null,null,null,null,null,null,"","",null,null,null,null,null,null,null,0,0,null,"","","","","",""]
[null,null,null,null,null,null,null,null,null,"","",null,null,null,null,null,null,null,0,0,null,"","","","","",""]
[null,null,null,null,null,null,null,null,null,"","",null,null,null,null,null,null,null,0,0,null,"","","","","",""]
[null,null,null,null,null,null,null,null,null,"","",null,null,null,null,null,null,null,0,0,null,"","","","","",""]
[null,null,null,null,null,null,null,null,null,"","",null,null,null,null,null,null,null,0,0,null,"","","","","",""]
[null,null,null,null,null,null,null,null,null,"","",null,null,null,null,null,null,null,0,0,null,"","","","","",""]
[null,null,null,null,null,null,null,null,null,"","",null,null,null,null,null,null,null,0,0,null,"","","","","",""]
[null,null,null,null,null,null,null,null,null,"","",null,null,null,null,null,null,null,0,0,null,"","","","","",""]
[null,null,null,null,null,null,null,null,null,"","",null,null,null,null,null,null,null,0,0,null,"","","","","",""]
[null,null,null,null,null,null,null,null,null,"","",null,null,null,null,null,null,null,0,0,null,"","","","","",""]
[null,null,null,null,null,null,null,null,null,"","",null,null,null,null,null,null,null,0,0,null,"","","","","",""]
[null,null,null,null,null,null,null,null,null,"","",null,null,null,null,null,null,null,0,0,null,"","","","","",""]
[null,null,null,null,null,null,null,null,null,"","",null,null,null,null,null,null,null,0,0,null,"","","","","",""]
[null,null,null,null,null,null,null,null,null,"","",null,null,null,null,null,null,null,0,0,null,"","","","","",""]
[null,null,null,null,null,null,null,null,null,"","",null,null,null,null,null,null,null,0,0,null,"","","","","",""]
[null,null,null,null,null,null,null,null,null,"","",null,null,null,null,null,null,null,0,0,null,"","","","","",""]
[null,null,null,null,null,null,null,null,null,"","",null,null,null,null,null,null,null,0,0,null,"","","","","",""]
[null,null,null,null,null,null,null,null,null,"","",null,null,null,null,null,null,null,0,0,null,"","","","","",""]
[null,null,null,null,null,null,null,null,null,"","",null,null,null,null,null,null,null,0,0,null,"","","","","",""]
[null,null,null,null,null,null,null,null,null,"","",null,null,null,null,null,null,null,0,0,null,"","","","","",""]
[null,null,null,null,null,null,null,null,null,"","",null,null,null,null,null,null,null,0,0,null,"","","","","",""]
[null,null,null,null,null,null,null,null,null,"","",null,null,null,null,null,null,null,0,0,null,"","","","","",""]
[null,null,null,null,null,null,null,null,null,"","",null,null,null,null,null,null,null,0,0,null,"","","","","",""]
[null,null,null,null,null,null,null,null,null,"","",null,null,null,null,null,null,null,0,0,null,"","","","","",""]
[null,null,null,null,null,null,null,null,null,{"$f":"H66&E66","v":""},{"$f":"H66&I66","v":""},null,null,null,null,null,null,null,0,0,null,"","","","","",""]
[null,null,null,null,null,null,null,null,null,"","",null,null,null,null,null,null,null,{"$f":"SUM(L67:Q67)","v":0},{"$f":"S67/600%","v":0},null,{"$f":"fgrade(L67)","v":""},{"$f":"fgrade(M67)","v":""},{"$f":"fgrade(N67)","v":""},{"$f":"fgrade(O67)","v":""},{"$f":"fgrade(P67)","v":""},{"$f":"fgrade(Q67)","v":""}]
[null,null,null,null,null,null,null,null,null,"","",null,null,null,null,null,null,null,0,0,null,"","","","","",""]
[null,null,null,null,null,null,null,null,null,"","",null,null,null,null,null,null,null,0,0,null,"","","","","",""]
[null,null,null,null,null,null,null,null,null,"","",null,null,null,null,null,null,null,0,0,null,"","","","","",""]
[null,null,null,null,null,null,null,null,null,"","",null,null,null,null,null,null,null,0,0,null,"","","","","",""]
[null,null,null,null,null,null,null,null,null,"","",null,null,null,null,null,null,null,0,0,null,"","","","","",""]
[null,null,null,null,null,null,null,null,null,"","",null,null,null,null,null,null,null,0,0,null,"","","","","",""]
[null,null,null,null,null,null,null,null,null,"","",null,null,null,null,null,null,null,0,0,null,"","","","","",""]
[null,null,null,null,null,null,null,null,null,"","",null,null,null,null,null,null,null,0,0,null,"","","","","",""]
[null,null,null,null,null,null,null,null,null,"","",null,null,null,null,null,null,null,0,0,null,"","","","","",""]
[null,null,null,null,null,null,null,null,null,"","",null,null,null,null,null,null,null,0,0,null,"","","","","",""]
[null,null,null,null,null,null,null,null,null,"","",null,null,null,null,null,null,null,0,0,null,"","","","","",""]
[null,null,null,null,null,null,null,null,null,"","",null,null,null,null,null,null,null,0,0,null,"","","","","",""]
[null,null,null,null,null,null,null,null,null,"","",null,null,null,null,null,null,null,{"$f":"SUM(L80:Q80)","v":0},{"$f":"S80/600%","v":0},null,{"$f":"fgrade(L80)","v":""},{"$f":"fgrade(M80)","v":""},{"$f":"fgrade(N80)","v":""},{"$f":"fgrade(O80)","v":""},{"$f":"fgrade(P80)","v":""},{"$f":"fgrade(Q80)","v":""}]
[null,null,null,null,null,null,null,null,null,"","",null,null,null,null,null,null,null,0,0,null,"","","","","",""]
[null,null,null,null,null,null,null,null,null,"","",null,null,null,null,null,null,null,0,0,null,"","","","","",""]
[null,null,null,null,null,null,null,null,null,"","",null,null,null,null,null,null,null,0,0,null,"","","","","",""]
[null,null,null,null,null,null,null,null,null,null,null,null,null,null,null,null,null,null,0,0,null,"","","","","",""]
[null,null,null,null,null,null,null,null,null,"","",null,null,null,null,null,null,null,0,0,null,"","","","","",""]
[null,null,null,null,null,null,null,null,null,"","",null,null,null,null,null,null,null,0,0,null,"","","","","",""]
[null,null,null,null,null,null,null,null,null,"","",null,null,null,null,null,null,null,0,0,null,"","","","","",""]
[null,null,null,null,null,null,null,null,null,"","",null,null,null,null,null,null,null,0,0,null,"","","","","",""]
[null,null,null,null,null,null,null,null,null,"","",null,null,null,null,null,null,null,0,0,null,"","","","","",""]
[null,null,null,null,null,null,null,null,null,"","",null,null,null,null,null,null,null,0,0,null,"","","","","",""]
[null,null,null,null,null,null,null,null,null,"","",null,null,null,null,null,null,null,0,0,null,"","","","","",""]
[null,null,null,null,null,null,null,null,null,"","",null,null,null,null,null,null,null,0,0,null,"","","","","",""]
[null,null,null,null,null,null,null,null,null,"","",null,null,null,null,null,null,null,0,0,null,"","","","","",""]
[null,null,null,null,null,null,null,null,null,"","",null,null,null,null,null,null,null,0,0,null,"","","","","",""]
[null,null,null,null,null,null,null,null,null,"","",null,null,null,null,null,null,null,0,0,null,"","","","","",""]
[null,null,null,null,null,null,null,null,null,"","",null,null,null,null,null,null,null,0,0,null,"","","","","",""]
[null,null,null,null,null,null,null,null,null,"","",null,null,null,null,null,null,null,0,0,null,"","","","","",""]
[null,null,null,null,null,null,null,null,null,"","",null,null,null,null,null,null,null,0,0,null,"","","","","",""]
[null,null,null,null,null,null,null,null,null,"","",null,null,null,null,null,null,null,0,0,null,"","","","","",""]
[null,null,null,null,null,null,null,null,null,"","",null,null,null,null,null,null,null,0,0,null,"","","","","",""]
[null,null,null,null,null,null,null,null,null,"","",null,null,null,null,null,null,null,0,0,null,"","","","","",""]
[null,null,null,null,null,null,null,null,null,"","",null,null,null,null,null,null,null,0,0,null,"","","","","",""]
[null,null,null,null,null,null,null,null,null,"","",null,null,null,null,null,null,null,0,0,null,"","","","","",""]
[null,null,null,null,null,null,null,null,null,"","",null,null,null,null,null,null,null,0,0,null,"","","","","",""]
[null,null,null,null,null,null,null,null,null,"","",null,null,null,null,null,null,null,0,0,null,"","","","","",""]
[null,null,null,null,null,null,null,null,null,"","",null,null,null,null,null,null,null,0,0,null,"","","","","",""]
[null,null,null,null,null,null,null,null,null,"","",null,null,null,null,null,null,null,0,0,null,"","","","","",""]
[null,null,null,null,null,null,null,null,null,"","",null,null,null,null,null,null,null,0,0,null,"","","","","",""]
[null,null,null,null,null,null,null,null,null,"","",null,null,null,null,null,null,null,0,0,null,"","","","","",""]
[null,null,null,null,null,null,null,null,null,"","",null,null,null,null,null,null,null,0,0,null,"","","","","",""]
[null,null,null,null,null,null,null,null,null,"","",null,null,null,null,null,null,null,0,0,null,"","","","","",""]
[null,null,null,null,null,null,null,null,null,"","",null,null,null,null,null,null,null,0,0,null,"","","","","",""]
[null,null,null,null,null,null,null,null,null,"","",null,null,null,null,null,null,null,0,0,null,"","","","","",""]
[null,null,null,null,null,null,null,null,null,"","",null,null,null,null,null,null,null,0,0,null,"","","","","",""]
[null,null,null,null,null,null,null,null,null,"","",null,null,null,null,null,null,null,0,0,null,"","","","","",""]
[null,null,null,null,null,null,null,null,null,"","",null,null,null,null,null,null,null,0,0,null,"","","","","",""]
[null,null,null,null,null,null,null,null,null,"","",null,null,null,null,null,null,null,0,0,null,"","","","","",""]
[null,null,null,null,null,null,null,null,null,"","",null,null,null,null,null,null,null,0,0,null,"","","","","",""]
[null,null,null,null,null,null,null,null,null,"","",null,null,null,null,null,null,null,0,0,null,"","","","","",""]
[null,null,null,null,null,null,null,null,null,"","",null,null,null,null,null,null,null,0,0,null,"","","","","",""]
[null,null,null,null,null,null,null,null,null,"","",null,null,null,null,null,null,null,0,0,null,"","","","","",""]
[null,null,null,null,null,null,null,null,null,"","",null,null,null,null,null,null,null,0,0,null,"","","","","",""]
[null,null,null,null,null,null,null,null,null,"","",null,null,null,null,null,null,null,0,0,null,"","","","","",""]
[null,null,null,null,null,null,null,null,null,"","",null,null,null,null,null,null,null,0,0,null,"","","","","",""]
[null,null,null,null,null,null,null,null,null,"","",null,null,null,null,null,null,null,0,0,null,"","","","","",""]
[null,null,null,null,null,null,null,null,null,"","",null,null,null,null,null,null,null,0,0,null,"","","","","",""]
[null,null,null,null,null,null,null,null,null,"","",null,null,null,null,null,null,null,0,0,null,"","","","","",""]
[null,null,null,null,null,null,null,null,null,"","",null,null,null,null,null,null,null,0,0,null,"","","","","",""]
[null,null,null,null,null,null,null,null,null,"","",null,null,null,null,null,null,null,0,0,null,"","","","","",""]
[null,null,null,null,null,null,null,null,null,{"$f":"H130&E130","v":""},{"$f":"H130&I130","v":""},null,null,null,null,null,null,null,0,0,null,"","","","","",""]
[null,null,null,null,null,null,null,null,null,"","",null,null,null,null,null,null,null,0,0,null,"","","","","",""]
[null,null,null,null,null,null,null,null,null,"","",null,null,null,null,null,null,null,0,0,null,"","","","","",""]
[null,null,null,null,null,null,null,null,null,"","",null,null,null,null,null,null,null,0,0,null,"","","","","",""]
[null,null,null,null,null,null,null,null,null,"","",null,null,null,null,null,null,null,0,0,null,"","","","","",""]
[null,null,null,null,null,null,null,null,null,"","",null,null,null,null,null,null,null,0,0,null,"","","","","",""]
[null,null,null,null,null,null,null,null,null,"","",null,null,null,null,null,null,null,0,0,null,"","","","","",""]
[null,null,null,null,null,null,null,null,null,"","",null,null,null,null,null,null,null,0,0,null,"","","","","",""]
[null,null,null,null,null,null,null,null,null,"","",null,null,null,null,null,null,null,0,0,null,"","","","","",""]
[null,null,null,null,null,null,null,null,null,"","",null,null,null,null,null,null,null,0,0,null,"","","","","",""]
[null,null,null,null,null,null,null,null,null,"","",null,null,null,null,null,null,null,0,0,null,"","","","","",""]
[null,null,null,null,null,null,null,null,null,"","",null,null,null,null,null,null,null,0,0,null,"","","","","",""]
[null,null,null,null,null,null,null,null,null,"","",null,null,null,null,null,null,null,0,0,null,"","","","","",""]
[null,null,null,null,null,null,null,null,null,"","",null,null,null,null,null,null,null,0,0,null,"","","","","",""]
[null,null,null,null,null,null,null,null,null,"","",null,null,null,null,null,null,null,{"$f":"SUM(L144:Q144)","v":0},{"$f":"S144/600%","v":0},null,{"$f":"fgrade(L144)","v":""},{"$f":"fgrade(M144)","v":""},{"$f":"fgrade(N144)","v":""},{"$f":"fgrade(O144)","v":""},{"$f":"fgrade(P144)","v":""},{"$f":"fgrade(Q144)","v":""}]
[null,null,null,null,null,null,null,null,null,"","",null,null,null,null,null,null,null,0,0,null,"","","","","",""]
[null,null,null,null,null,null,null,null,null,"","",null,null,null,null,null,null,null,0,0,null,"","","","","",""]
[null,null,null,null,null,null,null,null,null,"","",null,null,null,null,null,null,null,0,0,null,"","","","","",""]
[null,null,null,null,null,null,null,null,null,"","",null,null,null,null,null,null,null,0,0,null,"","","","","",""]
[null,null,null,null,null,null,null,null,null,"","",null,null,null,null,null,null,null,0,0,null,"","","","","",""]
[null,null,null,null,null,null,null,null,null,"","",null,null,null,null,null,null,null,0,0,null,"","","","","",""]
[null,null,null,null,null,null,null,null,null,"","",null,null,null,null,null,null,null,0,0,null,"","","","","",""]
[0,null,null,null,null,null,null,null,null,null,null,null,null,null,null,null,"ATB","ATB"]
[0,"BOYS","GIRLS","TOTAL",null,null,null,null,null,null,{"$f":"H153&I153","v":""},null,null,null,null,null,{"$f":"SUMIF(H4:H151,\"B\",R4:R151)","v":0},{"$f":"SUMIF(H4:H151,\"G\",R4:R151)","v":0},{"$f":"SUM(Q153:R153)","v":0}]
["SC",{"$f":"COUNTIF($J$4:$J$151,\"BSC\")","v":0},{"$f":"COUNTIF($J$4:$J$151,\"GSC\")","v":0},{"$f":"SUM(B154:C154)","v":0}]
["ST",{"$f":"COUNTIF($J$4:$J$151,\"BST\")","v":0},{"$f":"COUNTIF($J$4:$J$151,\"GST\")","v":0},{"$f":"SUM(B155:C155)","v":0},null,null,null,null,null,null,{"$f":"H155&I155","v":""}]
["BC",{"$f":"COUNTIF($J$4:$K$151,\"BBC\")","v":0},{"$f":"COUNTIF($J$4:$J$151,\"GBC\")","v":0},{"$f":"SUM(B156:C156)","v":0},null,"MIN BOY","MIN GIRL",null,null,null,{"$f":"H156&I156","v":""}]
["OC",{"$f":"COUNTIF($J$4:$J$151,\"BOC\")","v":0},{"$f":"COUNTIF($J$4:$J$151,\"GOC\")","v":0},{"$f":"SUM(B157:C157)","v":0},null,{"$f":"COUNTIF(K4:K151,\"BY\")","v":0},{"$f":"COUNTIF(K4:K151,\"GY\")","v":0},null,null,null,{"$f":"H157&I157","v":""}]
["TOTAL",{"$f":"SUM(B154:B157)","v":0},{"$f":"SUM(C154:C157)","v":0},{"$f":"SUM(D154:D157)","v":0},null,null,null,null,null,null,{"$f":"H158&I158","v":""}]

{"sheet":"IXEM","index":10,"n_rows":161,"n_cols":29,"rows_kept":161,"cut":false,"hidden":false,"merged":[[0,0,0,6],[1,0,1,1]]}
["IXEM-2018-19"]
[{"$f":"RIGHT(CELL(\"filename\",C1),LEN(CELL(\"filename\",C1))-FIND(\"]\",CELL(\"filename\",C1)))","v":"IXEM"},null,null,null,null,null,null,null,null,null,null,null,null,null,null,null,null,null,null,null,null,"GRADES"]
["RNO","ADMN NO","NAME OF THE STUDENT","FATHER'S NAME","CASTE","DOB","DOA","SEX","MUSLIM",null,null,"TEL","HIN","ENG","MAT","SCI","SOC","ATT","TOTAL M","MARKS %",null,"TEL","HIN","ENG","MAT","SCI","SOC",null,"SECTION"]
[null,null,null,null,null,null,null,null,null,{"$f":"H4&E4","v":""},{"$f":"H4&I4","v":""},null,null,null,null,null,null,null,{"$f":"SUM(L4:Q4)","v":0},{"$f":"S4/600%","v":0},null,{"$f":"fgrade(L4)","v":""},{"$f":"fgrade(M4)","v":""},"","","","",null,"A"]
[null,null,null,null,null,null,null,null,null,{"$f":"H5&E5","v":""},"",null,null,null,null,null,null,null,{"$f":"SUM(L5:Q5)","v":0},{"$f":"S5/600%","v":0},null,{"$f":"fgrade(L5)","v":""},{"$f":"fgrade(M5)","v":""},{"$f":"fgrade(N5)","v":""},{"$f":"fgrade(O5)","v":""},{"$f":"fgrade(P5)","v":""},{"$f":"fgrade(Q5)","v":""},null,"A"]
[null,null,null,null,null,null,null,null,null,"","",null,null,null,null,null,null,null,0,0,null,"","","","","","",null,"A"]
[null,null,null,null,null,null,null,null,null,"","",null,null,null,null,null,null,null,0,0,null,"","","","","","",null,"A"]
[null,null,null,null,null,null,null,null,null,"","",null,null,null,null,null,null,null,0,0,null,"","","","","","",null,"A"]
[null,null,null,null,null,null,null,null,null,"","",null,null,null,null,null,null,null,0,0,null,"","","","","","",null,"A"]
[null,null,null,null,null,null,null,null,null,"","",null,null,null,null,null,null,null,0,0,null,"","","","","","",null,"A"]
[null,null,null,null,null,null,null,null,null,"","",null,null,null,null,null,null,null,0,0,null,"","","","","","",null,"A"]
[null,null,null,null,null,null,null,null,null,"","",null,null,null,null,null,null,null,0,0,null,"","","","","","",null,"A"]
[null,null,null,null,null,null,null,null,null,"","",null,null,null,null,null,null,null,0,0,null,"","","","","","",null,"A"]
[null,null,null,null,null,null,null,null,null,"","",null,null,null,null,null,null,null,0,0,null,"","","","","","",null,"A"]
[null,null,null,null,null,null,null,null,null,"","",null,null,null,null,null,null,null,0,0,null,"","","","","","",null,"A"]
[null,null,null,null,null,null,null,null,null,"","",null,null,null,null,null,null,null,0,0,null,"","","","","","",null,"A"]
[null,null,null,null,null,null,null,null,null,"","",null,null,null,null,null,null,null,0,0,null,"","","","","","",null,"A"]
[null,null,null,null,null,null,null,null,null,"","",null,null,null,null,null,null,null,0,0,null,"","","","","","",null,"A"]
[null,null,null,null,null,null,null,null,null,"","",null,null,null,null,null,null,null,0,0,null,"","","","","","",null,"A"]
[null,null,null,null,null,null,null,null,null,"","",null,null,null,null,null,null,null,0,0,null,"","","","","","",null,"A"]
[null,null,null,null,null,null,null,null,null,"","",null,null,null,null,null,null,null,0,0,null,"","","","","","",null,"A"]
[null,null,null,null,null,null,null,null,null,"","",null,null,null,null,null,null,null,0,0,null,"","","","","","",null,"A"]
[null,null,null,null,null,null,null,null,null,"","",null,null,null,null,null,null,null,0,0,null,"","","","","","",null,"A"]
[null,null,null,null,null,null,null,null,null,"","",null,null,null,null,null,null,null,0,0,null,"","","","","","",null,"A"]
[null,null,null,null,null,null,null,null,null,"","",null,null,null,null,null,null,null,0,0,null,"","","","","","",null,"A"]
[null,null,null,null,null,null,null,null,null,"","",null,null,null,null,null,null,null,0,0,null,"","","","","","",null,"A"]
[null,null,null,null,null,null,null,null,null,"","",null,null,null,null,null,null,null,0,0,null,"","","","","","",null,"A"]
[null,null,null,null,null,null,null,null,null,"","",null,null,null,null,null,null,null,0,0,null,"","","","","","",null,"A"]
[null,null,null,null,null,null,null,null,null,"","",null,null,null,null,null,null,null,0,0,null,"","","","","","",null,"A"]
[null,null,null,null,null,null,null,null,null,"","",null,null,null,null,null,null,null,0,0,null,"","","","","","",null,"A"]
[null,null,null,null,null,null,null,null,null,"","",null,null,null,null,null,null,null,0,0,null,"","","","","","",null,"A"]
[null,null,null,null,null,null,null,null,null,"","",null,null,null,null,null,null,null,0,0,null,"","","","","","",null,"A"]
[null,null,null,null,null,null,null,null,null,"","",null,null,null,null,null,null,null,0,0,null,"","","","","","",null,"A"]
[null,null,null,null,null,null,null,null,null,"","",null,null,null,null,null,null,null,0,0,null,"","","","","","",null,"A"]
[null,null,null,null,null,null,null,null,null,"","",null,null,null,null,null,null,null,0,0,null,"","","","","","",null,"A"]
[null,null,null,null,null,null,null,null,null,"","",null,null,null,null,null,null,null,0,0,null,"","","","","","",null,"A"]
[null,null,null,null,null,null,null,null,null,"","",null,null,null,null,null,null,null,0,0,null,"","","","","","",null,"A"]
[null,null,null,null,null,null,null,null,null,"","",null,null,null,null,null,null,null,0,0,null,"","","","","","",null,"A"]
[null,null,null,null,null,null,null,null,null,"","",null,null,null,null,null,null,null,0,0,null,"","","","","","",null,"A"]
[null,null,null,null,null,null,null,null,null,"","",null,null,null,null,null,null,null,0,0,null,"","","","","","",null,"A"]
[null,null,null,null,null,null,null,null,null,"","",null,null,null,null,null,null,null,0,0,null,"","","","","","",null,"A"]
[null,null,null,null,null,null,null,null,null,"","",null,null,null,null,null,null,null,0,0,null,"","","","","","",null,"A"]
[null,null,null,null,null,null,null,null,null,"","",null,null,null,null,null,null,null,0,0,null,"","","","","","",null,"A"]
[null,null,null,null,null,null,null,null,null,"","",null,null,null,null,null,null,null,0,0,null,"","","","","","",null,"A"]
[null,null,null,null,null,null,null,null,null,"","",null,null,null,null,null,null,null,0,0,null,"","","","","","",null,"A"]
[null,null,null,null,null,null,null,null,null,"","",null,null,null,null,null,null,null,0,0,null,"","","","","","",null,"A"]
[null,null,null,null,null,null,null,null,null,"","",null,null,null,null,null,null,null,0,0,null,"","","","","","",null,"A"]
[null,null,null,null,null,null,null,null,null,"","",null,null,null,null,null,null,null,0,0,null,"","","","","","",null,"A"]
[null,null,null,null,null,null,null,null,null,"","",null,null,null,null,null,null,null,0,0,null,"","","","","","",null,"B"]
[null,null,null,null,null,null,null,null,null,"","",null,null,null,null,null,null,null,0,0,null,"","","","","","",null,"B"]
[null,null,null,null,null,null,null,null,null,"","",null,null,null,null,null,null,null,0,0,null,"","","","","","",null,"B"]
[null,null,null,null,null,null,null,null,null,"","",null,null,null,null,null,null,null,0,0,null,"","","","","","",null,"B"]
[null,null,null,null,null,null,null,null,null,"","",null,null,null,null,null,null,null,0,0,null,"","","","","","",null,"B"]
[null,null,null,null,null,null,null,null,null,"","",null,null,null,null,null,null,null,0,0,null,"","","","","","",null,"B"]
[null,null,null,null,null,null,null,null,null,"","",null,null,null,null,null,null,null,0,0,null,"","","","","","",null,"B"]
[null,null,null,null,null,null,null,null,null,"","",null,null,null,null,null,null,null,0,0,null,"","","","","","",null,"B"]
[null,null,null,null,null,null,null,null,null,"","",null,null,null,null,null,null,null,0,0,null,"","","","","","",null,"B"]
[null,null,null,null,null,null,null,null,null,"","",null,null,null,null,null,null,null,0,0,null,"","","","","","",null,"B"]
[null,null,null,null,null,null,null,null,null,"","",null,null,null,null,null,null,null,0,0,null,"","","","","","",null,"B"]
[null,null,null,null,null,null,null,null,null,"","",null,null,null,null,null,null,null,0,0,null,"","","","","","",null,"B"]
[null,null,null,null,null,null,null,null,null,"","",null,null,null,null,null,null,null,0,0,null,"","","","","","",null,"B"]
[null,null,null,null,null,null,null,null,null,"","",null,null,null,null,null,null,null,0,0,null,"","","","","","",null,"B"]
[null,null,null,null,null,null,null,null,null,"","",null,null,null,null,null,null,null,0,0,null,"","","","","","",null,"B"]
[null,null,null,null,null,null,null,null,null,"","",null,null,null,null,null,null,null,0,0,null,"","","","","","",null,"B"]
[null,null,null,null,null,null,null,null,null,"","",null,null,null,null,null,null,null,0,0,null,"","","","","","",null,"B"]
[null,null,null,null,null,null,null,null,null,"","",null,null,null,null,null,null,null,0,0,null,"","","","","","",null,"B"]
[null,null,null,null,null,null,null,null,null,"","",null,null,null,null,null,null,null,0,0,null,"","","","","","",null,"B"]
[null,null,null,null,null,null,null,null,null,{"$f":"H68&E68","v":""},{"$f":"H68&I68","v":""},null,null,null,null,null,null,null,0,0,null,"","","","","","",null,"B"]
[null,null,null,null,null,null,null,null,null,"","",null,null,null,null,null,null,null,{"$f":"SUM(L69:Q69)","v":0},{"$f":"S69/600%","v":0},null,{"$f":"fgrade(L69)","v":""},{"$f":"fgrade(M69)","v":""},{"$f":"fgrade(N69)","v":""},{"$f":"fgrade(O69)","v":""},{"$f":"fgrade(P69)","v":""},{"$f":"fgrade(Q69)","v":""},null,"B"]
[null,null,null,null,null,null,null,null,null,"","",null,null,null,null,null,null,null,0,0,null,"","","","","","",null,"B"]
[null,null,null,null,null,null,null,null,null,"","",null,null,null,null,null,null,null,0,0,null,"","","","","","",null,"B"]
[null,null,null,null,null,null,null,null,null,"","",null,null,null,null,null,null,null,0,0,null,"","","","","","",null,"B"]
[null,null,null,null,null,null,null,null,null,"","",null,null,null,null,null,null,null,0,0,null,"","","","","","",null,"B"]
[null,null,null,null,null,null,null,null,null,"","",null,null,null,null,null,null,null,0,0,null,"","","","","","",null,"B"]
[null,null,null,null,null,null,null,null,null,"","",null,null,null,null,null,null,null,0,0,null,"","","","","","",null,"B"]
[null,null,null,null,null,null,null,null,null,"","",null,null,null,null,null,null,null,0,0,null,"","","","","","",null,"B"]
[null,null,null,null,null,null,null,null,null,"","",null,null,null,null,null,null,null,0,0,null,"","","","","","",null,"B"]
[null,null,null,null,null,null,null,null,null,"","",null,null,null,null,null,null,null,0,0,null,"","","","","","",null,"B"]
[null,null,null,null,null,null,null,null,null,"","",null,null,null,null,null,null,null,0,0,null,"","","","","","",null,"B"]
[null,null,null,null,null,null,null,null,null,"","",null,null,null,null,null,null,null,0,0,null,"","","","","","",null,"B"]
[null,null,null,null,null,null,null,null,null,"","",null,null,null,null,null,null,null,0,0,null,"","","","","","",null,"B"]
[null,null,null,null,null,null,null,null,null,"","",null,null,null,null,null,null,null,0,0,null,"","","","","","",null,"B"]
[null,null,null,null,null,null,null,null,null,"","",null,null,null,null,null,null,null,0,0,null,"","","","","","",null,"B"]
[null,null,null,null,null,null,null,null,null,"","",null,null,null,null,null,null,null,0,0,null,"","","","","","",null,"B"]
[null,null,null,null,null,null,null,null,null,"","",null,null,null,null,null,null,null,0,0,null,"","","","","","",null,"B"]
[null,null,null,null,null,null,null,null,null,"","",null,null,null,null,null,null,null,0,0,null,"","","","","","",null,"B"]
[null,null,null,null,null,null,null,null,null,"","",null,null,null,null,null,null,null,0,0,null,"","","","","","",null,"B"]
[null,null,null,null,null,null,null,null,null,"","",null,null,null,null,null,null,null,0,0,null,"","","","","","",null,"B"]
[null,null,null,null,null,null,null,null,null,"","",null,null,null,null,null,null,null,0,0,null,"","","","","","",null,"B"]
[null,null,null,null,null,null,null,null,null,"","",null,null,null,null,null,null,null,0,0,null,"","","","","","",null,"B"]
[null,null,null,null,null,null,null,null,null,"","",null,null,null,null,null,null,null,0,0,null,"","","","","","",null,"B"]
[null,null,null,null,null,null,null,null,null,"","",null,null,null,null,null,null,null,0,0,null,"","","","","","",null,"B"]
[null,null,null,null,null,null,null,null,null,"","",null,null,null,null,null,null,null,0,0,null,"","","","","","",null,"B"]
[null,null,null,null,null,null,null,null,null,"","",null,null,null,null,null,null,null,0,0,null,"","","","","","",null,"B"]
[null,null,null,null,null,null,null,null,null,"","",null,null,null,null,null,null,null,0,0,null,"","","","","","",null,"B"]
[null,null,null,null,null,null,null,null,null,"","",null,null,null,null,null,null,null,0,0,null,"","","","","","",null,"B"]
[null,null,null,null,null,null,null,null,null,"","",null,null,null,null,null,null,null,0,0,null,"","","","","","",null,"B"]
[null,null,null,null,null,null,null,null,null,"","",null,null,null,null,null,null,null,0,0,null,"","","","","",""]
[null,null,null,null,null,null,null,null,null,"","",null,null,null,null,null,null,null,0,0,null,"","","","","",""]
[null,null,null,null,null,null,null,null,null,"","",null,null,null,null,null,null,null,0,0,null,"","","","","",""]
[null,null,null,null,null,null,null,null,null,"","",null,null,null,null,null,null,null,0,0,null,"","","","","",""]
[null,null,null,null,null,null,null,null,null,"","",null,null,null,null,null,null,null,0,0,null,"","","","","",""]
[null,null,null,null,null,null,null,null,null,"","",null,null,null,null,null,null,null,0,0,null,"","","","","",""]
[null,null,null,null,null,null,null,null,null,"","",null,null,null,null,null,null,null,0,0,null,"","","","","",""]
[null,null,null,null,null,null,null,null,null,"","",null,null,null,null,null,null,null,0,0,null,"","","","","",""]
[null,null,null,null,null,null,null,null,null,"","",null,null,null,null,null,null,null,0,0,null,"","","","","",""]
[null,null,null,null,null,null,null,null,null,"","",null,null,null,null,null,null,null,0,0,null,"","","","","",""]
[null,null,null,null,null,null,null,null,null,"","",null,null,null,null,null,null,null,0,0,null,"","","","","",""]
[null,null,null,null,null,null,null,null,null,"","",null,null,null,null,null,null,null,0,0,null,"","","","","",""]
[null,null,null,null,null,null,null,null,null,"","",null,null,null,null,null,null,null,0,0,null,"","","","","",""]
[null,null,null,null,null,null,null,null,null,"","",null,null,null,null,null,null,null,0,0,null,"","","","","",""]
[null,null,null,null,null,null,null,null,null,"","",null,null,null,null,null,null,null,0,0,null,"","","","","",""]
[null,null,null,null,null,null,null,null,null,"","",null,null,null,null,null,null,null,0,0,null,"","","","","",""]
[null,null,null,null,null,null,null,null,null,"","",null,null,null,null,null,null,null,0,0,null,"","","","","",""]
[null,null,null,null,null,null,null,null,null,"","",null,null,null,null,null,null,null,0,0,null,"","","","","",""]
[null,null,null,null,null,null,null,null,null,"","",null,null,null,null,null,null,null,0,0,null,"","","","","",""]
[null,null,null,null,null,null,null,null,null,"","",null,null,null,null,null,null,null,0,0,null,"","","","","",""]
[null,null,null,null,null,null,null,null,null,"","",null,null,null,null,null,null,null,0,0,null,"","","","","",""]
[null,null,null,null,null,null,null,null,null,"","",null,null,null,null,null,null,null,0,0,null,"","","","","",""]
[null,null,null,null,null,null,null,null,null,"","",null,null,null,null,null,null,null,0,0,null,"","","","","",""]
[null,null,null,null,null,null,null,null,null,"","",null,null,null,null,null,null,null,0,0,null,"","","","","",""]
[null,null,null,null,null,null,null,null,null,"","",null,null,null,null,null,null,null,0,0,null,"","","","","",""]
[null,null,null,null,null,null,null,null,null,"","",null,null,null,null,null,null,null,0,0,null,"","","","","",""]
[null,null,null,null,null,null,null,null,null,"","",null,null,null,null,null,null,null,0,0,null,"","","","","",""]
[null,null,null,null,null,null,null,null,null,"","",null,null,null,null,null,null,null,0,0,null,"","","","","",""]
[null,null,null,null,null,null,null,null,null,"","",null,null,null,null,null,null,null,0,0,null,"","","","","",""]
[null,null,null,null,null,null,null,null,null,"","",null,null,null,null,null,null,null,0,0,null,"","","","","",""]
[null,null,null,null,null,null,null,null,null,"","",null,null,null,null,null,null,null,0,0,null,"","","","","",""]
[null,null,null,null,null,null,null,null,null,"","",null,null,null,null,null,null,null,0,0,null,"","","","","",""]
[null,null,null,null,null,null,null,null,null,"","",null,null,null,null,null,null,null,0,0,null,"","","","","",""]
[null,null,null,null,null,null,null,null,null,"","",null,null,null,null,null,null,null,0,0,null,"","","","","",""]
[null,null,null,null,null,null,null,null,null,{"$f":"H132&E132","v":""},{"$f":"H132&I132","v":""},null,null,null,null,null,null,null,0,0,null,"","","","","",""]
[null,null,null,null,null,null,null,null,null,"","",null,null,null,null,null,null,null,{"$f":"SUM(L133:Q133)","v":0},{"$f":"S133/600%","v":0},null,{"$f":"fgrade(L133)","v":""},{"$f":"fgrade(M133)","v":""},{"$f":"fgrade(N133)","v":""},{"$f":"fgrade(O133)","v":""},{"$f":"fgrade(P133)","v":""},{"$f":"fgrade(Q133)","v":""}]
[null,null,null,null,null,null,null,null,null,"","",null,null,null,null,null,null,null,0,0,null,"","","","","",""]
[null,null,null,null,null,null,null,null,null,"","",null,null,null,null,null,null,null,0,0,null,"","","","","",""]
[null,null,null,null,null,null,null,null,null,"","",null,null,null,null,null,null,null,0,0,null,"","","","","",""]
[null,null,null,null,null,null,null,null,null,"","",null,null,null,null,null,null,null,0,0,null,"","","","","",""]
[null,null,null,null,null,null,null,null,null,"","",null,null,null,null,null,null,null,0,0,null,"","","","","",""]
[null,null,null,null,null,null,null,null,null,"","",null,null,null,null,null,null,null,0,0,null,"","","","","",""]
[null,null,null,null,null,null,null,null,null,"","",null,null,null,null,null,null,null,0,0,null,"","","","","",""]
[null,null,null,null,null,null,null,null,null,"","",null,null,null,null,null,null,null,0,0,null,"","","","","",""]
[null,null,null,null,null,null,null,null,null,"","",null,null,null,null,null,null,null,0,0,null,"","","","","",""]
[null,null,null,null,null,null,null,null,null,"","",null,null,null,null,null,null,null,0,0,null,"","","","","",""]
[null,null,null,null,null,null,null,null,null,"","",null,null,null,null,null,null,null,0,0,null,"","","","","",""]
[null,null,null,null,null,null,null,null,null,"","",null,null,null,null,null,null,null,0,0,null,"","","","","",""]
[null,null,null,null,null,null,null,null,null,"","",null,null,null,null,null,null,null,0,0,null,"","","","","",""]
[null,null,null,null,null,null,null,null,null,"","",null,null,null,null,null,null,null,0,0,null,"","","","","",""]
[null,null,null,null,null,null,null,null,null,"","",null,null,null,null,null,null,null,0,0,null,"","","","","",""]
[null,null,null,null,null,null,null,null,null,"","",null,null,null,null,null,null,null,0,0,null,"","","","","",""]
[null,null,null,null,null,null,null,null,null,"","",null,null,null,null,null,null,null,0,0,null,"","","","","",""]
[null,null,null,null,null,null,null,null,null,"","",null,null,null,null,null,null,null,0,0,null,"","","","","",""]
[null,null,null,null,null,null,null,null,null,"","",null,null,null,null,null,null,null,0,0,null,"","","","","",""]
[null,null,null,null,null,null,null,null,null,"","",null,null,null,null,null,null,null,0,0,null,"","","","","",""]
[0,null,null,null,null,null,null,null,null,"","",null,null,null,null,null,"ATB","ATB"]
[0,"BOYS","GIRLS","TOTAL",null,null,null,null,null,null,null,null,null,null,null,null,{"$f":"SUMIF(H4:H153,\"B\",R4:R153)","v":0},{"$f":"SUMIF(H4:H153,\"G\",R4:R153)","v":0},{"$f":"SUM(Q155:R155)","v":0}]
["SC",{"$f":"COUNTIF($J$4:$J$153,\"BSC\")","v":0},{"$f":"COUNTIF($J$4:$J$153,\"GSC\")","v":0},{"$f":"SUM(B156:C156)","v":0},null,null,null,null,null,null,{"$f":"H156&I156","v":""}]
["ST",{"$f":"COUNTIF($J$4:$J$153,\"BST\")","v":0},{"$f":"COUNTIF($J$4:$J$153,\"GST\")","v":0},{"$f":"SUM(B157:C157)","v":0},null,null,null,null,null,null,""]
["BC",{"$f":"COUNTIF($J$4:$J$153,\"BBC\")","v":0},{"$f":"COUNTIF($J$4:$J$153,\"GBC\")","v":0},{"$f":"SUM(B158:C158)","v":0},null,"MIN BOY","MIN GIRL",null,null,null,""]
["OC",{"$f":"COUNTIF($J$4:$J$153,\"BOC\")","v":0},{"$f":"COUNTIF($J$4:$J$153,\"GOC\")","v":0},{"$f":"SUM(B159:C159)","v":0},null,{"$f":"COUNTIF(K4:K154,\"BY\")","v":0},{"$f":"COUNTIF(K4:K154,\"GY\")","v":0},null,null,null,""]
["TOTAL",{"$f":"SUM(B156:B159)","v":0},{"$f":"SUM(C156:C159)","v":0},{"$f":"SUM(D156:D159)","v":0},null,null,null,null,null,null,""]
[null,null,null,null,null,null,null,null,null,null,""]

{"sheet":"XEM","index":11,"n_rows":160,"n_cols":27,"rows_kept":160,"cut":false,"hidden":false,"merged":[[0,0,0,6],[1,0,1,1],[156,5,156,6]]}
["XEM-2018-19"]
[{"$f":"RIGHT(CELL(\"filename\",C3),LEN(CELL(\"filename\",C3))-FIND(\"]\",CELL(\"filename\",C3)))","v":"XEM"},null,null,null,null,null,null,null,null,null,null,null,null,null,null,null,null,null,null,null,null,"GRADES"]
["RNO","ADMN NO","NAME OF THE STUDENT","FATHER'S NAME","CASTE","DOB","DOA","SEX","MUSLIM",null,null,"TEL","HIN","ENG","MAT","SCI","SOC","ATT","TOTAL M","MARKS %",null,"TEL","HIN","ENG","MAT","SCI","SOC"]
[null,null,null,null,null,null,null,null,null,{"$f":"H4&E4","v":""},{"$f":"H4&I4","v":""},null,null,null,null,null,null,null,{"$f":"SUM(L4:Q4)","v":0},{"$f":"S4/600%","v":0},null,{"$f":"sscFGrade(L4)","v":""},{"$f":"sscFGrade(M4)","v":""},"","","",""]
[null,null,null,null,null,null,null,null,null,"",{"$f":"H5&I5","v":""},null,null,null,null,null,null,null,{"$f":"SUM(L5:Q5)","v":0},{"$f":"S5/600%","v":0},null,{"$f":"sscFGrade(L5)","v":""},{"$f":"sscFGrade(M5)","v":""},{"$f":"sscFGrade(N5)","v":""},{"$f":"sscFGrade(O5)","v":""},{"$f":"sscFGrade(P5)","v":""},{"$f":"sscFGrade(Q5)","v":""}]
[null,null,null,null,null,null,null,null,null,"","",null,null,null,null,null,null,null,0,0,null,"","","","","",""]
[null,null,null,null,null,null,null,null,null,"","",null,null,null,null,null,null,null,0,0,null,"","","","","",""]
[null,null,null,null,null,null,null,null,null,"","",null,null,null,null,null,null,null,0,0,null,"","","","","",""]
[null,null,null,null,null,null,null,null,null,"","",null,null,null,null,null,null,null,0,0,null,"","","","","",""]
[null,null,null,null,null,null,null,null,null,"","",null,null,null,null,null,null,null,0,0,null,"","","","","",""]
[null,null,null,null,null,null,null,null,null,"","",null,null,null,null,null,null,null,0,0,null,"","","","","",""]
[null,null,null,null,null,null,null,null,null,"","",null,null,null,null,null,null,null,0,0,null,"","","","","",""]
[null,null,null,null,null,null,null,null,null,"","",null,null,null,null,null,null,null,0,0,null,"","","","","",""]
[null,null,null,null,null,null,null,null,null,"","",null,null,null,null,null,null,null,0,0,null,"","","","","",""]
[null,null,null,null,null,null,null,null,null,"","",null,null,null,null,null,null,null,0,0,null,"","","","","",""]
[null,null,null,null,null,null,null,null,null,"","",null,null,null,null,null,null,null,0,0,null,"","","","","",""]
[null,null,null,null,null,null,null,null,null,"","",null,null,null,null,null,null,null,0,0,null,"","","","","",""]
[null,null,null,null,null,null,null,null,null,"","",null,null,null,null,null,null,null,0,0,null,"","","","","",""]
[null,null,null,null,null,null,null,null,null,"","",null,null,null,null,null,null,null,0,0,null,"","","","","",""]
[null,null,null,null,null,null,null,null,null,"","",null,null,null,null,null,null,null,0,0,null,"","","","","",""]
[null,null,null,null,null,null,null,null,null,"","",null,null,null,null,null,null,null,0,0,null,"","","","","",""]
[null,null,null,null,null,null,null,null,null,"","",null,null,null,null,null,null,null,0,0,null,"","","","","",""]
[null,null,null,null,null,null,null,null,null,"","",null,null,null,null,null,null,null,0,0,null,"","","","","",""]
[null,null,null,null,null,null,null,null,null,"","",null,null,null,null,null,null,null,0,0,null,"","","","","",""]
[null,null,null,null,null,null,null,null,null,"","",null,null,null,null,null,null,null,0,0,null,"","","","","",""]
[null,null,null,null,null,null,null,null,null,"","",null,null,null,null,null,null,null,0,0,null,"","","","","",""]
[null,null,null,null,null,null,null,null,null,"","",null,null,null,null,null,null,null,0,0,null,"","","","","",""]
[null,null,null,null,null,null,null,null,null,"","",null,null,null,null,null,null,null,0,0,null,"","","","","",""]
[null,null,null,null,null,null,null,null,null,"","",null,null,null,null,null,null,null,0,0,null,"","","","","",""]
[null,null,null,null,null,null,null,null,null,"","",null,null,null,null,null,null,null,0,0,null,"","","","","",""]
[null,null,null,null,null,null,null,null,null,"","",null,null,null,null,null,null,null,0,0,null,"","","","","",""]
[null,null,null,null,null,null,null,null,null,"","",null,null,null,null,null,null,null,0,0,null,"","","","","",""]
[null,null,null,null,null,null,null,null,null,"","",null,null,null,null,null,null,null,0,0,null,"","","","","",""]
[null,null,null,null,null,null,null,null,null,"","",null,null,null,null,null,null,null,0,0,null,"","","","","",""]
[null,null,null,null,null,null,null,null,null,"","",null,null,null,null,null,null,null,0,0,null,"","","","","",""]
[null,null,null,null,null,null,null,null,null,"","",null,null,null,null,null,null,null,0,0,null,"","","","","",""]
[null,null,null,null,null,null,null,null,null,"","",null,null,null,null,null,null,null,0,0,null,"","","","","",""]
[null,null,null,null,null,null,null,null,null,"","",null,null,null,null,null,null,null,0,0,null,"","","","","",""]
[null,null,null,null,null,null,null,null,null,"","",null,null,null,null,null,null,null,0,0,null,"","","","","",""]
[null,null,null,null,null,null,null,null,null,"","",null,null,null,null,null,null,null,0,0,null,"","","","","",""]
[null,null,null,null,null,null,null,null,null,"","",null,null,null,null,null,null,null,0,0,null,"","","","","",""]
[null,null,null,null,null,null,null,null,null,"","",null,null,null,null,null,null,null,0,0,null,"","","","","",""]
[null,null,null,null,null,null,null,null,null,"","",null,null,null,null,null,null,null,0,0,null,"","","","","",""]
[null,null,null,null,null,null,null,null,null,"","",null,null,null,null,null,null,null,0,0,null,"","","","","",""]
[null,null,null,null,null,null,null,null,null,"","",null,null,null,null,null,null,null,0,0,null,"","","","","",""]
[null,null,null,null,null,null,null,null,null,"","",null,null,null,null,null,null,null,0,0,null,"","","","","",""]
[null,null,null,null,null,null,null,null,null,"","",null,null,null,null,null,null,null,0,0,null,"","","","","",""]
[null,null,null,null,null,null,null,null,null,"","",null,null,null,null,null,null,null,0,0,null,"","","","","",""]
[null,null,null,null,null,null,null,null,null,"","",null,null,null,null,null,null,null,0,0,null,"","","","","",""]
[null,null,null,null,null,null,null,null,null,"","",null,null,null,null,null,null,null,0,0,null,"","","","","",""]
[null,null,null,null,null,null,null,null,null,"","",null,null,null,null,null,null,null,0,0,null,"","","","","",""]
[null,null,null,null,null,null,null,null,null,"","",null,null,null,null,null,null,null,0,0,null,"","","","","",""]
[null,null,null,null,null,null,null,null,null,"","",null,null,null,null,null,null,null,0,0,null,"","","","","",""]
[null,null,null,null,null,null,null,null,null,"","",null,null,null,null,null,null,null,0,0,null,"","","","","",""]
[null,null,null,null,null,null,null,null,null,"","",null,null,null,null,null,null,null,0,0,null,"","","","","",""]
[null,null,null,null,null,null,null,null,null,"","",null,null,null,null,null,null,null,0,0,null,"","","","","",""]
[null,null,null,null,null,null,null,null,null,"","",null,null,null,null,null,null,null,0,0,null,"","","","","",""]
[null,null,null,null,null,null,null,null,null,"","",null,null,null,null,null,null,null,0,0,null,"","","","","",""]
[null,null,null,null,null,null,null,null,null,"","",null,null,null,null,null,null,null,0,0,null,"","","","","",""]
[null,null,null,null,null,null,null,null,null,"","",null,null,null,null,null,null,null,0,0,null,"","","","","",""]
[null,null,null,null,null,null,null,null,null,"","",null,null,null,null,null,null,null,0,0,null,"","","","","",""]
[null,null,null,null,null,null,null,null,null,"","",null,null,null,null,null,null,null,0,0,null,"","","","","",""]
[null,null,null,null,null,null,null,null,null,"","",null,null,null,null,null,null,null,0,0,null,"","","","","",""]
[null,null,null,null,null,null,null,null,null,"","",null,null,null,null,null,null,null,0,0,null,"","","","","",""]
[null,null,null,null,null,null,null,null,null,"","",null,null,null,null,null,null,null,0,0,null,"","","","","",""]
[null,null,null,null,null,null,null,null,null,"","",null,null,null,null,null,null,null,0,0,null,"","","","","",""]
[null,null,null,null,null,null,null,null,null,"","",null,null,null,null,null,null,null,0,0,null,"","","","","",""]
[null,null,null,null,null,null,null,null,null,{"$f":"H68&E68","v":""},"",null,null,null,null,null,null,null,0,0,null,"","","","","",""]
[null,null,null,null,null,null,null,null,null,"","",null,null,null,null,null,null,null,{"$f":"SUM(L69:Q69)","v":0},{"$f":"S69/600%","v":0},null,{"$f":"sscFGrade(L69)","v":""},{"$f":"sscFGrade(M69)","v":""},{"$f":"sscFGrade(N69)","v":""},{"$f":"sscFGrade(O69)","v":""},{"$f":"sscFGrade(P69)","v":""},{"$f":"sscFGrade(Q69)","v":""}]
[null,null,null,null,null,null,null,null,null,"","",null,null,null,null,null,null,null,0,0,null,"","","","","",""]
[null,null,null,null,null,null,null,null,null,"","",null,null,null,null,null,null,null,0,0,null,"","","","","",""]
[null,null,null,null,null,null,null,null,null,"","",null,null,null,null,null,null,null,0,0,null,"","","","","",""]
[null,null,null,null,null,null,null,null,null,"","",null,null,null,null,null,null,null,0,0,null,"","","","","",""]
[null,null,null,null,null,null,null,null,null,"","",null,null,null,null,null,null,null,0,0,null,"","","","","",""]
[null,null,null,null,null,null,null,null,null,"","",null,null,null,null,null,null,null,0,0,null,"","","","","",""]
[null,null,null,null,null,null,null,null,null,"","",null,null,null,null,null,null,null,0,0,null,"","","","","",""]
[null,null,null,null,null,null,null,null,null,"","",null,null,null,null,null,null,null,0,0,null,"","","","","",""]
[null,null,null,null,null,null,null,null,null,"","",null,null,null,null,null,null,null,0,0,null,"","","","","",""]
[null,null,null,null,null,null,null,null,null,"","",null,null,null,null,null,null,null,0,0,null,"","","","","",""]
[null,null,null,null,null,null,null,null,null,"","",null,null,null,null,null,null,null,0,0,null,"","","","","",""]
[null,null,null,null,null,null,null,null,null,"","",null,null,null,null,null,null,null,0,0,null,{"$f":"fgrade(L81)","v":""},{"$f":"fgrade(M81)","v":""},{"$f":"fgrade(N81)","v":""},{"$f":"fgrade(O81)","v":""},{"$f":"fgrade(P81)","v":""},{"$f":"fgrade(Q81)","v":""}]
[null,null,null,null,null,null,null,null,null,"","",null,null,null,null,null,null,null,0,0,null,"","","","","",""]
[null,null,null,null,null,null,null,null,null,"","",null,null,null,null,null,null,null,0,0,null,"","","","","",""]
[null,null,null,null,null,null,null,null,null,"","",null,null,null,null,null,null,null,0,0,null,"","","","","",""]
[null,null,null,null,null,null,null,null,null,"","",null,null,null,null,null,null,null,0,0,null,"","","","","",""]
[null,null,null,null,null,null,null,null,null,"","",null,null,null,null,null,null,null,0,0,null,"","","","","",""]
[null,null,null,null,null,null,null,null,null,"","",null,null,null,null,null,null,null,0,0,null,"","","","","",""]
[null,null,null,null,null,null,null,null,null,"","",null,null,null,null,null,null,null,0,0,null,"","","","","",""]
[null,null,null,null,null,null,null,null,null,"","",null,null,null,null,null,null,null,0,0,null,"","","","","",""]
[null,null,null,null,null,null,null,null,null,"","",null,null,null,null,null,null,null,0,0,null,"","","","","",""]
[null,null,null,null,null,null,null,null,null,"","",null,null,null,null,null,null,null,0,0,null,"","","","","",""]
[null,null,null,null,null,null,null,null,null,"","",null,null,null,null,null,null,null,0,0,null,"","","","","",""]
[null,null,null,null,null,null,null,null,null,"","",null,null,null,null,null,null,null,0,0,null,"","","","","",""]
[null,null,null,null,null,null,null,null,null,"","",null,null,null,null,null,null,null,0,0,null,"","","","","",""]
[null,null,null,null,null,null,null,null,null,"","",null,null,null,null,null,null,null,0,0,null,"","","","","",""]
[null,null,null,null,null,null,null,null,null,"","",null,null,null,null,null,null,null,0,0,null,"","","","","",""]
[null,null,null,null,null,null,null,null,null,"","",null,null,null,null,null,null,null,0,0,null,"","","","","",""]
[null,null,null,null,null,null,null,null,null,"","",null,null,null,null,null,null,null,0,0,null,"","","","","",""]
[null,null,null,null,null,null,null,null,null,"","",null,null,null,null,null,null,null,0,0,null,"","","","","",""]
[null,null,null,null,null,null,null,null,null,"","",null,null,null,null,null,null,null,0,0,null,"","","","","",""]
[null,null,null,null,null,null,null,null,null,"","",null,null,null,null,null,null,null,0,0,null,"","","","","",""]
[null,null,null,null,null,null,null,null,null,"","",null,null,null,null,null,null,null,0,0,null,"","","","","",""]
[null,null,null,null,null,null,null,null,null,"","",null,null,null,null,null,null,null,0,0,null,"","","","","",""]
[null,null,null,null,null,null,null,null,null,"","",null,null,null,null,null,null,null,0,0,null,"","","","","",""]
[null,null,null,null,null,null,null,null,null,"","",null,null,null,null,null,null,null,0,0,null,"","","","","",""]
[null,null,null,null,null,null,null,null,null,"","",null,null,null,null,null,null,null,0,0,null,"","","","","",""]
[null,null,null,null,null,null,null,null,null,"","",null,null,null,null,null,null,null,0,0,null,"","","","","",""]
[null,null,null,null,null,null,null,null,null,"","",null,null,null,null,null,null,null,0,0,null,"","","","","",""]
[null,null,null,null,null,null,null,null,null,"","",null,null,null,null,null,null,null,0,0,null,"","","","","",""]
[null,null,null,null,null,null,null,null,null,"","",null,null,null,null,null,null,null,0,0,null,"","","","","",""]
[null,null,null,null,null,null,null,null,null,"","",null,null,null,null,null,null,null,0,0,null,"","","","","",""]
[null,null,null,null,null,null,null,null,null,"","",null,null,null,null,null,null,null,0,0,null,"","","","","",""]
[null,null,null,null,null,null,null,null,null,"","",null,null,null,null,null,null,null,0,0,null,"","","","","",""]
[null,null,null,null,null,null,null,null,null,"","",null,null,null,null,null,null,null,0,0,null,"","","","","",""]
[null,null,null,null,null,null,null,null,null,"","",null,null,null,null,null,null,null,0,0,null,"","","","","",""]
[null,null,null,null,null,null,null,null,null,"","",null,null,null,null,null,null,null,0,0,null,"","","","","",""]
[null,null,null,null,null,null,null,null,null,"","",null,null,null,null,null,null,null,0,0,null,"","","","","",""]
[null,null,null,null,null,null,null,null,null,"","",null,null,null,null,null,null,null,0,0,null,"","","","","",""]
[null,null,null,null,null,null,null,null,null,"",{"$f":"H119&I119","v":""},null,null,null,null,null,null,null,0,0,null,"","","","","",""]
[null,null,null,null,null,null,null,null,null,"","",null,null,null,null,null,null,null,0,0,null,"","","","","",""]
[null,null,null,null,null,null,null,null,null,"","",null,null,null,null,null,null,null,0,0,null,"","","","","",""]
[null,null,null,null,null,null,null,null,null,"","",null,null,null,null,null,null,null,0,0,null,"","","","","",""]
[null,null,null,null,null,null,null,null,null,"","",null,null,null,null,null,null,null,0,0,null,"","","","","",""]
[null,null,null,null,null,null,null,null,null,"","",null,null,null,null,null,null,null,0,0,null,"","","","","",""]
[null,null,null,null,null,null,null,null,null,"","",null,null,null,null,null,null,null,0,0,null,"","","","","",""]
[null,null,null,null,null,null,null,null,null,"","",null,null,null,null,null,null,null,0,0,null,"","","","","",""]
[null,null,null,null,null,null,null,null,null,"","",null,null,null,null,null,null,null,0,0,null,"","","","","",""]
[null,null,null,null,null,null,null,null,null,"","",null,null,null,null,null,null,null,0,0,null,"","","","","",""]
[null,null,null,null,null,null,null,null,null,"","",null,null,null,null,null,null,null,0,0,null,"","","","","",""]
[null,null,null,null,null,null,null,null,null,"","",null,null,null,null,null,null,null,0,0,null,"","","","","",""]
[null,null,null,null,null,null,null,null,null,"","",null,null,null,null,null,null,null,0,0,null,"","","","","",""]
[null,null,null,null,null,null,null,null,null,{"$f":"H132&E132","v":""},"",null,null,null,null,null,null,null,0,0,null,"","","","","",""]
[null,null,null,null,null,null,null,null,null,"","",null,null,null,null,null,null,null,{"$f":"SUM(L133:Q133)","v":0},{"$f":"S133/600%","v":0},null,{"$f":"fgrade(L133)","v":""},{"$f":"fgrade(M133)","v":""},{"$f":"fgrade(N133)","v":""},{"$f":"fgrade(O133)","v":""},{"$f":"fgrade(P133)","v":""},{"$f":"fgrade(Q133)","v":""}]
[null,null,null,null,null,null,null,null,null,"","",null,null,null,null,null,null,null,0,0,null,"","","","","",""]
[null,null,null,null,null,null,null,null,null,"","",null,null,null,null,null,null,null,0,0,null,"","","","","",""]
[null,null,null,null,null,null,null,null,null,"","",null,null,null,null,null,null,null,0,0,null,"","","","","",""]
[null,null,null,null,null,null,null,null,null,"","",null,null,null,null,null,null,null,0,0,null,"","","","","",""]
[null,null,null,null,null,null,null,null,null,"","",null,null,null,null,null,null,null,0,0,null,"","","","","",""]
[null,null,null,null,null,null,null,null,null,"","",null,null,null,null,null,null,null,0,0,null,"","","","","",""]
[null,null,null,null,null,null,null,null,null,"","",null,null,null,null,null,null,null,0,0,null,"","","","","",""]
[null,null,null,null,null,null,null,null,null,"","",null,null,null,null,null,null,null,0,0,null,"","","","","",""]
[null,null,null,null,null,null,null,null,null,"","",null,null,null,null,null,null,null,0,0,null,"","","","","",""]
[null,null,null,null,null,null,null,null,null,"","",null,null,null,null,null,null,null,0,0,null,"","","","","",""]
[null,null,null,null,null,null,null,null,null,"","",null,null,null,null,null,null,null,0,0,null,"","","","","",""]
[null,null,null,null,null,null,null,null,null,"","",null,null,null,null,null,null,null,0,0,null,"","","","","",""]
[null,null,null,null,null,null,null,null,null,"","",null,null,null,null,null,null,null,0,0,null,"","","","","",""]
[null,null,null,null,null,null,null,null,null,"","",null,null,null,null,null,null,null,0,0,null,"","","","","",""]
[null,null,null,null,null,null,null,null,null,"","",null,null,null,null,null,null,null,0,0,null,"","","","","",""]
[null,null,null,null,null,null,null,null,null,"","",null,null,null,null,null,null,null,0,0,null,"","","","","",""]
[null,null,null,null,null,null,null,null,null,"","",null,null,null,null,null,null,null,0,0,null,"","","","","",""]
[null,null,null,null,null,null,null,null,null,"","",null,null,null,null,null,null,null,0,0,null,"","","","","",""]
[null,null,null,null,null,null,null,null,null,"","",null,null,null,null,null,null,null,0,0,null,"","","","","",""]
[null,null,null,null,null,null,null,null,null,"","",null,null,null,null,null,null,null,0,0,null,"","","","","",""]
[0,null,null,null,null,null,null,null,null,null,null,null,null,null,null,null,"ATB","ATB"]
[0,"BOYS","GIRLS","TOTAL",null,null,null,null,null,null,null,null,null,null,null,null,{"$f":"SUMIF(H4:H153,\"B\",R4:R153)","v":0},{"$f":"SUMIF(H4:H153,\"G\",R4:R153)","v":0},{"$f":"SUM(Q155:R155)","v":0}]
["SC",{"$f":"COUNTIF($J$4:$J$153,\"BSC\")","v":0},{"$f":"COUNTIF($J$4:$J$153,\"GSC\")","v":0},{"$f":"SUM(B156:C156)","v":0}]
["ST",{"$f":"COUNTIF($J$4:$J$153,\"BST\")","v":0},{"$f":"COUNTIF($J$4:$J$153,\"GST\")","v":0},{"$f":"SUM(B157:C157)","v":0},null,"MINORITY"]
["BC",{"$f":"COUNTIF($J$4:$J$153,\"BBC\")","v":0},{"$f":"COUNTIF($J$4:$J$153,\"GBC\")","v":0},{"$f":"SUM(B158:C158)","v":0},null,"BOYS","GIRLS"]
["OC",{"$f":"COUNTIF($J$4:$J$153,\"BOC\")","v":0},{"$f":"COUNTIF($J$4:$J$153,\"GOC\")","v":0},{"$f":"SUM(B159:C159)","v":0},null,{"$f":"COUNTIF(K4:K47,\"BY\")","v":0},{"$f":"COUNTIF(K4:K47,\"GY\")","v":0}]
["TOTAL",{"$f":"SUM(B156:B159)","v":0},{"$f":"SUM(C156:C159)","v":0},{"$f":"SUM(B160:C160)","v":0}]

{"sheet":"ABSTRACT","index":12,"n_rows":35,"n_cols":41,"rows_kept":35,"cut":false,"hidden":false,"merged":[[5,15,14,15],[0,0,0,39],[1,0,1,39],[2,15,2,16],[2,21,2,26],[3,3,3,5],[3,6,3,8],[3,9,3,11],[3,12,3,14],[3,17,3,19],[3,20,3,22],[3,23,3,25],[3,26,3,28],[3,29,3,31],[3,32,3,34],[3,35,3,37],[19,36,19,38],[15,0,15,1],[17,22,17,37],[18,0,18,8],[18,22,18,25],[18,26,18,29],[18,30,18,32],[18,33,18,35],[18,36,18,38],[19,0,19,8],[19,22,19,25],[19,26,19,29],[19,30,19,32],[19,33,19,35],[20,22,20,25],[20,26,20,29],[20,30,20,32],[20,33,20,35],[20,36,20,38],[21,36,21,38],[22,0,22,8],[22,22,22,25],[22,26,22,29],[22,30,22,32],[22,33,22,35],[22,36,22,38],[21,0,21,8],[21,22,21,25],[21,26,21,29],[21,30,21,32],[21,33,21,35],[24,36,24,38],[23,0,23,8],[23,22,23,25],[23,26,23,29],[23,30,23,32],[23,33,23,35],[23,36,23,38],[24,0,24,8],[24,22,24,25],[24,26,24,29],[24,30,24,32],[24,33,24,35],[32,31,32,34],[25,0,25,5],[26,22,26,25],[27,0,27,8],[27,11,28,16],[30,0,30,6],[30,7,30,9],[34,0,34,3],[34,7,34,9],[31,3,31,4],[31,10,31,11],[31,15,31,16],[32,0,32,6],[32,7,32,9]]}
["STUDENTS ABSTRACT 2019-20"]
["MANDAL: MANCHAL , RANGA REDDY DIST."]
["Name of the School:",null,null,null,null,"ZPHS ARUTLA",null,null,null,null,null,"Pin Code No:                                                                                                                                                                          ",null,null,null,501508,null,"DISE CODE:",null,null,null,36231002111]
["Sl.No","CLASS","Medium","First date on roll\n in a month",null,null,"Enrolled in the\n Month",null,null,"Struck \noff(Removed) in\n the Month",null,null,"last date on roll\n in a Month",null,null,"Total Working Days","Average Attendance","SC",null,null,"ST",null,null,"BC",null,null,"OC",null,null,"Muslims",null,null,"PHC/\nCWSN",null,null,"Christian",null,null,"Adopted\n Teacher name","Class Grade"]
[null,null,null,"B","G",{"$f":"SUM(D5:E5)","v":0},"B","G","T","B","G","T","B","G","T",null,null,"B","G","T","B","G","T","B","G","T","B","G","T","B","G","T","B","G","T","B","G","T"]
[1,"VI","TM",null,null,null,null,null,null,null,null,null,null,null,null,null,null,{"$f":"INDIRECT($B6&$C6&\"!B$156\")","v":0},{"$f":"INDIRECT($B6&$C6&\"!C$156\")","v":0},{"$f":"SUM(R6:S6)","v":0},{"$f":"INDIRECT($B6&$C6&\"!B$157\")","v":0},{"$f":"INDIRECT($B6&$C6&\"!C$157\")","v":0},{"$f":"SUM(U6:V6)","v":0},{"$f":"INDIRECT($B6&$C6&\"!B$158\")","v":0},{"$f":"INDIRECT($B6&$C6&\"!C$158\")","v":0},{"$f":"SUM(X6:Y6)","v":0},{"$f":"INDIRECT($B6&$C6&\"!B$159\")","v":0},{"$f":"INDIRECT($B6&$C6&\"!C$159\")","v":0},{"$f":"SUM(AA6:AB6)","v":0},{"$f":"INDIRECT($B6&$C6&\"!F$159\")","v":0},{"$f":"INDIRECT($B6&$C6&\"!G$159\")","v":0},{"$f":"SUM(AD6:AE6)","v":0},0,0,{"$f":"SUM(AG6:AH6)","v":0},0,0,{"$f":"SUM(AJ6:AK6)","v":0},"-",null,{"$f":"T6+W6+Z6+AC6","v":0}]
[2,"VII","TM",null,null,null,null,null,null,null,null,null,null,null,null,null,null,{"$f":"INDIRECT($B7&$C7&\"!B$156\")","v":0},{"$f":"INDIRECT($B7&$C7&\"!C$156\")","v":0},0,{"$f":"INDIRECT($B7&$C7&\"!B$157\")","v":0},{"$f":"INDIRECT($B7&$C7&\"!C$157\")","v":0},0,{"$f":"INDIRECT($B7&$C7&\"!B$158\")","v":0},{"$f":"INDIRECT($B7&$C7&\"!C$158\")","v":0},0,{"$f":"INDIRECT($B7&$C7&\"!B$159\")","v":0},{"$f":"INDIRECT($B7&$C7&\"!C$159\")","v":0},0,{"$f":"INDIRECT($B7&$C7&\"!F$159\")","v":0},{"$f":"INDIRECT($B7&$C7&\"!G$159\")","v":0},0,1,0,1,0,0,0,"-",null,{"$f":"T7+W7+Z7+AC7","v":0}]
[3,"VIII","TM",null,null,null,null,null,null,null,null,null,null,null,null,null,null,0,0,0,0,0,0,0,0,0,0,0,0,0,0,0,0,0,0,0,0,0,"-",null,0]
[4,"IX","TM",null,null,null,null,null,null,null,null,null,null,null,null,null,null,0,0,0,0,0,0,0,0,0,0,0,0,0,0,0,0,0,0,0,0,0,"-",null,0]
[5,"X","TM",null,null,null,null,null,null,null,null,null,null,null,null,null,null,0,0,0,0,0,0,0,0,0,0,0,0,0,0,0,0,0,0,0,0,0,"-",null,0]
[6,"VI","EM",null,null,null,null,null,null,null,null,null,null,null,null,null,null,0,0,{"$f":"SUM(R11:S11)","v":0},0,0,{"$f":"SUM(U11:V11)","v":0},0,0,{"$f":"SUM(X11:Y11)","v":0},0,0,{"$f":"SUM(AA11:AB11)","v":0},0,0,{"$f":"SUM(AD11:AE11)","v":0},0,1,{"$f":"SUM(AG11:AH11)","v":1},0,0,{"$f":"SUM(AJ11:AK11)","v":0},"-",null,0]
[7,"VII","EM",null,null,null,null,null,null,null,null,null,null,null,null,null,null,0,0,{"$f":"SUM(R12:S12)","v":0},0,0,{"$f":"SUM(U12:V12)","v":0},0,0,{"$f":"SUM(X12:Y12)","v":0},0,0,{"$f":"SUM(AA12:AB12)","v":0},0,0,{"$f":"SUM(AD12:AE12)","v":0},2,0,{"$f":"SUM(AG12:AH12)","v":2},0,0,{"$f":"SUM(AJ12:AK12)","v":0},"-",null,0]
[8,"VIII","EM",null,null,null,null,null,null,null,null,null,null,null,null,null,null,{"$f":"INDIRECT($B13&$C13&\"!B$154\")","v":0},{"$f":"INDIRECT($B13&$C13&\"!c$154\")","v":0},0,{"$f":"INDIRECT($B13&$C13&\"!B$155\")","v":0},{"$f":"INDIRECT($B13&$C13&\"!c$155\")","v":0},0,{"$f":"INDIRECT($B13&$C13&\"!B$156\")","v":0},{"$f":"INDIRECT($B13&$C13&\"!c$156\")","v":0},0,{"$f":"INDIRECT($B13&$C13&\"!B$157\")","v":0},{"$f":"INDIRECT($B13&$C13&\"!c$157\")","v":0},0,{"$f":"INDIRECT($B13&$C13&\"!F$158\")","v":0},0,0,0,0,0,0,0,0,"-",null,0]
[9,"IX","EM",null,null,null,null,null,null,null,null,null,null,null,null,null,null,0,0,0,0,0,0,0,0,0,0,0,0,0,0,0,0,0,0,0,0,0,"-",null,0]
[11,"X","EM",null,null,null,null,null,null,null,null,null,null,null,null,null,null,0,0,0,0,0,0,0,0,0,0,0,0,0,0,0,0,1,1,0,0,0,"-",null,{"$f":"T15+W15+Z15+AC15","v":0}]
["Grand Total",null,null,{"$f":"SUM(D6:D15)","v":0},{"$f":"SUM(E6:E15)","v":0},{"$f":"SUM(F6:F15)","v":0},{"$f":"SUM(G6:G15)","v":0},{"$f":"SUM(H6:H15)","v":0},{"$f":"SUM(G16:H16)","v":0},{"$f":"SUM(J6:J15)","v":0},0,0,0,0,0,null,{"$f":"AVERAGE(Q6:Q15)","v":{"$error":"#DIV/0!"}},{"$f":"SUM(R6:R15)","v":0},{"$f":"SUM(S6:S15)","v":0},{"$f":"SUM(T6:T15)","v":0},{"$f":"SUM(U6:U15)","v":0},0,{"$f":"SUM(W6:W15)","v":0},{"$f":"SUM(X6:X15)","v":0},{"$f":"SUM(Y6:Y15)","v":0},{"$f":"SUM(Z6:Z15)","v":0},{"$f":"SUM(AA6:AA15)","v":0},{"$f":"SUM(AB6:AB15)","v":0},{"$f":"SUM(AC6:AC15)","v":0},{"$f":"SUM(AD6:AD15)","v":0},{"$f":"SUM(AE6:AE15)","v":0},{"$f":"SUM(AF6:AF15)","v":0},{"$f":"SUM(AG6:AG15)","v":3},{"$f":"SUM(AH6:AH15)","v":2},{"$f":"SUM(AI6:AI15)","v":5},{"$f":"SUM(AJ6:AJ15)","v":0},{"$f":"SUM(AK6:AK15)","v":0},{"$f":"SUM(AL6:AL15)","v":0},"-",null,{"$f":"T16+W16+Z16+AC16","v":0}]
[null,null,null,null,null,null,null,null,null,null,null,null,null,null,null,null,null,null,null,null,null,null,null,null,null,null,null,null,null,null,null,null,null,null,null,null,null,null,null,null,{"$f":"T17+W17+Z17+AC17","v":0}]
[null,null,null,null,null,null,null,null,null,null,null,null,null,null,null,null,null,null,null,null,null,null,"Utilization of Grants"]
["3.No of VVs Working :  2",null,null,null,null,null,null,null,null,null,"11. RADIO Available: Yes",null,null,null,null,null,null,null,null,null,null,null,null,null,null,null,"Opening Balance",null,null,null,"Received",null,null,"Expenditure",null,null,"Closing Balance"]
["4.No of Toilets Existing :  2 UNITS",null,null,null,null,null,null,null,null,null,"12. MDM - Concerned Registers",null,null,null,null,null,null,null,null,null,null,null,"School Grant",null,null,null,"-",null,null,null,"-",null,null,"-",null,null,"-"]
["5. Incomplete building if any give particulars: 0",null,null,null,null,null,null,null,null,null,"aintained : Yes",null,null,null,null,null,null,null,null,null,null,null,"Maintenance Grant",null,null,null,"-",null,null,null,"-",null,null,"-",null,null,"-"]
["6. Compound Wall (Yes/No) : YES",null,null,null,null,null,null,null,null,null,"13. 3R  Class wise Registers",null,null,null,null,null,null,null,null,null,null,null,"Uniforms Grant",null,null,null,"-",null,null,null,"-",null,null,"-",null,null,"-"]
["7.Name of the Teacher Retired \nin next two Months  : NIL",null,null,null,null,null,null,null,null,null,"Maintained : Yes",null,null,null,null,null,null,null,null,null,null,null,"Civil Works",null,null,null,"-",null,null,null,"-",null,null,"-",null,null,"-"]
["8.Date of SMC meeting Conducted :",null,null,null,null,null,null,null,null,null,"14. NRI DONARS Names& Cell No",null,null,null,null,null,null,null,null,null,null,null,"Interest",null,null,null,"-",null,null,null,"-",null,null,"-",null,null,"-"]
["    No of parents participated :  07",null,null,null,null,null,null,null,null,null,"a.","-",null,null,null,null,null,null,null,null,null,null,"Others",null,null,null,"-",null,null,null,"-",null,null,"-",null,null,"-"]
["9. Date of HM & Staff Review meetings: ",null,null,null,null,null,null,null,null,null,"b.","-"]
[null,null,null,null,null,null,null,null,null,null,"15. Village DONORS Names & Cell No"]
["10. School grade / percentage : -",null,null,null,null,null,null,null,null,null,"a.","P. Jangaiah  - 9848376372 Donated Invertor"]
[]
["16. On roll I to V :      0        , MDM Taken Total:  0         Bill Amount:0"]
["      Rice utilised"]
["17. On roll VI to VIII: ",null,null,248,null,"MDM Taken Total:",null,null,null,null,2549,null,"Bill Amount:",null,null,15752.82]
["      Rice utilised",null,null,null,null,null,null,382.35,null,null," KG",null,null,null,null,null,null,null,null,null,null,null,null,null,null,null,null,null,null,null,null,"Head master"]
["18. On roll IX to X:   214          MDM Taken Total:  2405                       Bill Amount: 360.750",null,null,null,null,null,null,null,null,null,null,null,null,null,null,null,null,null,null,null,null,null,null,null,null,null,null,null,null,null,null,"Signature with Stamp"]
["Rice Utilised",null,null,null,null,null,null,360.75,null,null," KG"]